Body Name,Body,Service Area Catergorisation,Service Division Catergorisation,Responsible Unit,Expenses Type,Detailed Expenses Type,Expenses Code,Date,Transaction Number,Amount,Capital / Revenue,Supplier Name,Supplier ID
North East Lincolnshire Council,http://statistics.data.gov.uk/id/local-authority/00FC),Gov  Dem Community Engagement,"Gov, Dem & Comm Engagement",The Knoll - Armed Forces Hub,Cap Land/Build-Prof Fees,Cap Land/Build-Prof Fees,YA103,29/06/2020,627428,780,CAPITAL,JOINT SERVICES MAJOR EVENTS TEAM N E LINCS,109747
North East Lincolnshire Council,http://statistics.data.gov.uk/id/local-authority/00FC),Gov  Dem Community Engagement,"Gov, Dem & Comm Engagement",The Knoll - Armed Forces Hub,Cap Land/Build-Prof Fees,Cap Land/Build-Prof Fees,YA103,29/06/2020,627428,6048,CAPITAL,JOINT SERVICES MAJOR EVENTS TEAM N E LINCS,109747
North East Lincolnshire Council,http://statistics.data.gov.uk/id/local-authority/00FC),Resources And Governance,Resources,Backlog Maintenance,Cap Land/Build-Build Enh Wrk,Cap Land/Build-Build Enh Wrk,YA102,30/06/2020,627468,6695,CAPITAL,ENGIE SERVICES LTD,133267
North East Lincolnshire Council,http://statistics.data.gov.uk/id/local-authority/00FC),Resources And Governance,Resources,Backlog Maintenance,Cap Land/Build-Build Enh Wrk,Cap Land/Build-Build Enh Wrk,YA102,30/06/2020,627275,6816.13,CAPITAL,UNIBUILD BUILDING CONTRACTORS LTD,101469
North East Lincolnshire Council,http://statistics.data.gov.uk/id/local-authority/00FC),Resources And Governance,Resources,Backlog Maintenance,Cap Land/Build-Build Enh Wrk,Cap Land/Build-Build Enh Wrk,YA102,16/06/2020,625173,6816.13,CAPITAL,UNIBUILD BUILDING CONTRACTORS LTD,101469
North East Lincolnshire Council,http://statistics.data.gov.uk/id/local-authority/00FC),Resources And Governance,Resources,Backlog Maintenance,Cap Land/Build-Build Enh Wrk,Cap Land/Build-Build Enh Wrk,YA102,23/06/2020,626383,10250,CAPITAL,PORTLOCK PAINTING,101144
North East Lincolnshire Council,http://statistics.data.gov.uk/id/local-authority/00FC),Resources And Governance,Resources,Backlog Maintenance,Cap Land/Build-Build Enh Wrk,Cap Land/Build-Build Enh Wrk,YA102,30/06/2020,627522,680.2,CAPITAL,ENGIE SERVICES LTD,133267
North East Lincolnshire Council,http://statistics.data.gov.uk/id/local-authority/00FC),Resources And Governance,Resources,Backlog Maintenance,Cap Land/Build-Prof Fees,Cap Land/Build-Prof Fees,YA103,30/06/2020,627470,2375,CAPITAL,ENGIE SERVICES LTD,133267
North East Lincolnshire Council,http://statistics.data.gov.uk/id/local-authority/00FC),Resources And Governance,Resources,Backlog Maintenance,Cap Land/Build-Prof Fees,Cap Land/Build-Prof Fees,YA103,08/06/2020,624019,7559.79,CAPITAL,ENGIE SERVICES LTD,133267
North East Lincolnshire Council,http://statistics.data.gov.uk/id/local-authority/00FC),Resources And Governance,Resources,Backlog Maintenance,Cap Land/Build-Prof Fees,Cap Land/Build-Prof Fees,YA103,29/06/2020,626801,36505.02,CAPITAL,ENGIE SERVICES LTD,133267
North East Lincolnshire Council,http://statistics.data.gov.uk/id/local-authority/00FC),Resources And Governance,Resources,Backlog Maintenance,Cap Land/Build-Prof Fees,Cap Land/Build-Prof Fees,YA103,12/06/2020,625191,780,CAPITAL,ENGIE SERVICES LTD,133267
North East Lincolnshire Council,http://statistics.data.gov.uk/id/local-authority/00FC),Resources And Governance,Resources,Backlog Maintenance,Cap Land/Build-Build Enh Wrk,Cap Land/Build-Build Enh Wrk,YA102,16/06/2020,625176,4192,CAPITAL,LINCS ELECTRICAL SERVICES LTD,102044
North East Lincolnshire Council,http://statistics.data.gov.uk/id/local-authority/00FC),Resources And Governance,Resources,Backlog Maintenance,Cap Land/Build-Build Enh Wrk,Cap Land/Build-Build Enh Wrk,YA102,16/06/2020,625175,7300,CAPITAL,LINCS ELECTRICAL SERVICES LTD,102044
North East Lincolnshire Council,http://statistics.data.gov.uk/id/local-authority/00FC),Resources And Governance,Resources,Backlog Maintenance,Cap Land/Build-Build Enh Wrk,Cap Land/Build-Build Enh Wrk,YA102,30/06/2020,626780,400,CAPITAL,NEWGLAZE,100642
North East Lincolnshire Council,http://statistics.data.gov.uk/id/local-authority/00FC),Resources And Governance,Resources,Backlog Maintenance,Cap Land/Build-Prof Fees,Cap Land/Build-Prof Fees,YA103,12/06/2020,625190,949,CAPITAL,ENGIE SERVICES LTD,133267
North East Lincolnshire Council,http://statistics.data.gov.uk/id/local-authority/00FC),Resources And Governance,Resources,Backlog Maintenance,Cap Land/Build-Build Enh Wrk,Cap Land/Build-Build Enh Wrk,YA102,30/06/2020,627276,1869,CAPITAL,OXLEY SHUTTERS LIMITED,100931
North East Lincolnshire Council,http://statistics.data.gov.uk/id/local-authority/00FC),Resources And Governance,Resources,Backlog Maintenance,Cap Land/Build-Build Enh Wrk,Cap Land/Build-Build Enh Wrk,YA102,11/06/2020,624780,3892,CAPITAL,FLOWSERVE GB LTD,146790
North East Lincolnshire Council,http://statistics.data.gov.uk/id/local-authority/00FC),Resources And Governance,Resources,Backlog Maintenance,Cap Land/Build-Build Enh Wrk,Cap Land/Build-Build Enh Wrk,YA102,16/06/2020,625172,12783,CAPITAL,LINCS ELECTRICAL SERVICES LTD,102044
North East Lincolnshire Council,http://statistics.data.gov.uk/id/local-authority/00FC),Resources And Governance,Resources,Backlog Maintenance,Cap Land/Build-Prof Fees,Cap Land/Build-Prof Fees,YA103,12/06/2020,625192,1623.44,CAPITAL,ENGIE SERVICES LTD,133267
North East Lincolnshire Council,http://statistics.data.gov.uk/id/local-authority/00FC),Resources And Governance,Resources,Property Rationalisation Prog,Cap Land/Build-Build Enh Wrk,Cap Land/Build-Build Enh Wrk,YA102,16/06/2020,625177,7212.94,CAPITAL,TOPCON CONSTRUCTION LTD,108462
North East Lincolnshire Council,http://statistics.data.gov.uk/id/local-authority/00FC),Environment Economy And Growth,Environment,Enhancement Bereavement Serv,Cap Land/Build-Build Enh Wrk,Cap Land/Build-Build Enh Wrk,YA102,04/06/2020,624025,2000,CAPITAL,ENGIE SERVICES LTD,133267
North East Lincolnshire Council,http://statistics.data.gov.uk/id/local-authority/00FC),Environment Economy And Growth,Environment,Enhancement Bereavement Serv,Cap Land/Build-Build Enh Wrk,Cap Land/Build-Build Enh Wrk,YA102,04/06/2020,624024,3000,CAPITAL,ENGIE SERVICES LTD,133267
North East Lincolnshire Council,http://statistics.data.gov.uk/id/local-authority/00FC),Environment Economy And Growth,Environment,Enhancement Bereavement Serv,Cap Infrastr-Build Enh Wrk,Cap Infrastr-Build Enh Wrk,YC102,25/06/2020,626928,14429.49,CAPITAL,EC SURFACING LTD,125951
North East Lincolnshire Council,http://statistics.data.gov.uk/id/local-authority/00FC),Environment Economy And Growth,Economy & Growth,Local Transport Plan Schemes,Cap Infrastr-Build Enh Wrk,Cap Infrastr-Build Enh Wrk,YC102,12/06/2020,624613,26495,CAPITAL,ONEWAY TM LIMITED,128602
North East Lincolnshire Council,http://statistics.data.gov.uk/id/local-authority/00FC),Environment Economy And Growth,Economy & Growth,Local Transport Plan Schemes,Cap Infrastr-Build Enh Wrk,Cap Infrastr-Build Enh Wrk,YC102,12/06/2020,624614,9827.5,CAPITAL,ONEWAY TM LIMITED,128602
North East Lincolnshire Council,http://statistics.data.gov.uk/id/local-authority/00FC),Environment Economy And Growth,Economy & Growth,Local Transport Plan Schemes,Cap Infrastr-Build Enh Wrk,Cap Infrastr-Build Enh Wrk,YC102,23/06/2020,626401,680,CAPITAL,SOUTHAM SERVICES (LINCS) LTD,140951
North East Lincolnshire Council,http://statistics.data.gov.uk/id/local-authority/00FC),Environment Economy And Growth,Economy & Growth,Local Transport Plan Schemes,Cap Infrastr-Build Enh Wrk,Cap Infrastr-Build Enh Wrk,YC102,08/06/2020,624018,56171.46,CAPITAL,ENGIE SERVICES LTD,133267
North East Lincolnshire Council,http://statistics.data.gov.uk/id/local-authority/00FC),Environment Economy And Growth,Economy & Growth,Local Transport Plan Schemes,Cap Infrastr-Build Enh Wrk,Cap Infrastr-Build Enh Wrk,YC102,10/06/2020,624612,1360,CAPITAL,ONEWAY TM LIMITED,128602
North East Lincolnshire Council,http://statistics.data.gov.uk/id/local-authority/00FC),Environment Economy And Growth,Economy & Growth,Local Transport Plan Schemes,Cap Infrastr-Build Enh Wrk,Cap Infrastr-Build Enh Wrk,YC102,10/06/2020,624775,4100,CAPITAL,ROUTE ONE INFRASTRUCTURE LTD,144617
North East Lincolnshire Council,http://statistics.data.gov.uk/id/local-authority/00FC),Environment Economy And Growth,Economy & Growth,Local Transport Plan Schemes,Cap Infrastr-Build Enh Wrk,Cap Infrastr-Build Enh Wrk,YC102,19/06/2020,626198,42399.99,CAPITAL,PBS CONSTRUCTION (NORTH EAST) LTD,127459
North East Lincolnshire Council,http://statistics.data.gov.uk/id/local-authority/00FC),Environment Economy And Growth,Economy & Growth,Local Transport Plan Schemes,Cap Infrastr-Build Enh Wrk,Cap Infrastr-Build Enh Wrk,YC102,26/06/2020,627329,51650.12,CAPITAL,PBS CONSTRUCTION (NORTH EAST) LTD,127459
North East Lincolnshire Council,http://statistics.data.gov.uk/id/local-authority/00FC),Environment Economy And Growth,Economy & Growth,Local Transport Plan Schemes,Cap Land/Build-Build Enh Wrk,Cap Land/Build-Build Enh Wrk,YA102,17/06/2020,625275,11381.61,CAPITAL,J MCCANN & CO LTD,100841
North East Lincolnshire Council,http://statistics.data.gov.uk/id/local-authority/00FC),Environment Economy And Growth,Economy & Growth,Local Transport Plan Schemes,Cap Infrastr-Build Enh Wrk,Cap Infrastr-Build Enh Wrk,YC102,08/06/2020,624237,1980,CAPITAL,SOUTHAM SERVICES (LINCS) LTD,140951
North East Lincolnshire Council,http://statistics.data.gov.uk/id/local-authority/00FC),Environment Economy And Growth,Economy & Growth,Local Transport Plan Schemes,Cap Infrastr-Purchase,Cap Infrastr-Purchase,YC101,22/06/2020,626227,3431.44,CAPITAL,J MCCANN & CO LTD,100841
North East Lincolnshire Council,http://statistics.data.gov.uk/id/local-authority/00FC),Environment Economy And Growth,Economy & Growth,Local Transport Plan Schemes,Cap Infrastr-Purchase,Cap Infrastr-Purchase,YC101,22/06/2020,625285,550,CAPITAL,EMPOWER EMPLOYABILITY MENTORING PROGRAMME,118831
North East Lincolnshire Council,http://statistics.data.gov.uk/id/local-authority/00FC),Environment Economy And Growth,Economy & Growth,Local Transport Plan Schemes,Cap Infrastr-Purchase,Cap Infrastr-Purchase,YC101,15/06/2020,625286,2351.25,CAPITAL,EMPOWER EMPLOYABILITY MENTORING PROGRAMME,118831
North East Lincolnshire Council,http://statistics.data.gov.uk/id/local-authority/00FC),Environment Economy And Growth,Economy & Growth,Local Transport Plan Schemes,Cap Infrastr-Build Enh Wrk,Cap Infrastr-Build Enh Wrk,YC102,08/06/2020,623137,6000,CAPITAL,ONEWAY TM LIMITED,128602
North East Lincolnshire Council,http://statistics.data.gov.uk/id/local-authority/00FC),Environment Economy And Growth,Economy & Growth,Clee Hlf Townscape Heritage,Cap Infrastr-Prof Fees,Cap Infrastr-Prof Fees,YC103,04/06/2020,624012,1500,CAPITAL,ENGIE SERVICES LTD,133267
North East Lincolnshire Council,http://statistics.data.gov.uk/id/local-authority/00FC),Environment Economy And Growth,Economy & Growth,Gllep Junction Improvement,Cap Infrastr-Build Enh Wrk,Cap Infrastr-Build Enh Wrk,YC102,11/06/2020,624433,574,CAPITAL,ONEWAY TM LIMITED,128602
North East Lincolnshire Council,http://statistics.data.gov.uk/id/local-authority/00FC),Environment Economy And Growth,Economy & Growth,Gllep Junction Improvement,Cap Infrastr-Build Enh Wrk,Cap Infrastr-Build Enh Wrk,YC102,01/06/2020,623024,213111.03,CAPITAL,CADENT GAS LIMITED,138392
North East Lincolnshire Council,http://statistics.data.gov.uk/id/local-authority/00FC),Environment Economy And Growth,Economy & Growth,Gllep Junction Improvement,Cap Infrastr-Build Enh Wrk,Cap Infrastr-Build Enh Wrk,YC102,25/06/2020,626224,550,CAPITAL,SEVENAIRS CONSULTING LTD,141944
North East Lincolnshire Council,http://statistics.data.gov.uk/id/local-authority/00FC),Environment Economy And Growth,Economy & Growth,Gllep Junction Improvement,Cap Infrastr-Build Enh Wrk,Cap Infrastr-Build Enh Wrk,YC102,25/06/2020,626222,10458.25,CAPITAL,ANGLIAN WATER SERVICES LIMITED,125923
North East Lincolnshire Council,http://statistics.data.gov.uk/id/local-authority/00FC),Environment Economy And Growth,Economy & Growth,Gllep Junction Improvement,Cap Infrastr-Prof Fees,Cap Infrastr-Prof Fees,YC103,29/06/2020,620286,1150,CAPITAL,DELTA-SIMONS ENVIRONMENTAL CONSULTANTS LTD,122455
North East Lincolnshire Council,http://statistics.data.gov.uk/id/local-authority/00FC),Environment Economy And Growth,Economy & Growth,Gllep Junction Improvement,Cap Infrastr-Build Enh Wrk,Cap Infrastr-Build Enh Wrk,YC102,04/06/2020,624015,12000,CAPITAL,ENGIE SERVICES LTD,133267
North East Lincolnshire Council,http://statistics.data.gov.uk/id/local-authority/00FC),Environment Economy And Growth,Economy & Growth,Gllep Junction Improvement,Cap Infrastr-Build Enh Wrk,Cap Infrastr-Build Enh Wrk,YC102,22/06/2020,626235,1754.72,CAPITAL,J MCCANN & CO LTD,100841
North East Lincolnshire Council,http://statistics.data.gov.uk/id/local-authority/00FC),Environment Economy And Growth,Economy & Growth,Gllep Junction Improvement,Cap Infrastr-Build Enh Wrk,Cap Infrastr-Build Enh Wrk,YC102,12/06/2020,625162,71192.62,CAPITAL,JACKSON CIVILS LTD,136631
North East Lincolnshire Council,http://statistics.data.gov.uk/id/local-authority/00FC),Environment Economy And Growth,Economy & Growth,Gllep Junction Improvement,Cap Infrastr-Build Enh Wrk,Cap Infrastr-Build Enh Wrk,YC102,12/06/2020,625126,20226.4,CAPITAL,JACKSON CIVILS LTD,136631
North East Lincolnshire Council,http://statistics.data.gov.uk/id/local-authority/00FC),Environment Economy And Growth,Economy & Growth,Shiip Scheme,Cap Infrastr-Build Enh Wrk,Cap Infrastr-Build Enh Wrk,YC102,12/06/2020,625170,19455.66,CAPITAL,J MCCANN & CO LTD,100841
North East Lincolnshire Council,http://statistics.data.gov.uk/id/local-authority/00FC),Environment Economy And Growth,Economy & Growth,Shiip Scheme,Cap Infrastr-Build Enh Wrk,Cap Infrastr-Build Enh Wrk,YC102,26/06/2020,625778,26815.96,CAPITAL,NORTHERN POWERGRID (YORKSHIRE) PLC,108328
North East Lincolnshire Council,http://statistics.data.gov.uk/id/local-authority/00FC),Environment Economy And Growth,Economy & Growth,Shiip Scheme,Cap Infrastr-Prof Fees,Cap Infrastr-Prof Fees,YC103,09/06/2020,624277,1036619,CAPITAL,ANGLIAN WATER SERVICES LIMITED,125923
North East Lincolnshire Council,http://statistics.data.gov.uk/id/local-authority/00FC),Environment Economy And Growth,Economy & Growth,Shiip Scheme,Cap Infrastr-Prof Fees,Cap Infrastr-Prof Fees,YC103,04/06/2020,624014,5500,CAPITAL,ENGIE SERVICES LTD,133267
North East Lincolnshire Council,http://statistics.data.gov.uk/id/local-authority/00FC),Environment Economy And Growth,Economy & Growth,Unlocking The Potential,Cap Infrastr-Build Enh Wrk,Cap Infrastr-Build Enh Wrk,YC102,12/06/2020,625167,46183.68,CAPITAL,C R REYNOLDS (CONSTRUCTION) LTD,103021
North East Lincolnshire Council,http://statistics.data.gov.uk/id/local-authority/00FC),Environment Economy And Growth,Economy & Growth,Unlocking The Potential,Cap Infrastr-Build Enh Wrk,Cap Infrastr-Build Enh Wrk,YC102,15/06/2020,625291,75389.44,CAPITAL,C R REYNOLDS (CONSTRUCTION) LTD,103021
North East Lincolnshire Council,http://statistics.data.gov.uk/id/local-authority/00FC),Environment Economy And Growth,Economy & Growth,Unlocking The Potential,Cap Infrastr-Build Enh Wrk,Cap Infrastr-Build Enh Wrk,YC102,08/06/2020,624147,3600,CAPITAL,4WAY CONSULTING LTD,143214
North East Lincolnshire Council,http://statistics.data.gov.uk/id/local-authority/00FC),Environment Economy And Growth,Economy & Growth,Unlocking The Potential,Cap Infrastr-Build Enh Wrk,Cap Infrastr-Build Enh Wrk,YC102,12/06/2020,624611,17382,CAPITAL,ONEWAY TM LIMITED,128602
North East Lincolnshire Council,http://statistics.data.gov.uk/id/local-authority/00FC),Environment Economy And Growth,Economy & Growth,Unlocking The Potential,Cap Infrastr-Build Enh Wrk,Cap Infrastr-Build Enh Wrk,YC102,12/06/2020,625165,2345,CAPITAL,PROTEK FENCING LTD,136253
North East Lincolnshire Council,http://statistics.data.gov.uk/id/local-authority/00FC),Environment Economy And Growth,Economy & Growth,Unlocking The Potential,Cap Infrastr-Build Enh Wrk,Cap Infrastr-Build Enh Wrk,YC102,09/06/2020,624235,1394,CAPITAL,NORTHERN POWERGRID (YORKSHIRE) PLC,108328
North East Lincolnshire Council,http://statistics.data.gov.uk/id/local-authority/00FC),Environment Economy And Growth,Economy & Growth,Unlocking The Potential,Cap Infrastr-Build Enh Wrk,Cap Infrastr-Build Enh Wrk,YC102,09/06/2020,624236,1394,CAPITAL,NORTHERN POWERGRID (YORKSHIRE) PLC,108328
North East Lincolnshire Council,http://statistics.data.gov.uk/id/local-authority/00FC),Environment Economy And Growth,Economy & Growth,Unlocking The Potential,Cap Infrastr-Prof Fees,Cap Infrastr-Prof Fees,YC103,29/06/2020,627358,5000,CAPITAL,THE URBANGLOW DESIGN & HERITAGE LTD,146785
North East Lincolnshire Council,http://statistics.data.gov.uk/id/local-authority/00FC),Environment Economy And Growth,Economy & Growth,Unlocking The Potential,Cap Infrastr-Prof Fees,Cap Infrastr-Prof Fees,YC103,29/06/2020,627237,400,CAPITAL,OUR BIG PICTURE LTD,134087
North East Lincolnshire Council,http://statistics.data.gov.uk/id/local-authority/00FC),Environment Economy And Growth,Economy & Growth,Unlocking The Potential,Cap Infrastr-Build Enh Wrk,Cap Infrastr-Build Enh Wrk,YC102,08/06/2020,624011,6000,CAPITAL,ENGIE SERVICES LTD,133267
North East Lincolnshire Council,http://statistics.data.gov.uk/id/local-authority/00FC),Environment Economy And Growth,Economy & Growth,Unlocking The Potential,Cap Infrastr-Prof Fees,Cap Infrastr-Prof Fees,YC103,03/06/2020,623924,1500,CAPITAL,GRIMSBY MINSTER,106153
North East Lincolnshire Council,http://statistics.data.gov.uk/id/local-authority/00FC),Environment Economy And Growth,Economy & Growth,Cleethorpes Public Art,Cap Infrastr-Build Enh Wrk,Cap Infrastr-Build Enh Wrk,YC102,12/06/2020,625169,13544.14,CAPITAL,J MCCANN & CO LTD,100841
North East Lincolnshire Council,http://statistics.data.gov.uk/id/local-authority/00FC),Environment Economy And Growth,Economy & Growth,Cleethorpes Public Art,Cap Infrastr-Build Enh Wrk,Cap Infrastr-Build Enh Wrk,YC102,09/06/2020,622902,1462.5,CAPITAL,ALAN WOOD PARTNERSHIP LTD,101760
North East Lincolnshire Council,http://statistics.data.gov.uk/id/local-authority/00FC),Environment Economy And Growth,Economy & Growth,Cleethorpes Public Art,Cap Infrastr-Build Enh Wrk,Cap Infrastr-Build Enh Wrk,YC102,18/06/2020,625953,250,CAPITAL,ALAN WOOD PARTNERSHIP LTD,101760
North East Lincolnshire Council,http://statistics.data.gov.uk/id/local-authority/00FC),Environment Economy And Growth,Economy & Growth,Cleethorpes Public Art,Cap Infrastr-Build Enh Wrk,Cap Infrastr-Build Enh Wrk,YC102,12/06/2020,625128,25123,CAPITAL,SHUTTER MEDIA LTD,143709
North East Lincolnshire Council,http://statistics.data.gov.uk/id/local-authority/00FC),Environment Economy And Growth,Economy & Growth,Cleethorpes Public Art,Cap Infrastr-Prof Fees,Cap Infrastr-Prof Fees,YC103,26/06/2020,627328,6500,CAPITAL,ROLINSON CRAIG LTD,143298
North East Lincolnshire Council,http://statistics.data.gov.uk/id/local-authority/00FC),Environment Economy And Growth,Economy & Growth,A18 Laceby To Ludborough,Cap Infrastr-Build Enh Wrk,Cap Infrastr-Build Enh Wrk,YC102,08/06/2020,624016,4600,CAPITAL,ENGIE SERVICES LTD,133267
North East Lincolnshire Council,http://statistics.data.gov.uk/id/local-authority/00FC),Environment Economy And Growth,Economy & Growth,Willingham / Peaks Drainage,Cap Land/Build-Prof Fees,Cap Land/Build-Prof Fees,YA103,25/06/2020,625304,1450,CAPITAL,AJET DRAIN SERVICES,102888
North East Lincolnshire Council,http://statistics.data.gov.uk/id/local-authority/00FC),Environment Economy And Growth,Economy & Growth,Smart Energy For Business,Cap Land/Build-Build Enh Wrk,Cap Land/Build-Build Enh Wrk,YA102,22/06/2020,626289,1142.8,CAPITAL,LINCS ELECTRICAL SERVICES LTD,102044
North East Lincolnshire Council,http://statistics.data.gov.uk/id/local-authority/00FC),Environment Economy And Growth,Economy & Growth,Smart Energy For Business,Cap Land/Build-Build Enh Wrk,Cap Land/Build-Build Enh Wrk,YA102,22/06/2020,626287,8473,CAPITAL,LINCS ELECTRICAL SERVICES LTD,102044
North East Lincolnshire Council,http://statistics.data.gov.uk/id/local-authority/00FC),Environment Economy And Growth,Economy & Growth,Smart Energy For Business,Cap Land/Build-Build Enh Wrk,Cap Land/Build-Build Enh Wrk,YA102,22/06/2020,626289,5626.02,CAPITAL,LINCS ELECTRICAL SERVICES LTD,102044
North East Lincolnshire Council,http://statistics.data.gov.uk/id/local-authority/00FC),Environment Economy And Growth,Economy & Growth,Smart Energy For Business,Cap Land/Build-Build Enh Wrk,Cap Land/Build-Build Enh Wrk,YA102,24/06/2020,626376,8848.3,CAPITAL,PORCHER ABRASIVE COATINGS LTD,146730
North East Lincolnshire Council,http://statistics.data.gov.uk/id/local-authority/00FC),Environment Economy And Growth,Economy & Growth,Smart Energy For Business,Cap Land/Build-Build Enh Wrk,Cap Land/Build-Build Enh Wrk,YA102,24/06/2020,626703,5308.8,CAPITAL,CAR SERVICES (GRIMSBY) LIMITED,113270
North East Lincolnshire Council,http://statistics.data.gov.uk/id/local-authority/00FC),Environment Economy And Growth,Economy & Growth,Smart Energy For Business,Cap Land/Build-Build Enh Wrk,Cap Land/Build-Build Enh Wrk,YA102,24/06/2020,626704,11293.5,CAPITAL,ENVIRO GY LTD,125195
North East Lincolnshire Council,http://statistics.data.gov.uk/id/local-authority/00FC),Environment Economy And Growth,Economy & Growth,Smart Energy For Business,Cap Land/Build-Build Enh Wrk,Cap Land/Build-Build Enh Wrk,YA102,24/06/2020,626734,6000,CAPITAL,MFT VINTAGE,146848
North East Lincolnshire Council,http://statistics.data.gov.uk/id/local-authority/00FC),Environment Economy And Growth,Economy & Growth,Smart Energy For Business,Cap Land/Build-Build Enh Wrk,Cap Land/Build-Build Enh Wrk,YA102,25/06/2020,626796,17179.63,CAPITAL,SELVIC SHIPPING SERVICES LTD,146587
North East Lincolnshire Council,http://statistics.data.gov.uk/id/local-authority/00FC),Environment Economy And Growth,Economy & Growth,Smart Energy For Business,Cap Land/Build-Build Enh Wrk,Cap Land/Build-Build Enh Wrk,YA102,25/06/2020,626749,25147.77,CAPITAL,WESTLANDS CLUB,116006
North East Lincolnshire Council,http://statistics.data.gov.uk/id/local-authority/00FC),Environment Economy And Growth,Economy & Growth,Smart Energy For Business,Cap Land/Build-Build Enh Wrk,Cap Land/Build-Build Enh Wrk,YA102,25/06/2020,626748,500,CAPITAL,LHC CLEETHORPES LIMITED,139373
North East Lincolnshire Council,http://statistics.data.gov.uk/id/local-authority/00FC),Environment Economy And Growth,Economy & Growth,Smart Energy For Business,Cap Land/Build-Build Enh Wrk,Cap Land/Build-Build Enh Wrk,YA102,02/06/2020,622914,500,CAPITAL,EXPRESSIONS HAIR AND BEAUTY LTD,146699
North East Lincolnshire Council,http://statistics.data.gov.uk/id/local-authority/00FC),Environment Economy And Growth,Economy & Growth,Smart Energy For Business,Cap Land/Build-Build Enh Wrk,Cap Land/Build-Build Enh Wrk,YA102,22/06/2020,626289,7487.38,CAPITAL,LINCS ELECTRICAL SERVICES LTD,102044
North East Lincolnshire Council,http://statistics.data.gov.uk/id/local-authority/00FC),Environment Economy And Growth,Economy & Growth,Smart Energy For Business,Cap Land/Build-Build Enh Wrk,Cap Land/Build-Build Enh Wrk,YA102,22/06/2020,626289,13061.15,CAPITAL,LINCS ELECTRICAL SERVICES LTD,102044
North East Lincolnshire Council,http://statistics.data.gov.uk/id/local-authority/00FC),Environment Economy And Growth,Economy & Growth,Smart Energy For Business,Cap Land/Build-Build Enh Wrk,Cap Land/Build-Build Enh Wrk,YA102,22/06/2020,626289,2508.67,CAPITAL,LINCS ELECTRICAL SERVICES LTD,102044
North East Lincolnshire Council,http://statistics.data.gov.uk/id/local-authority/00FC),Environment Economy And Growth,Economy & Growth,Smart Energy For Business,Cap Land/Build-Build Enh Wrk,Cap Land/Build-Build Enh Wrk,YA102,22/06/2020,626289,2300.7,CAPITAL,LINCS ELECTRICAL SERVICES LTD,102044
North East Lincolnshire Council,http://statistics.data.gov.uk/id/local-authority/00FC),Environment Economy And Growth,Economy & Growth,Smart Energy For Business,Cap Land/Build-Build Enh Wrk,Cap Land/Build-Build Enh Wrk,YA102,22/06/2020,626289,3833.42,CAPITAL,LINCS ELECTRICAL SERVICES LTD,102044
North East Lincolnshire Council,http://statistics.data.gov.uk/id/local-authority/00FC),Environment Economy And Growth,Economy & Growth,Smart Energy For Business,Cap Land/Build-Build Enh Wrk,Cap Land/Build-Build Enh Wrk,YA102,22/06/2020,626289,1867.45,CAPITAL,LINCS ELECTRICAL SERVICES LTD,102044
North East Lincolnshire Council,http://statistics.data.gov.uk/id/local-authority/00FC),Environment Economy And Growth,Economy & Growth,Smart Energy For Business,Cap Land/Build-Build Enh Wrk,Cap Land/Build-Build Enh Wrk,YA102,22/06/2020,626308,16316.1,CAPITAL,LINCS ELECTRICAL SERVICES LTD,102044
North East Lincolnshire Council,http://statistics.data.gov.uk/id/local-authority/00FC),Environment Economy And Growth,Economy & Growth,Smart Energy For Business,Cap Land/Build-Build Enh Wrk,Cap Land/Build-Build Enh Wrk,YA102,23/06/2020,626336,114683,CAPITAL,PRIORY FEDERATION OF ACADEMIES TRUST,146037
North East Lincolnshire Council,http://statistics.data.gov.uk/id/local-authority/00FC),Environment Economy And Growth,Economy & Growth,A180 Sth Humb Bank Major Maint,Cap Land/Build-Build Enh Wrk,Cap Land/Build-Build Enh Wrk,YA102,12/06/2020,625166,144431.22,CAPITAL,C R REYNOLDS (CONSTRUCTION) LTD,103021
North East Lincolnshire Council,http://statistics.data.gov.uk/id/local-authority/00FC),Environment Economy And Growth,Economy & Growth,Town Deal Investment,Cap Land/Build-Build Enh Wrk,Cap Land/Build-Build Enh Wrk,YA102,12/06/2020,625125,118593.03,CAPITAL,TOPCON CONSTRUCTION LTD,108462
North East Lincolnshire Council,http://statistics.data.gov.uk/id/local-authority/00FC),Environment Economy And Growth,Economy & Growth,Town Deal Investment,Cap Land/Build-Prof Fees,Cap Land/Build-Prof Fees,YA103,25/06/2020,624023,7083.33,CAPITAL,ENGIE SERVICES LTD,133267
North East Lincolnshire Council,http://statistics.data.gov.uk/id/local-authority/00FC),Environment Economy And Growth,Economy & Growth,Central Clee Regeneration,Cap Infrastr-Prof Fees,Cap Infrastr-Prof Fees,YC103,26/06/2020,624021,3000,CAPITAL,ENGIE SERVICES LTD,133267
North East Lincolnshire Council,http://statistics.data.gov.uk/id/local-authority/00FC),Environment Economy And Growth,Economy & Growth,Europarc Fez,Cap Land/Build-Build Enh Wrk,Cap Land/Build-Build Enh Wrk,YA102,10/06/2020,624620,422518,CAPITAL,WYKELAND GROUP LTD,101729
North East Lincolnshire Council,http://statistics.data.gov.uk/id/local-authority/00FC),Environment Economy And Growth,Economy & Growth,Stallingborough Aemu,Cap Land/Build-Build Enh Wrk,Cap Land/Build-Build Enh Wrk,YA102,12/06/2020,625168,65253.37,CAPITAL,GEO HOULTON & SONS LTD,102697
North East Lincolnshire Council,http://statistics.data.gov.uk/id/local-authority/00FC),Environment Economy And Growth,Economy & Growth,Stallingborough Aemu,Cap Land/Build-Build Enh Wrk,Cap Land/Build-Build Enh Wrk,YA102,12/06/2020,625164,111895.81,CAPITAL,GEO HOULTON & SONS LTD,102697
North East Lincolnshire Council,http://statistics.data.gov.uk/id/local-authority/00FC),Environment Economy And Growth,Economy & Growth,Stallingborough Aemu,Cap Land/Build-Prof Fees,Cap Land/Build-Prof Fees,YA103,30/06/2020,616461,15000,CAPITAL,ENGIE SERVICES LTD,133267
North East Lincolnshire Council,http://statistics.data.gov.uk/id/local-authority/00FC),Environment Economy And Growth,Economy & Growth,Stallingborough Aemu,Cap Land/Build-Prof Fees,Cap Land/Build-Prof Fees,YA103,22/06/2020,624857,1970,CAPITAL,GROUND ENGINEERING LIMITED,144824
North East Lincolnshire Council,http://statistics.data.gov.uk/id/local-authority/00FC),Environment Economy And Growth,Economy & Growth,Cdf - Open For Culture,Cap Land/Build-Prof Fees,Cap Land/Build-Prof Fees,YA103,25/06/2020,626211,700,CAPITAL,OUR BIG PICTURE LTD,134087
North East Lincolnshire Council,http://statistics.data.gov.uk/id/local-authority/00FC),Environment Economy And Growth,Economy & Growth,Rechargeable Works,Cap Land/Build-Build Enh Wrk,Cap Land/Build-Build Enh Wrk,YA102,16/06/2020,625187,17340.16,CAPITAL,STONE TECHNICAL SERVICES LTD,119179
North East Lincolnshire Council,http://statistics.data.gov.uk/id/local-authority/00FC),Environment Economy And Growth,Economy & Growth,Rechargeable Works,Cap Land/Build-Build Enh Wrk,Cap Land/Build-Build Enh Wrk,YA102,16/06/2020,625186,2075,CAPITAL,STONE TECHNICAL SERVICES LTD,119179
North East Lincolnshire Council,http://statistics.data.gov.uk/id/local-authority/00FC),Environment Economy And Growth,Economy & Growth,Nelc Funded Energy,Cap Land/Build-Build Enh Wrk,Cap Land/Build-Build Enh Wrk,YA102,22/06/2020,625927,825,CAPITAL,NORFOLK & WAVENEY ENTERPRISE SERVICES LTD,145349
North East Lincolnshire Council,http://statistics.data.gov.uk/id/local-authority/00FC),Environment Economy And Growth,Economy & Growth,Nelc Funded Energy,Cap Land/Build-Build Enh Wrk,Cap Land/Build-Build Enh Wrk,YA102,29/06/2020,627370,104967.1,CAPITAL,ENGIE SERVICES LTD,133267
North East Lincolnshire Council,http://statistics.data.gov.uk/id/local-authority/00FC),Environment Economy And Growth,Housing,Housing Assist Grants And Loan,Cap Grants To O/Side Sources,Cap Grants To O/Side Sources,YJ101,15/06/2020,624854,1673.58,CAPITAL,YES ENERGY SOLUTIONS,138575
North East Lincolnshire Council,http://statistics.data.gov.uk/id/local-authority/00FC),Environment Economy And Growth,Housing,Conv Rd Apartment Block,Cap Land/Build-Build Enh Wrk,Cap Land/Build-Build Enh Wrk,YA102,30/06/2020,627452,366715.56,CAPITAL,JC POMFRET CONSTRUCTION LTD,136453
North East Lincolnshire Council,http://statistics.data.gov.uk/id/local-authority/00FC),Environment Economy And Growth,Housing,Community Hsg Fund,Cap Land/Build-Prof Fees,Cap Land/Build-Prof Fees,YA103,16/06/2020,625773,746.76,CAPITAL,EAST MARSH COMMUNITY LIMITED,146797
North East Lincolnshire Council,http://statistics.data.gov.uk/id/local-authority/00FC),Environment Economy And Growth,Housing,Community Hsg Fund,Cap Land/Build-Prof Fees,Cap Land/Build-Prof Fees,YA103,10/06/2020,624428,900,CAPITAL,EAST MARSH CONSTRUCTION CIC,146757
North East Lincolnshire Council,http://statistics.data.gov.uk/id/local-authority/00FC),Environment Economy And Growth,Housing,Community Hsg Fund,Cap Land/Build-Prof Fees,Cap Land/Build-Prof Fees,YA103,16/06/2020,625774,1500,CAPITAL,EAST MARSH CONSTRUCTION CIC,146757
North East Lincolnshire Council,http://statistics.data.gov.uk/id/local-authority/00FC),Environment Economy And Growth,Housing,Community Hsg Fund,Cap Land/Build-Prof Fees,Cap Land/Build-Prof Fees,YA103,29/06/2020,627413,1500,CAPITAL,EAST MARSH CONSTRUCTION CIC,146757
North East Lincolnshire Council,http://statistics.data.gov.uk/id/local-authority/00FC),Environment Economy And Growth,Housing,Accelerated Cons Funding,Cap Infrastr-Build Enh Wrk,Cap Infrastr-Build Enh Wrk,YC102,22/06/2020,626197,1970,CAPITAL,WESSEX ARCHAEOLOGY,124933
North East Lincolnshire Council,http://statistics.data.gov.uk/id/local-authority/00FC),Environment Economy And Growth,Housing,Accelerated Cons Funding,Cap Infrastr-Build Enh Wrk,Cap Infrastr-Build Enh Wrk,YC102,30/06/2020,627395,540,CAPITAL,ENGIE SERVICES LTD,133267
North East Lincolnshire Council,http://statistics.data.gov.uk/id/local-authority/00FC),Environment Economy And Growth,Housing,Accelerated Cons Funding,Cap Infrastr-Build Enh Wrk,Cap Infrastr-Build Enh Wrk,YC102,02/06/2020,623452,665.3,CAPITAL,CGC ECOLOGY,142378
North East Lincolnshire Council,http://statistics.data.gov.uk/id/local-authority/00FC),Environment Economy And Growth,Housing,Accelerated Cons Funding,Cap Infrastr-Build Enh Wrk,Cap Infrastr-Build Enh Wrk,YC102,01/06/2020,623049,755,CAPITAL,COLE EASDON CONSULTANTS,146319
North East Lincolnshire Council,http://statistics.data.gov.uk/id/local-authority/00FC),Environment Economy And Growth,Housing,Accelerated Cons Funding,Cap Infrastr-Build Enh Wrk,Cap Infrastr-Build Enh Wrk,YC102,08/06/2020,623835,178842.14,CAPITAL,FIRST CONNECT UTILITY SOLUTIONS LTD,146619
North East Lincolnshire Council,http://statistics.data.gov.uk/id/local-authority/00FC),Public Health And Leisure,Leisure,New Leisure Centre At Grimsby,Cap Land/Build-Build Enh Wrk,Cap Land/Build-Build Enh Wrk,YA102,30/06/2020,626781,483.82,CAPITAL,E BACON & CO LTD,104090
North East Lincolnshire Council,http://statistics.data.gov.uk/id/local-authority/00FC),Public Health And Leisure,Leisure,Playing Pitch Reprovision,Cap Land/Build-Prof Fees,Cap Land/Build-Prof Fees,YA103,08/06/2020,624020,630.78,CAPITAL,ENGIE SERVICES LTD,133267
North East Lincolnshire Council,http://statistics.data.gov.uk/id/local-authority/00FC),Adult Services,Adult Services,Hps-Disabled Fac. Grants,Cap Grants To O/Side Sources,Cap Grants To O/Side Sources,YJ101,30/06/2020,627464,744.23,CAPITAL,F R TOWNSEND & CO LTD,104217
North East Lincolnshire Council,http://statistics.data.gov.uk/id/local-authority/00FC),Adult Services,Adult Services,Hps-Disabled Fac. Grants,Cap Grants To O/Side Sources,Cap Grants To O/Side Sources,YJ101,26/06/2020,627240,6887.61,CAPITAL,MARK BENNETT,101838
North East Lincolnshire Council,http://statistics.data.gov.uk/id/local-authority/00FC),Adult Services,Adult Services,Hps-Disabled Fac. Grants,Cap Grants To O/Side Sources,Cap Grants To O/Side Sources,YJ101,18/06/2020,625997,6484.59,CAPITAL,E S RUDKIN LTD,100632
North East Lincolnshire Council,http://statistics.data.gov.uk/id/local-authority/00FC),Adult Services,Adult Services,Hps-Disabled Fac. Grants,Cap Grants To O/Side Sources,Cap Grants To O/Side Sources,YJ101,02/06/2020,623023,1819,CAPITAL,OBAM LIFT SERVICES LTD,112666
North East Lincolnshire Council,http://statistics.data.gov.uk/id/local-authority/00FC),Adult Services,Adult Services,Hps-Disabled Fac. Grants,Cap Grants To O/Side Sources,Cap Grants To O/Side Sources,YJ101,01/06/2020,623421,1380,CAPITAL,NEWGLAZE LTD,113206
North East Lincolnshire Council,http://statistics.data.gov.uk/id/local-authority/00FC),Adult Services,Adult Services,Hps-Disabled Fac. Grants,Cap Grants To O/Side Sources,Cap Grants To O/Side Sources,YJ101,19/06/2020,626216,4335.08,CAPITAL,MARK BENNETT,101838
North East Lincolnshire Council,http://statistics.data.gov.uk/id/local-authority/00FC),Adult Services,Adult Services,Hps-Disabled Fac. Grants,Cap Grants To O/Side Sources,Cap Grants To O/Side Sources,YJ101,23/06/2020,625998,10518.28,CAPITAL,E S RUDKIN LTD,100632
North East Lincolnshire Council,http://statistics.data.gov.uk/id/local-authority/00FC),Adult Services,Adult Services,Hps-Disabled Fac. Grants,Cap Grants To O/Side Sources,Cap Grants To O/Side Sources,YJ101,25/06/2020,626694,2715,CAPITAL,OBAM LIFT SERVICES LTD,112666
North East Lincolnshire Council,http://statistics.data.gov.uk/id/local-authority/00FC),Adult Services,Adult Services,Hps-Disabled Fac. Grants,Cap Grants To O/Side Sources,Cap Grants To O/Side Sources,YJ101,18/06/2020,625813,4374.3,CAPITAL,ABLE 4 ENTERPRISE LTD,120159
North East Lincolnshire Council,http://statistics.data.gov.uk/id/local-authority/00FC),Adult Services,Adult Services,Hps-Disabled Fac. Grants,Cap Grants To O/Side Sources,Cap Grants To O/Side Sources,YJ101,17/06/2020,625824,7858.13,CAPITAL,ABLE 4 ENTERPRISE LTD,120159
North East Lincolnshire Council,http://statistics.data.gov.uk/id/local-authority/00FC),Adult Services,Adult Services,Hps-Disabled Fac. Grants,Cap Grants To O/Side Sources,Cap Grants To O/Side Sources,YJ101,25/06/2020,626384,7133.08,CAPITAL,ABLE 4 ENTERPRISE LTD,120159
North East Lincolnshire Council,http://statistics.data.gov.uk/id/local-authority/00FC),Adult Services,Adult Services,Hps-Disabled Fac. Grants,Cap Grants To O/Side Sources,Cap Grants To O/Side Sources,YJ101,03/06/2020,623871,1959.26,CAPITAL,ABLE 4 ENTERPRISE LTD,120159
North East Lincolnshire Council,http://statistics.data.gov.uk/id/local-authority/00FC),Adult Services,Adult Services,Hps-Disabled Fac. Grants,Cap Grants To O/Side Sources,Cap Grants To O/Side Sources,YJ101,29/06/2020,626835,4590,CAPITAL,DOLPHIN MOBILITY EAST MIDLANDS LTD,101317
North East Lincolnshire Council,http://statistics.data.gov.uk/id/local-authority/00FC),Adult Services,Adult Services,Hps-Disabled Fac. Grants,Cap Grants To O/Side Sources,Cap Grants To O/Side Sources,YJ101,23/06/2020,626372,1100,CAPITAL,OBAM LIFT SERVICES LTD,112666
North East Lincolnshire Council,http://statistics.data.gov.uk/id/local-authority/00FC),Adult Services,Adult Services,Hps-Disabled Fac. Grants,Cap Grants To O/Side Sources,Cap Grants To O/Side Sources,YJ101,19/06/2020,626185,9258.85,CAPITAL,ABLE 4 ENTERPRISE LTD,120159
North East Lincolnshire Council,http://statistics.data.gov.uk/id/local-authority/00FC),Adult Services,Adult Services,Hps-Disabled Fac. Grants,Cap Grants To O/Side Sources,Cap Grants To O/Side Sources,YJ101,01/06/2020,623418,2644.88,CAPITAL,ABLE 4 ENTERPRISE LTD,120159
North East Lincolnshire Council,http://statistics.data.gov.uk/id/local-authority/00FC),Adult Services,Adult Services,Hps-Disabled Fac. Grants,Cap Grants To O/Side Sources,Cap Grants To O/Side Sources,YJ101,16/06/2020,625444,4344,CAPITAL,N LINCS & GOOLE HOSPITALS NHS FOUNDATION TRUS,111074
North East Lincolnshire Council,http://statistics.data.gov.uk/id/local-authority/00FC),Adult Services,Adult Services,Hps-Disabled Fac. Grants,Cap Grants To O/Side Sources,Cap Grants To O/Side Sources,YJ101,04/06/2020,623932,13234.8,CAPITAL,ABLE 4 ENTERPRISE LTD,120159
North East Lincolnshire Council,http://statistics.data.gov.uk/id/local-authority/00FC),Adult Services,Adult Services,Hps-Disabled Fac. Grants,Cap Grants To O/Side Sources,Cap Grants To O/Side Sources,YJ101,29/06/2020,627394,4480,CAPITAL,ENGIE SERVICES LTD,133267
North East Lincolnshire Council,http://statistics.data.gov.uk/id/local-authority/00FC),Adult Services,Adult Services,Hps-Disabled Fac. Grants,Cap Grants To O/Side Sources,Cap Grants To O/Side Sources,YJ101,29/06/2020,626807,8080.08,CAPITAL,ENGIE SERVICES LTD,133267
North East Lincolnshire Council,http://statistics.data.gov.uk/id/local-authority/00FC),Adult Services,Adult Services,Hps-Disabled Fac. Grants,Cap Grants To O/Side Sources,Cap Grants To O/Side Sources,YJ101,23/06/2020,626385,955,CAPITAL,NEWGLAZE,100642
North East Lincolnshire Council,http://statistics.data.gov.uk/id/local-authority/00FC),Adult Services,Adult Services,Hps-Disabled Fac. Grants,Cap Grants To O/Side Sources,Cap Grants To O/Side Sources,YJ101,19/06/2020,626187,1584,CAPITAL,OBAM LIFT SERVICES LTD,112666
North East Lincolnshire Council,http://statistics.data.gov.uk/id/local-authority/00FC),Adult Services,Adult Services,Hps-Disabled Fac. Grants,Cap Grants To O/Side Sources,Cap Grants To O/Side Sources,YJ101,23/06/2020,626386,820,CAPITAL,NEWGLAZE,100642
North East Lincolnshire Council,http://statistics.data.gov.uk/id/local-authority/00FC),Adult Services,Adult Services,Hps-Disabled Fac. Grants,Cap Grants To O/Side Sources,Cap Grants To O/Side Sources,YJ101,24/06/2020,626398,690,CAPITAL,NEWGLAZE,100642
North East Lincolnshire Council,http://statistics.data.gov.uk/id/local-authority/00FC),Adult Services,Adult Services,Hps-Disabled Fac. Grants,Cap Veh Plt Eqp-Purchase,Cap Veh Plt Eqp-Purchase,YB101,02/06/2020,623082,-2250,CAPITAL,JOERNS HEALTHCARE LTD,126914
North East Lincolnshire Council,http://statistics.data.gov.uk/id/local-authority/00FC),Children & Family Services,Ass Dir - Skills,Earning & Learning,Miscellaneous Expenses,Activities - Service Users,LL114,19/06/2020,626184,1960,REVENUE,PARK RETAIL LTD - LOVE2REWARD,111869
North East Lincolnshire Council,http://statistics.data.gov.uk/id/local-authority/00FC),Children & Family Services,Ass Dir - Education,Access And Education Services,Contract Hire-Operating Leases,Vehicles - Contract Hire,JC101,19/06/2020,626218,2000,REVENUE,LINKS TAXIS,100546
North East Lincolnshire Council,http://statistics.data.gov.uk/id/local-authority/00FC),Children & Family Services,Ass Dir - Education,Access And Education Services,Contract Hire-Operating Leases,Vehicles - Contract Hire,JC101,23/06/2020,626357,616,REVENUE,LINKS TAXIS,100546
North East Lincolnshire Council,http://statistics.data.gov.uk/id/local-authority/00FC),Children & Family Services,Ass Dir - Education,Access And Education Services,Contract Hire-Operating Leases,Vehicles - Contract Hire,JC101,17/06/2020,625879,936,REVENUE,DRS TAXI SERVICE,141083
North East Lincolnshire Council,http://statistics.data.gov.uk/id/local-authority/00FC),Children & Family Services,Ass Dir - Education,Access And Education Services,Contract Hire-Operating Leases,Vehicles - Contract Hire,JC101,18/06/2020,626000,758.4,REVENUE,REDACTED PERSONAL INFORMATION,REDACTED PERSONAL INFORMATION
North East Lincolnshire Council,http://statistics.data.gov.uk/id/local-authority/00FC),Children & Family Services,Ass Dir - Education,Access And Education Services,Contract Hire-Operating Leases,Vehicles - Contract Hire,JC101,15/06/2020,624828,660,REVENUE,LINKS TAXIS,100546
North East Lincolnshire Council,http://statistics.data.gov.uk/id/local-authority/00FC),Children & Family Services,Ass Dir - Education,Access And Education Services,Contract Hire-Operating Leases,Vehicles - Contract Hire,JC101,22/06/2020,626282,528,REVENUE,LINKS TAXIS,100546
North East Lincolnshire Council,http://statistics.data.gov.uk/id/local-authority/00FC),Children & Family Services,Ass Dir - Education,Access And Education Services,Contract Hire-Operating Leases,Vehicles - Contract Hire,JC101,26/06/2020,626769,1157.2,REVENUE,GRIMSBY MINIBUSES LTD,121524
North East Lincolnshire Council,http://statistics.data.gov.uk/id/local-authority/00FC),Children & Family Services,Ass Dir - Education,Access And Education Services,Contract Hire-Operating Leases,Vehicles - Contract Hire,JC101,26/06/2020,626770,896.4,REVENUE,GRIMSBY MINIBUSES LTD,121524
North East Lincolnshire Council,http://statistics.data.gov.uk/id/local-authority/00FC),Children & Family Services,Ass Dir - Education,Access And Education Services,Contract Hire-Operating Leases,Vehicles - Contract Hire,JC101,17/06/2020,625852,450,REVENUE,LINKS TAXIS,100546
North East Lincolnshire Council,http://statistics.data.gov.uk/id/local-authority/00FC),Children & Family Services,Ass Dir - Education,Access And Education Services,Contract Hire-Operating Leases,Vehicles - Contract Hire,JC101,19/06/2020,626204,570,REVENUE,LINKS TAXIS,100546
North East Lincolnshire Council,http://statistics.data.gov.uk/id/local-authority/00FC),Children & Family Services,Ass Dir - Education,Access And Education Services,Contract Hire-Operating Leases,Vehicles - Contract Hire,JC101,11/06/2020,624816,936,REVENUE,LINKS TAXIS,100546
North East Lincolnshire Council,http://statistics.data.gov.uk/id/local-authority/00FC),Children & Family Services,Ass Dir - Education,Access And Education Services,Contract Hire-Operating Leases,Vehicles - Contract Hire,JC101,30/06/2020,627473,427.5,REVENUE,REDACTED PERSONAL INFORMATION,REDACTED PERSONAL INFORMATION
North East Lincolnshire Council,http://statistics.data.gov.uk/id/local-authority/00FC),Children & Family Services,Ass Dir - Education,Access And Education Services,Contract Hire-Operating Leases,Vehicles - Contract Hire,JC101,15/06/2020,625003,600,REVENUE,LINKS TAXIS,100546
North East Lincolnshire Council,http://statistics.data.gov.uk/id/local-authority/00FC),Children & Family Services,Ass Dir - Education,Access And Education Services,Contract Hire-Operating Leases,Vehicles - Contract Hire,JC101,03/06/2020,623562,412.5,REVENUE,MINICABS CLEETHORPES (LINCS) LTD,102124
North East Lincolnshire Council,http://statistics.data.gov.uk/id/local-authority/00FC),Children & Family Services,Ass Dir - Education,Access And Education Services,Contract Hire-Operating Leases,Vehicles - Contract Hire,JC101,19/06/2020,626219,400,REVENUE,LINKS TAXIS,100546
North East Lincolnshire Council,http://statistics.data.gov.uk/id/local-authority/00FC),Children & Family Services,Ass Dir - Education,Access And Education Services,Contract Hire-Operating Leases,Vehicles - Contract Hire,JC101,08/06/2020,624161,288,REVENUE,AA RADIO CARS LTD,101222
North East Lincolnshire Council,http://statistics.data.gov.uk/id/local-authority/00FC),Children & Family Services,Ass Dir - Education,Access And Education Services,Contract Hire-Operating Leases,Vehicles - Contract Hire,JC101,18/06/2020,625918,1600,REVENUE,LINKS TAXIS,100546
North East Lincolnshire Council,http://statistics.data.gov.uk/id/local-authority/00FC),Children & Family Services,Ass Dir - Education,Access And Education Services,Contract Hire-Operating Leases,Vehicles - Contract Hire,JC101,26/06/2020,626771,1238.6,REVENUE,GRIMSBY MINIBUSES LTD,121524
North East Lincolnshire Council,http://statistics.data.gov.uk/id/local-authority/00FC),Children & Family Services,Ass Dir - Education,Access And Education Services,Contract Hire-Operating Leases,Vehicles - Contract Hire,JC101,11/06/2020,624823,570,REVENUE,LINKS TAXIS,100546
North East Lincolnshire Council,http://statistics.data.gov.uk/id/local-authority/00FC),Children & Family Services,Ass Dir - Education,Access And Education Services,Contract Hire-Operating Leases,Vehicles - Contract Hire,JC101,15/06/2020,624162,1237.5,REVENUE,AA RADIO CARS LTD,101222
North East Lincolnshire Council,http://statistics.data.gov.uk/id/local-authority/00FC),Children & Family Services,Ass Dir - Education,Access And Education Services,Contract Hire-Operating Leases,Vehicles - Contract Hire,JC101,22/06/2020,625922,600,REVENUE,LINKS TAXIS,100546
North East Lincolnshire Council,http://statistics.data.gov.uk/id/local-authority/00FC),Children & Family Services,Ass Dir - Education,Access And Education Services,Contract Hire-Operating Leases,Vehicles - Contract Hire,JC101,11/06/2020,624817,780,REVENUE,LINKS TAXIS,100546
North East Lincolnshire Council,http://statistics.data.gov.uk/id/local-authority/00FC),Children & Family Services,Ass Dir - Education,Access And Education Services,Contract Hire-Operating Leases,Vehicles - Contract Hire,JC101,11/06/2020,624820,1000,REVENUE,LINKS TAXIS,100546
North East Lincolnshire Council,http://statistics.data.gov.uk/id/local-authority/00FC),Children & Family Services,Ass Dir - Education,Access And Education Services,Private Contractors,Concessionary Fares,PH104,01/06/2020,622888,2061.25,REVENUE,STAGECOACH SERVICES,101404
North East Lincolnshire Council,http://statistics.data.gov.uk/id/local-authority/00FC),Children & Family Services,Ass Dir - Education,Access And Education Services,Contract Hire-Operating Leases,Vehicles - Contract Hire,JC101,01/06/2020,622816,838,REVENUE,LINKS TAXIS,100546
North East Lincolnshire Council,http://statistics.data.gov.uk/id/local-authority/00FC),Children & Family Services,Ass Dir - Education,Access And Education Services,Contract Hire-Operating Leases,Vehicles - Contract Hire,JC101,17/06/2020,625837,930,REVENUE,LINKS TAXIS,100546
North East Lincolnshire Council,http://statistics.data.gov.uk/id/local-authority/00FC),Children & Family Services,Ass Dir - Education,Access And Education Services,Contract Hire-Operating Leases,Vehicles - Contract Hire,JC101,11/06/2020,624818,930,REVENUE,LINKS TAXIS,100546
North East Lincolnshire Council,http://statistics.data.gov.uk/id/local-authority/00FC),Children & Family Services,Ass Dir - Education,Access And Education Services,Contract Hire-Operating Leases,Vehicles - Contract Hire,JC101,17/06/2020,625880,870,REVENUE,LINKS TAXIS,100546
North East Lincolnshire Council,http://statistics.data.gov.uk/id/local-authority/00FC),Children & Family Services,Ass Dir - Education,Access And Education Services,Contract Hire-Operating Leases,Vehicles - Contract Hire,JC101,01/06/2020,623155,2475,REVENUE,AMVALE LIMITED,101030
North East Lincolnshire Council,http://statistics.data.gov.uk/id/local-authority/00FC),Children & Family Services,Ass Dir - Education,Access And Education Services,Contract Hire-Operating Leases,Vehicles - Contract Hire,JC101,01/06/2020,623154,2625,REVENUE,AMVALE LIMITED,101030
North East Lincolnshire Council,http://statistics.data.gov.uk/id/local-authority/00FC),Children & Family Services,Ass Dir - Education,Access And Education Services,Contract Hire-Operating Leases,Vehicles - Contract Hire,JC101,01/06/2020,623153,2475,REVENUE,AMVALE LIMITED,101030
North East Lincolnshire Council,http://statistics.data.gov.uk/id/local-authority/00FC),Children & Family Services,Ass Dir - Education,Access And Education Services,Contract Hire-Operating Leases,Vehicles - Contract Hire,JC101,01/06/2020,623151,2760,REVENUE,AMVALE LIMITED,101030
North East Lincolnshire Council,http://statistics.data.gov.uk/id/local-authority/00FC),Children & Family Services,Ass Dir - Education,Access And Education Services,Contract Hire-Operating Leases,Vehicles - Contract Hire,JC101,01/06/2020,623152,2325,REVENUE,AMVALE LIMITED,101030
North East Lincolnshire Council,http://statistics.data.gov.uk/id/local-authority/00FC),Children & Family Services,Ass Dir - Education,Access And Education Services,Contract Hire-Operating Leases,Vehicles - Contract Hire,JC101,17/06/2020,625818,420,REVENUE,COXONS CARS LIMITED,100578
North East Lincolnshire Council,http://statistics.data.gov.uk/id/local-authority/00FC),Children & Family Services,Ass Dir - Education,Access And Education Services,Contract Hire-Operating Leases,Vehicles - Contract Hire,JC101,18/06/2020,625923,870,REVENUE,LINKS TAXIS,100546
North East Lincolnshire Council,http://statistics.data.gov.uk/id/local-authority/00FC),Children & Family Services,Ass Dir - Education,Access And Education Services,Contract Hire-Operating Leases,Vehicles - Contract Hire,JC101,09/06/2020,624393,1725,REVENUE,AMVALE MEDICAL TRANSPORT LTD,130777
North East Lincolnshire Council,http://statistics.data.gov.uk/id/local-authority/00FC),Children & Family Services,Ass Dir - Education,Access And Education Services,Private Contractors,Concessionary Fares,PH104,01/06/2020,622888,843.24,REVENUE,STAGECOACH SERVICES,101404
North East Lincolnshire Council,http://statistics.data.gov.uk/id/local-authority/00FC),Children & Family Services,Ass Dir - Education,Access And Education Services,Contract Hire-Operating Leases,Vehicles - Contract Hire,JC101,24/06/2020,626743,5262.4,REVENUE,DONCASTER METROPOLITAN BOROUGH COUNCIL,122184
North East Lincolnshire Council,http://statistics.data.gov.uk/id/local-authority/00FC),Children & Family Services,Ass Dir - Education,Access And Education Services,Contract Hire-Operating Leases,Vehicles - Contract Hire,JC101,19/06/2020,626218,310,REVENUE,LINKS TAXIS,100546
North East Lincolnshire Council,http://statistics.data.gov.uk/id/local-authority/00FC),Children & Family Services,Ass Dir - Education,Access And Education Services,Contract Hire-Operating Leases,Vehicles - Contract Hire,JC101,01/06/2020,623456,1224,REVENUE,TIME TAXIS,146433
North East Lincolnshire Council,http://statistics.data.gov.uk/id/local-authority/00FC),Children & Family Services,Ass Dir - Education,Access And Education Services,Contract Hire-Operating Leases,Vehicles - Contract Hire,JC101,29/06/2020,627433,1496,REVENUE,TIME TAXIS,146433
North East Lincolnshire Council,http://statistics.data.gov.uk/id/local-authority/00FC),Children & Family Services,Ass Dir - Education,Access And Education Services,Contract Hire-Operating Leases,Vehicles - Contract Hire,JC101,09/06/2020,624396,2310,REVENUE,AMVALE MEDICAL TRANSPORT LTD,130777
North East Lincolnshire Council,http://statistics.data.gov.uk/id/local-authority/00FC),Children & Family Services,Ass Dir - Education,Access And Education Services,Contract Hire-Operating Leases,Vehicles - Contract Hire,JC101,11/06/2020,624397,4500,REVENUE,AMVALE MEDICAL TRANSPORT LTD,130777
North East Lincolnshire Council,http://statistics.data.gov.uk/id/local-authority/00FC),Children & Family Services,Ass Dir - Education,Access And Education Services,Contract Hire-Operating Leases,Vehicles - Contract Hire,JC101,17/06/2020,625800,3510,REVENUE,WATAXIS,141297
North East Lincolnshire Council,http://statistics.data.gov.uk/id/local-authority/00FC),Children & Family Services,Ass Dir - Education,Access And Education Services,Contract Hire-Operating Leases,Vehicles - Contract Hire,JC101,09/06/2020,624392,1935,REVENUE,AMVALE MEDICAL TRANSPORT LTD,130777
North East Lincolnshire Council,http://statistics.data.gov.uk/id/local-authority/00FC),Children & Family Services,Ass Dir - Education,Access And Education Services,Contract Hire-Operating Leases,Vehicles - Contract Hire,JC101,10/06/2020,624391,3906,REVENUE,AMVALE MEDICAL TRANSPORT LTD,130777
North East Lincolnshire Council,http://statistics.data.gov.uk/id/local-authority/00FC),Children & Family Services,Ass Dir - Education,Access And Education Services,Contract Hire-Operating Leases,Vehicles - Contract Hire,JC101,10/06/2020,624446,4359,REVENUE,AMVALE MEDICAL TRANSPORT LTD,130777
North East Lincolnshire Council,http://statistics.data.gov.uk/id/local-authority/00FC),Children & Family Services,Ass Dir - Education,Access And Education Services,Contract Hire-Operating Leases,Vehicles - Contract Hire,JC101,17/06/2020,625829,1360,REVENUE,DRS TAXI SERVICE,141083
North East Lincolnshire Council,http://statistics.data.gov.uk/id/local-authority/00FC),Children & Family Services,Ass Dir - Education,Access And Education Services,Contract Hire-Operating Leases,Vehicles - Contract Hire,JC101,02/06/2020,623515,1500,REVENUE,REDACTED PERSONAL INFORMATION,REDACTED PERSONAL INFORMATION
North East Lincolnshire Council,http://statistics.data.gov.uk/id/local-authority/00FC),Children & Family Services,Ass Dir - Education,Access And Education Services,Contract Hire-Operating Leases,Vehicles - Contract Hire,JC101,03/06/2020,623963,900,REVENUE,FON A CAR LTD,140517
North East Lincolnshire Council,http://statistics.data.gov.uk/id/local-authority/00FC),Children & Family Services,Ass Dir - Education,Access And Education Services,Contract Hire-Operating Leases,Vehicles - Contract Hire,JC101,22/06/2020,625920,675,REVENUE,LINKS TAXIS,100546
North East Lincolnshire Council,http://statistics.data.gov.uk/id/local-authority/00FC),Children & Family Services,Ass Dir - Education,Access And Education Services,Contract Hire-Operating Leases,Vehicles - Contract Hire,JC101,02/06/2020,623559,1248,REVENUE,MINICABS CLEETHORPES (LINCS) LTD,102124
North East Lincolnshire Council,http://statistics.data.gov.uk/id/local-authority/00FC),Children & Family Services,Ass Dir - Education,Access And Education Services,Contract Hire-Operating Leases,Vehicles - Contract Hire,JC101,23/06/2020,626399,775,REVENUE,ANDYS MINIBUS TAXI SERVICE,136184
North East Lincolnshire Council,http://statistics.data.gov.uk/id/local-authority/00FC),Children & Family Services,Ass Dir - Education,Access And Education Services,Contract Hire-Operating Leases,Vehicles - Contract Hire,JC101,11/06/2020,624242,1200,REVENUE,DJ TAXIS,144612
North East Lincolnshire Council,http://statistics.data.gov.uk/id/local-authority/00FC),Children & Family Services,Ass Dir - Education,Access And Education Services,Contract Hire-Operating Leases,Vehicles - Contract Hire,JC101,17/06/2020,625828,600,REVENUE,COXONS CARS LIMITED,100578
North East Lincolnshire Council,http://statistics.data.gov.uk/id/local-authority/00FC),Children & Family Services,Ass Dir - Education,Access And Education Services,Contract Hire-Operating Leases,Vehicles - Contract Hire,JC101,22/06/2020,625930,480,REVENUE,LINKS TAXIS,100546
North East Lincolnshire Council,http://statistics.data.gov.uk/id/local-authority/00FC),Children & Family Services,Ass Dir - Education,Access And Education Services,Contract Hire-Operating Leases,Vehicles - Contract Hire,JC101,22/06/2020,626295,1092,REVENUE,LINKS TAXIS,100546
North East Lincolnshire Council,http://statistics.data.gov.uk/id/local-authority/00FC),Children & Family Services,Ass Dir - Education,Access And Education Services,Contract Hire-Operating Leases,Vehicles - Contract Hire,JC101,02/06/2020,623544,1830,REVENUE,THE BUS RUN,101522
North East Lincolnshire Council,http://statistics.data.gov.uk/id/local-authority/00FC),Children & Family Services,Ass Dir - Education,Access And Education Services,Contract Hire-Operating Leases,Vehicles - Contract Hire,JC101,01/06/2020,622797,2252.8,REVENUE,GRIMSBY MINIBUSES LTD,121524
North East Lincolnshire Council,http://statistics.data.gov.uk/id/local-authority/00FC),Children & Family Services,Ass Dir - Education,Access And Education Services,Contract Hire-Operating Leases,Vehicles - Contract Hire,JC101,26/06/2020,626761,2956.8,REVENUE,GRIMSBY MINIBUSES LTD,121524
North East Lincolnshire Council,http://statistics.data.gov.uk/id/local-authority/00FC),Children & Family Services,Ass Dir - Education,Access And Education Services,Contract Hire-Operating Leases,Vehicles - Contract Hire,JC101,26/06/2020,626760,2806,REVENUE,GRIMSBY MINIBUSES LTD,121524
North East Lincolnshire Council,http://statistics.data.gov.uk/id/local-authority/00FC),Children & Family Services,Ass Dir - Education,Access And Education Services,Contract Hire-Operating Leases,Vehicles - Contract Hire,JC101,18/06/2020,625926,630,REVENUE,LINKS TAXIS,100546
North East Lincolnshire Council,http://statistics.data.gov.uk/id/local-authority/00FC),Children & Family Services,Ass Dir - Education,Access And Education Services,Contract Hire-Operating Leases,Vehicles - Contract Hire,JC101,11/06/2020,624798,1020,REVENUE,LINKS TAXIS,100546
North East Lincolnshire Council,http://statistics.data.gov.uk/id/local-authority/00FC),Children & Family Services,Ass Dir - Education,Access And Education Services,Contract Hire-Operating Leases,Vehicles - Contract Hire,JC101,22/06/2020,625931,1020,REVENUE,LINKS TAXIS,100546
North East Lincolnshire Council,http://statistics.data.gov.uk/id/local-authority/00FC),Children & Family Services,Ass Dir - Education,Access And Education Services,Contract Hire-Operating Leases,Vehicles - Contract Hire,JC101,15/06/2020,625006,480,REVENUE,LINKS TAXIS,100546
North East Lincolnshire Council,http://statistics.data.gov.uk/id/local-authority/00FC),Children & Family Services,Ass Dir - Education,Access And Education Services,Contract Hire-Operating Leases,Vehicles - Contract Hire,JC101,18/06/2020,625924,675,REVENUE,LINKS TAXIS,100546
North East Lincolnshire Council,http://statistics.data.gov.uk/id/local-authority/00FC),Children & Family Services,Ass Dir - Education,Access And Education Services,Contract Hire-Operating Leases,Vehicles - Contract Hire,JC101,17/06/2020,625802,480,REVENUE,COXONS CARS LIMITED,100578
North East Lincolnshire Council,http://statistics.data.gov.uk/id/local-authority/00FC),Children & Family Services,Ass Dir - Education,Access And Education Services,Contract Hire-Operating Leases,Vehicles - Contract Hire,JC101,15/06/2020,625004,600,REVENUE,LINKS TAXIS,100546
North East Lincolnshire Council,http://statistics.data.gov.uk/id/local-authority/00FC),Children & Family Services,Ass Dir - Education,Access And Education Services,Contract Hire-Operating Leases,Vehicles - Contract Hire,JC101,17/06/2020,625819,570,REVENUE,COXONS CARS LIMITED,100578
North East Lincolnshire Council,http://statistics.data.gov.uk/id/local-authority/00FC),Children & Family Services,Ass Dir - Education,Access And Education Services,Contract Hire-Operating Leases,Vehicles - Contract Hire,JC101,17/06/2020,625821,750,REVENUE,COXONS CARS LIMITED,100578
North East Lincolnshire Council,http://statistics.data.gov.uk/id/local-authority/00FC),Children & Family Services,Ass Dir - Education,Access And Education Services,Contract Hire-Operating Leases,Vehicles - Contract Hire,JC101,11/06/2020,624799,630,REVENUE,LINKS TAXIS,100546
North East Lincolnshire Council,http://statistics.data.gov.uk/id/local-authority/00FC),Children & Family Services,Ass Dir - Education,Access And Education Services,Contract Hire-Operating Leases,Vehicles - Contract Hire,JC101,15/06/2020,624844,675,REVENUE,LINKS TAXIS,100546
North East Lincolnshire Council,http://statistics.data.gov.uk/id/local-authority/00FC),Children & Family Services,Ass Dir - Education,Access And Education Services,Contract Hire-Operating Leases,Vehicles - Contract Hire,JC101,11/06/2020,624813,840,REVENUE,LINKS TAXIS,100546
North East Lincolnshire Council,http://statistics.data.gov.uk/id/local-authority/00FC),Children & Family Services,Ass Dir - Education,Access And Education Services,Contract Hire-Operating Leases,Vehicles - Contract Hire,JC101,30/06/2020,627509,2205,REVENUE,HANSONS AIRPORT EXPRESS,111879
North East Lincolnshire Council,http://statistics.data.gov.uk/id/local-authority/00FC),Children & Family Services,Ass Dir - Education,Access And Education Services,Contract Hire-Operating Leases,Vehicles - Contract Hire,JC101,30/06/2020,627508,2205,REVENUE,HANSONS AIRPORT EXPRESS,111879
North East Lincolnshire Council,http://statistics.data.gov.uk/id/local-authority/00FC),Children & Family Services,Ass Dir - Education,Access And Education Services,Contract Hire-Operating Leases,Vehicles - Contract Hire,JC101,10/06/2020,624394,1935,REVENUE,AMVALE MEDICAL TRANSPORT LTD,130777
North East Lincolnshire Council,http://statistics.data.gov.uk/id/local-authority/00FC),Children & Family Services,Ass Dir - Education,Access And Education Services,Contract Hire-Operating Leases,Vehicles - Contract Hire,JC101,03/06/2020,623925,1245,REVENUE,MINICABS CLEETHORPES (LINCS) LTD,102124
North East Lincolnshire Council,http://statistics.data.gov.uk/id/local-authority/00FC),Children & Family Services,Ass Dir - Education,Access And Education Services,Contract Hire-Operating Leases,Vehicles - Contract Hire,JC101,01/06/2020,622884,820,REVENUE,AMVALE LIMITED,101030
North East Lincolnshire Council,http://statistics.data.gov.uk/id/local-authority/00FC),Children & Family Services,Ass Dir - Education,Access And Education Services,Contract Hire-Operating Leases,Vehicles - Contract Hire,JC101,01/06/2020,622885,820,REVENUE,AMVALE LIMITED,101030
North East Lincolnshire Council,http://statistics.data.gov.uk/id/local-authority/00FC),Children & Family Services,Ass Dir - Education,Access And Education Services,Contract Hire-Operating Leases,Vehicles - Contract Hire,JC101,02/06/2020,622886,820,REVENUE,AMVALE LIMITED,101030
North East Lincolnshire Council,http://statistics.data.gov.uk/id/local-authority/00FC),Children & Family Services,Ass Dir - Education,Access And Education Services,Contract Hire-Operating Leases,Vehicles - Contract Hire,JC101,17/06/2020,625811,420,REVENUE,COXONS CARS LIMITED,100578
North East Lincolnshire Council,http://statistics.data.gov.uk/id/local-authority/00FC),Children & Family Services,Ass Dir - Education,Access And Education Services,Contract Hire-Operating Leases,Vehicles - Contract Hire,JC101,11/06/2020,624797,1710,REVENUE,LINKS TAXIS,100546
North East Lincolnshire Council,http://statistics.data.gov.uk/id/local-authority/00FC),Children & Family Services,Ass Dir - Education,Access And Education Services,Contract Hire-Operating Leases,Vehicles - Contract Hire,JC101,11/06/2020,624848,630,REVENUE,LINKS TAXIS,100546
North East Lincolnshire Council,http://statistics.data.gov.uk/id/local-authority/00FC),Children & Family Services,Ass Dir - Education,Access And Education Services,Contract Hire-Operating Leases,Vehicles - Contract Hire,JC101,02/06/2020,623567,882,REVENUE,MINICABS CLEETHORPES (LINCS) LTD,102124
North East Lincolnshire Council,http://statistics.data.gov.uk/id/local-authority/00FC),Children & Family Services,Ass Dir - Education,Access And Education Services,Contract Hire-Operating Leases,Vehicles - Contract Hire,JC101,17/06/2020,625878,795,REVENUE,WATAXIS,141297
North East Lincolnshire Council,http://statistics.data.gov.uk/id/local-authority/00FC),Children & Family Services,Ass Dir - Education,Access And Education Services,Contract Hire-Operating Leases,Vehicles - Contract Hire,JC101,03/06/2020,623565,450,REVENUE,MINICABS CLEETHORPES (LINCS) LTD,102124
North East Lincolnshire Council,http://statistics.data.gov.uk/id/local-authority/00FC),Children & Family Services,Ass Dir - Education,Access And Education Services,Contract Hire-Operating Leases,Vehicles - Contract Hire,JC101,03/06/2020,623566,1125,REVENUE,MINICABS CLEETHORPES (LINCS) LTD,102124
North East Lincolnshire Council,http://statistics.data.gov.uk/id/local-authority/00FC),Children & Family Services,Ass Dir - Education,Access And Education Services,Contract Hire-Operating Leases,Vehicles - Contract Hire,JC101,02/06/2020,623564,1800,REVENUE,MINICABS CLEETHORPES (LINCS) LTD,102124
North East Lincolnshire Council,http://statistics.data.gov.uk/id/local-authority/00FC),Children & Family Services,Ass Dir - Education,Access And Education Services,Contract Hire-Operating Leases,Vehicles - Contract Hire,JC101,22/06/2020,625919,1455,REVENUE,LINKS TAXIS,100546
North East Lincolnshire Council,http://statistics.data.gov.uk/id/local-authority/00FC),Children & Family Services,Ass Dir - Education,Access And Education Services,Contract Hire-Operating Leases,Vehicles - Contract Hire,JC101,18/06/2020,625918,435,REVENUE,LINKS TAXIS,100546
North East Lincolnshire Council,http://statistics.data.gov.uk/id/local-authority/00FC),Children & Family Services,Ass Dir - Education,Access And Education Services,Contract Hire-Operating Leases,Vehicles - Contract Hire,JC101,01/06/2020,622791,1210,REVENUE,LINKS TAXIS,100546
North East Lincolnshire Council,http://statistics.data.gov.uk/id/local-authority/00FC),Children & Family Services,Ass Dir - Education,Access And Education Services,Contract Hire-Operating Leases,Vehicles - Contract Hire,JC101,22/06/2020,625925,1650,REVENUE,LINKS TAXIS,100546
North East Lincolnshire Council,http://statistics.data.gov.uk/id/local-authority/00FC),Children & Family Services,Ass Dir - Education,Access And Education Services,Contract Hire-Operating Leases,Vehicles - Contract Hire,JC101,17/06/2020,625848,1875,REVENUE,LINKS TAXIS,100546
North East Lincolnshire Council,http://statistics.data.gov.uk/id/local-authority/00FC),Children & Family Services,Ass Dir - Education,Access And Education Services,Contract Hire-Operating Leases,Vehicles - Contract Hire,JC101,17/06/2020,625875,1650,REVENUE,WATAXIS,141297
North East Lincolnshire Council,http://statistics.data.gov.uk/id/local-authority/00FC),Children & Family Services,Ass Dir - Education,Access And Education Services,Contract Hire-Operating Leases,Vehicles - Contract Hire,JC101,19/06/2020,626205,1680,REVENUE,LINKS TAXIS,100546
North East Lincolnshire Council,http://statistics.data.gov.uk/id/local-authority/00FC),Children & Family Services,Ass Dir - Education,Access And Education Services,Contract Hire-Operating Leases,Vehicles - Contract Hire,JC101,04/06/2020,624140,375,REVENUE,FON A CAR LTD,140517
North East Lincolnshire Council,http://statistics.data.gov.uk/id/local-authority/00FC),Children & Family Services,Ass Dir - Education,Access And Education Services,Contract Hire-Operating Leases,Vehicles - Contract Hire,JC101,17/06/2020,625826,420,REVENUE,COXONS CARS LIMITED,100578
North East Lincolnshire Council,http://statistics.data.gov.uk/id/local-authority/00FC),Children & Family Services,Ass Dir - Education,Access And Education Services,Contract Hire-Operating Leases,Vehicles - Contract Hire,JC101,11/06/2020,624187,795,REVENUE,AA RADIO CARS LTD,101222
North East Lincolnshire Council,http://statistics.data.gov.uk/id/local-authority/00FC),Children & Family Services,Ass Dir - Education,Access And Education Services,Contract Hire-Operating Leases,Vehicles - Contract Hire,JC101,03/06/2020,623931,1140,REVENUE,MINICABS CLEETHORPES (LINCS) LTD,102124
North East Lincolnshire Council,http://statistics.data.gov.uk/id/local-authority/00FC),Children & Family Services,Ass Dir - Education,Access And Education Services,Contract Hire-Operating Leases,Vehicles - Contract Hire,JC101,02/06/2020,623563,900,REVENUE,MINICABS CLEETHORPES (LINCS) LTD,102124
North East Lincolnshire Council,http://statistics.data.gov.uk/id/local-authority/00FC),Children & Family Services,Ass Dir - Education,Access And Education Services,Contract Hire-Operating Leases,Vehicles - Contract Hire,JC101,17/06/2020,625801,1665,REVENUE,WATAXIS,141297
North East Lincolnshire Council,http://statistics.data.gov.uk/id/local-authority/00FC),Children & Family Services,Ass Dir - Education,Access And Education Services,Contract Hire-Operating Leases,Vehicles - Contract Hire,JC101,09/06/2020,624395,1785,REVENUE,AMVALE MEDICAL TRANSPORT LTD,130777
North East Lincolnshire Council,http://statistics.data.gov.uk/id/local-authority/00FC),Children & Family Services,Ass Dir - Education,Access And Education Services,Contract Hire-Operating Leases,Vehicles - Contract Hire,JC101,15/06/2020,625007,780,REVENUE,LINKS TAXIS,100546
North East Lincolnshire Council,http://statistics.data.gov.uk/id/local-authority/00FC),Children & Family Services,Ass Dir - Education,Access And Education Services,Contract Hire-Operating Leases,Vehicles - Contract Hire,JC101,22/06/2020,625921,930,REVENUE,LINKS TAXIS,100546
North East Lincolnshire Council,http://statistics.data.gov.uk/id/local-authority/00FC),Children & Family Services,Ass Dir - Education,Access And Education Services,Contract Hire-Operating Leases,Vehicles - Contract Hire,JC101,17/06/2020,625876,720,REVENUE,WATAXIS,141297
North East Lincolnshire Council,http://statistics.data.gov.uk/id/local-authority/00FC),Children & Family Services,Ass Dir - Education,Access And Education Services,Contract Hire-Operating Leases,Vehicles - Contract Hire,JC101,15/06/2020,624846,992,REVENUE,LINKS TAXIS,100546
North East Lincolnshire Council,http://statistics.data.gov.uk/id/local-authority/00FC),Children & Family Services,Ass Dir - Education,Access And Education Services,Contract Hire-Operating Leases,Vehicles - Contract Hire,JC101,17/06/2020,625877,600,REVENUE,WATAXIS,141297
North East Lincolnshire Council,http://statistics.data.gov.uk/id/local-authority/00FC),Children & Family Services,Ass Dir - Education,Access And Education Services,Contract Hire-Operating Leases,Vehicles - Contract Hire,JC101,11/06/2020,624819,684,REVENUE,LINKS TAXIS,100546
North East Lincolnshire Council,http://statistics.data.gov.uk/id/local-authority/00FC),Children & Family Services,Ass Dir - Education,Access And Education Services,Contract Hire-Operating Leases,Vehicles - Contract Hire,JC101,08/06/2020,624159,540,REVENUE,AA RADIO CARS LTD,101222
North East Lincolnshire Council,http://statistics.data.gov.uk/id/local-authority/00FC),Children & Family Services,Ass Dir - Education,Access And Education Services,Contract Hire-Operating Leases,Vehicles - Contract Hire,JC101,17/06/2020,625820,420,REVENUE,COXONS CARS LIMITED,100578
North East Lincolnshire Council,http://statistics.data.gov.uk/id/local-authority/00FC),Children & Family Services,Ass Dir - Education,Access And Education Services,Contract Hire-Operating Leases,Vehicles - Contract Hire,JC101,18/06/2020,625929,480,REVENUE,LINKS TAXIS,100546
North East Lincolnshire Council,http://statistics.data.gov.uk/id/local-authority/00FC),Children & Family Services,Ass Dir - Education,Access And Education Services,Contract Hire-Operating Leases,Vehicles - Contract Hire,JC101,03/06/2020,623562,412.5,REVENUE,MINICABS CLEETHORPES (LINCS) LTD,102124
North East Lincolnshire Council,http://statistics.data.gov.uk/id/local-authority/00FC),Children & Family Services,Ass Dir - Education,Access And Education Services,Contract Hire-Operating Leases,Vehicles - Contract Hire,JC101,15/06/2020,625005,1470,REVENUE,LINKS TAXIS,100546
North East Lincolnshire Council,http://statistics.data.gov.uk/id/local-authority/00FC),Children & Family Services,Ass Dir - Education,Access And Education Services,Contract Hire-Operating Leases,Vehicles - Contract Hire,JC101,11/06/2020,624814,587,REVENUE,LINKS TAXIS,100546
North East Lincolnshire Council,http://statistics.data.gov.uk/id/local-authority/00FC),Children & Family Services,Ass Dir - Education,Access And Education Services,Contract Hire-Operating Leases,Vehicles - Contract Hire,JC101,25/06/2020,626293,468,REVENUE,LINKS TAXIS,100546
North East Lincolnshire Council,http://statistics.data.gov.uk/id/local-authority/00FC),Children & Family Services,Ass Dir - Education,Access And Education Services,Contract Hire-Operating Leases,Vehicles - Contract Hire,JC101,15/06/2020,624162,412.5,REVENUE,AA RADIO CARS LTD,101222
North East Lincolnshire Council,http://statistics.data.gov.uk/id/local-authority/00FC),Children & Family Services,Ass Dir - Education,Access And Education Services,Contract Hire-Operating Leases,Vehicles - Contract Hire,JC101,15/06/2020,624826,2055,REVENUE,LINKS TAXIS,100546
North East Lincolnshire Council,http://statistics.data.gov.uk/id/local-authority/00FC),Children & Family Services,Ass Dir - Education,Access And Education Services,Contract Hire-Operating Leases,Vehicles - Contract Hire,JC101,30/06/2020,627473,1282.5,REVENUE,REDACTED PERSONAL INFORMATION,REDACTED PERSONAL INFORMATION
North East Lincolnshire Council,http://statistics.data.gov.uk/id/local-authority/00FC),Children & Family Services,Ass Dir - Education,Access And Education Services,Contract Hire-Operating Leases,Vehicles - Contract Hire,JC101,02/06/2020,623561,955.5,REVENUE,MINICABS CLEETHORPES (LINCS) LTD,102124
North East Lincolnshire Council,http://statistics.data.gov.uk/id/local-authority/00FC),Children & Family Services,Ass Dir - Education,Access And Education Services,Contract Hire-Operating Leases,Vehicles - Contract Hire,JC101,12/06/2020,625195,1390.5,REVENUE,LINKS TAXIS,100546
North East Lincolnshire Council,http://statistics.data.gov.uk/id/local-authority/00FC),Children & Family Services,Ass Dir - Education,Access And Education Services,Contract Hire-Operating Leases,Vehicles - Contract Hire,JC101,02/06/2020,623560,750,REVENUE,MINICABS CLEETHORPES (LINCS) LTD,102124
North East Lincolnshire Council,http://statistics.data.gov.uk/id/local-authority/00FC),Children & Family Services,Ass Dir - Education,Access And Education Services,Contract Hire-Operating Leases,Vehicles - Contract Hire,JC101,01/06/2020,622790,407,REVENUE,LINKS TAXIS,100546
North East Lincolnshire Council,http://statistics.data.gov.uk/id/local-authority/00FC),Children & Family Services,Ass Dir - Education,Access And Education Services,Contract Hire-Operating Leases,Vehicles - Contract Hire,JC101,15/06/2020,624845,555,REVENUE,LINKS TAXIS,100546
North East Lincolnshire Council,http://statistics.data.gov.uk/id/local-authority/00FC),Children & Family Services,Ass Dir - Education,Access And Education Services,Contract Hire-Operating Leases,Vehicles - Contract Hire,JC101,11/06/2020,624186,658,REVENUE,AA RADIO CARS LTD,101222
North East Lincolnshire Council,http://statistics.data.gov.uk/id/local-authority/00FC),Children & Family Services,Ass Dir - Education,Access And Education Services,Contract Hire-Operating Leases,Vehicles - Contract Hire,JC101,10/06/2020,624779,658,REVENUE,AA RADIO CARS LTD,101222
North East Lincolnshire Council,http://statistics.data.gov.uk/id/local-authority/00FC),Children & Family Services,Ass Dir - Education,Access And Education Services,Contract Hire-Operating Leases,Vehicles - Contract Hire,JC101,08/06/2020,624160,282,REVENUE,AA RADIO CARS LTD,101222
North East Lincolnshire Council,http://statistics.data.gov.uk/id/local-authority/00FC),Children & Family Services,Ass Dir - Education,Access And Education Services,Contract Hire-Operating Leases,Vehicles - Contract Hire,JC101,10/06/2020,624767,376,REVENUE,AA RADIO CARS LTD,101222
North East Lincolnshire Council,http://statistics.data.gov.uk/id/local-authority/00FC),Children & Family Services,Ass Dir - Education,Access And Education Services,Contract Hire-Operating Leases,Vehicles - Contract Hire,JC101,10/06/2020,624768,665,REVENUE,AA RADIO CARS LTD,101222
North East Lincolnshire Council,http://statistics.data.gov.uk/id/local-authority/00FC),Children & Family Services,Ass Dir - Education,Access And Education Services,Contract Hire-Operating Leases,Vehicles - Contract Hire,JC101,17/06/2020,625838,595,REVENUE,LINKS TAXIS,100546
North East Lincolnshire Council,http://statistics.data.gov.uk/id/local-authority/00FC),Children & Family Services,Ass Dir - Education,Access And Education Services,Contract Hire-Operating Leases,Vehicles - Contract Hire,JC101,11/06/2020,624812,1455,REVENUE,LINKS TAXIS,100546
North East Lincolnshire Council,http://statistics.data.gov.uk/id/local-authority/00FC),Children & Family Services,Ass Dir - Education,Access And Education Services,Direct Employee Expenses,Agency Supply Teachers,EA104,10/06/2020,624492,1050,REVENUE,ANDREW IAN TAYLOR MUSIC,139100
North East Lincolnshire Council,http://statistics.data.gov.uk/id/local-authority/00FC),Children & Family Services,Ass Dir - Education,Access And Education Services,Direct Employee Expenses,Agency Supply Teachers,EA104,11/06/2020,624467,1200,REVENUE,CAROLINE MASSDAM GOOCH,104894
North East Lincolnshire Council,http://statistics.data.gov.uk/id/local-authority/00FC),Children & Family Services,Ass Dir - Education,Access And Education Services,Direct Employee Expenses,Agency Supply Teachers,EA104,10/06/2020,624453,780,REVENUE,CLARE O'CONNELL,133840
North East Lincolnshire Council,http://statistics.data.gov.uk/id/local-authority/00FC),Children & Family Services,Ass Dir - Education,Access And Education Services,Direct Employee Expenses,Agency Supply Teachers,EA104,04/06/2020,624002,750,REVENUE,EMMA MIDDLETON,105103
North East Lincolnshire Council,http://statistics.data.gov.uk/id/local-authority/00FC),Children & Family Services,Ass Dir - Education,Access And Education Services,Direct Employee Expenses,Agency Supply Teachers,EA104,09/06/2020,624460,1025,REVENUE,JOANNE TOWNELL,103709
North East Lincolnshire Council,http://statistics.data.gov.uk/id/local-authority/00FC),Children & Family Services,Ass Dir - Education,Access And Education Services,Direct Employee Expenses,Agency Supply Teachers,EA104,11/06/2020,624407,1400,REVENUE,JOSHUA ENGLAND,122088
North East Lincolnshire Council,http://statistics.data.gov.uk/id/local-authority/00FC),Children & Family Services,Ass Dir - Education,Access And Education Services,Direct Employee Expenses,Agency Supply Teachers,EA104,16/06/2020,625339,872.5,REVENUE,KEVIN ROGERS,101480
North East Lincolnshire Council,http://statistics.data.gov.uk/id/local-authority/00FC),Children & Family Services,Ass Dir - Education,Access And Education Services,Direct Employee Expenses,Agency Supply Teachers,EA104,18/06/2020,625988,350,REVENUE,ELIZABETH GRIFFIN,139846
North East Lincolnshire Council,http://statistics.data.gov.uk/id/local-authority/00FC),Children & Family Services,Ass Dir - Education,Access And Education Services,Direct Employee Expenses,Agency Supply Teachers,EA104,10/06/2020,624408,405,REVENUE,MUSIC LINCS LTD,100944
North East Lincolnshire Council,http://statistics.data.gov.uk/id/local-authority/00FC),Children & Family Services,Ass Dir - Education,Access And Education Services,Direct Employee Expenses,Agency Supply Teachers,EA104,11/06/2020,624183,600,REVENUE,MUSIC LINCS LTD,100944
North East Lincolnshire Council,http://statistics.data.gov.uk/id/local-authority/00FC),Children & Family Services,Ass Dir - Education,Access And Education Services,Direct Employee Expenses,Agency Supply Teachers,EA104,11/06/2020,624286,1150,REVENUE,MRS RUTH HART,101928
North East Lincolnshire Council,http://statistics.data.gov.uk/id/local-authority/00FC),Children & Family Services,Ass Dir - Education,Access And Education Services,Direct Employee Expenses,Agency Supply Teachers,EA104,11/06/2020,624182,600,REVENUE,SUSAN J BOOTH,103257
North East Lincolnshire Council,http://statistics.data.gov.uk/id/local-authority/00FC),Children & Family Services,Ass Dir - Education,Access And Education Services,Direct Employee Expenses,Agency Supply Teachers,EA104,08/06/2020,624171,750,REVENUE,ZOE EVERATT,106842
North East Lincolnshire Council,http://statistics.data.gov.uk/id/local-authority/00FC),Children & Family Services,Ass Dir - Education,Access And Education Services,Direct Employee Expenses,Agency Supply Teachers,EA104,10/06/2020,624406,945,REVENUE,MUSIC LINCS LTD,100944
North East Lincolnshire Council,http://statistics.data.gov.uk/id/local-authority/00FC),Children & Family Services,Ass Dir - Education,Access And Education Services,Direct Employee Expenses,Agency Supply Teachers,EA104,10/06/2020,624602,300,REVENUE,STEVE WALKER,103219
North East Lincolnshire Council,http://statistics.data.gov.uk/id/local-authority/00FC),Children & Family Services,Ass Dir - Education,Access And Education Services,Print Stationery / Gen Off Exp,Publicity,LD105,12/06/2020,624769,900,REVENUE,EMMA MIDDLETON,105103
North East Lincolnshire Council,http://statistics.data.gov.uk/id/local-authority/00FC),Children & Family Services,Ass Dir - Education,Access And Education Services,Other Agencies,Other,PJ121,24/06/2020,626715,4200,REVENUE,SUE BAKER,103216
North East Lincolnshire Council,http://statistics.data.gov.uk/id/local-authority/00FC),Children & Family Services,Ass Dir - Education,Access And Education Services,Other Agencies,Performers,PJ101,09/06/2020,624459,300,REVENUE,JOANNE TOWNELL,103709
North East Lincolnshire Council,http://statistics.data.gov.uk/id/local-authority/00FC),Children & Family Services,Ass Dir - Education,Access And Education Services,Other Agencies,Tuition,PJ112,16/06/2020,806386,250,REVENUE,REDACTED PERSONAL INFORMATION,REDACTED PERSONAL INFORMATION
North East Lincolnshire Council,http://statistics.data.gov.uk/id/local-authority/00FC),Children & Family Services,Ass Dir - Education,Access And Education Services,Other Agencies,Tuition,PJ112,16/06/2020,625454,1237.5,REVENUE,LEARNING4LIFE-GY-CIC,144120
North East Lincolnshire Council,http://statistics.data.gov.uk/id/local-authority/00FC),Children & Family Services,Ass Dir - Education,Access And Education Services,Other Agencies,Tuition,PJ112,16/06/2020,625452,525,REVENUE,LEARNING4LIFE-GY-CIC,144120
North East Lincolnshire Council,http://statistics.data.gov.uk/id/local-authority/00FC),Children & Family Services,Ass Dir - Education,Access And Education Services,Other Agencies,Tuition,PJ112,16/06/2020,625450,1462,REVENUE,LEARNING4LIFE-GY-CIC,144120
North East Lincolnshire Council,http://statistics.data.gov.uk/id/local-authority/00FC),Children & Family Services,Ass Dir - Education,Access And Education Services,Other Agencies,Tuition,PJ112,16/06/2020,625448,1375,REVENUE,LEARNING4LIFE-GY-CIC,144120
North East Lincolnshire Council,http://statistics.data.gov.uk/id/local-authority/00FC),Children & Family Services,Ass Dir - Education,Access And Education Services,Other Agencies,Tuition,PJ112,16/06/2020,625446,1375,REVENUE,LEARNING4LIFE-GY-CIC,144120
North East Lincolnshire Council,http://statistics.data.gov.uk/id/local-authority/00FC),Children & Family Services,Ass Dir - Education,Access And Education Services,Other Agencies,Tuition,PJ112,16/06/2020,625453,1375,REVENUE,LEARNING4LIFE-GY-CIC,144120
North East Lincolnshire Council,http://statistics.data.gov.uk/id/local-authority/00FC),Children & Family Services,Ass Dir - Education,Access And Education Services,Other Agencies,Tuition,PJ112,16/06/2020,625451,1462,REVENUE,LEARNING4LIFE-GY-CIC,144120
North East Lincolnshire Council,http://statistics.data.gov.uk/id/local-authority/00FC),Children & Family Services,Ass Dir - Education,Access And Education Services,Other Agencies,Tuition,PJ112,16/06/2020,625449,600,REVENUE,LEARNING4LIFE-GY-CIC,144120
North East Lincolnshire Council,http://statistics.data.gov.uk/id/local-authority/00FC),Children & Family Services,Ass Dir - Education,Access And Education Services,Other Agencies,Tuition,PJ112,16/06/2020,625447,300,REVENUE,LEARNING4LIFE-GY-CIC,144120
North East Lincolnshire Council,http://statistics.data.gov.uk/id/local-authority/00FC),Children & Family Services,Ass Dir - Education,Access And Education Services,Other Agencies,Tuition,PJ112,16/06/2020,625445,300,REVENUE,LEARNING4LIFE-GY-CIC,144120
North East Lincolnshire Council,http://statistics.data.gov.uk/id/local-authority/00FC),Children & Family Services,Ass Dir - Education,Access And Education Services,Other Agencies,Tuition,PJ112,18/06/2020,625984,1100,REVENUE,PROSPERO RECRUITMENT LTD,145278
North East Lincolnshire Council,http://statistics.data.gov.uk/id/local-authority/00FC),Children & Family Services,Ass Dir - Education,Access And Education Services,Other Agencies,Tuition,PJ112,24/06/2020,626709,1100,REVENUE,PROSPERO RECRUITMENT LTD,145278
North East Lincolnshire Council,http://statistics.data.gov.uk/id/local-authority/00FC),Children & Family Services,Ass Dir - Education,Access And Education Services,Other Agencies,Tuition,PJ112,04/06/2020,624001,1176,REVENUE,PROSPERO RECRUITMENT LTD,145278
North East Lincolnshire Council,http://statistics.data.gov.uk/id/local-authority/00FC),Children & Family Services,Ass Dir - Education,Access And Education Services,Other Agencies,Tuition,PJ112,04/06/2020,624000,1176,REVENUE,PROSPERO RECRUITMENT LTD,145278
North East Lincolnshire Council,http://statistics.data.gov.uk/id/local-authority/00FC),Children & Family Services,Ass Dir - Education,Sen/Inclusion,Other Local Authorities,Third Pp - Other Local Auth,PC101,12/06/2020,625203,790,REVENUE,R Y FIDLER,142906
North East Lincolnshire Council,http://statistics.data.gov.uk/id/local-authority/00FC),Children & Family Services,Ass Dir - Education,Sen/Inclusion,Other Local Authorities,Third Pp - Other Local Auth,PC101,12/06/2020,625196,3505.78,REVENUE,REDACTED PERSONAL INFORMATION,REDACTED PERSONAL INFORMATION
North East Lincolnshire Council,http://statistics.data.gov.uk/id/local-authority/00FC),Children & Family Services,Ass Dir - Education,Sen/Inclusion,Other Local Authorities,Third Pp - Other Local Auth,PC101,15/06/2020,625390,3442.5,REVENUE,REDACTED PERSONAL INFORMATION,REDACTED PERSONAL INFORMATION
North East Lincolnshire Council,http://statistics.data.gov.uk/id/local-authority/00FC),Children & Family Services,Ass Dir - Education,Sen/Inclusion,Other Local Authorities,Third Pp - Other Local Auth,PC101,15/06/2020,625386,3442.5,REVENUE,REDACTED PERSONAL INFORMATION,REDACTED PERSONAL INFORMATION
North East Lincolnshire Council,http://statistics.data.gov.uk/id/local-authority/00FC),Children & Family Services,Ass Dir - Education,Sen/Inclusion,Other Local Authorities,Third Pp - Other Local Auth,PC101,15/06/2020,625388,3442.5,REVENUE,REDACTED PERSONAL INFORMATION,REDACTED PERSONAL INFORMATION
North East Lincolnshire Council,http://statistics.data.gov.uk/id/local-authority/00FC),Children & Family Services,Ass Dir - Education,Sen/Inclusion,Other Local Authorities,Third Pp - Other Local Auth,PC101,16/06/2020,625391,3442.5,REVENUE,REDACTED PERSONAL INFORMATION,REDACTED PERSONAL INFORMATION
North East Lincolnshire Council,http://statistics.data.gov.uk/id/local-authority/00FC),Children & Family Services,Ass Dir - Education,Sen/Inclusion,Other Local Authorities,Third Pp - Other Local Auth,PC101,15/06/2020,625387,3442.5,REVENUE,REDACTED PERSONAL INFORMATION,REDACTED PERSONAL INFORMATION
North East Lincolnshire Council,http://statistics.data.gov.uk/id/local-authority/00FC),Children & Family Services,Ass Dir - Education,Sen/Inclusion,Other Local Authorities,Third Pp - Other Local Auth,PC101,16/06/2020,625389,3442.5,REVENUE,REDACTED PERSONAL INFORMATION,REDACTED PERSONAL INFORMATION
North East Lincolnshire Council,http://statistics.data.gov.uk/id/local-authority/00FC),Children & Family Services,Ass Dir - Education,Sen/Inclusion,Other Local Authorities,Third Pp - Other Local Auth,PC101,16/06/2020,625394,3442.5,REVENUE,REDACTED PERSONAL INFORMATION,REDACTED PERSONAL INFORMATION
North East Lincolnshire Council,http://statistics.data.gov.uk/id/local-authority/00FC),Children & Family Services,Ass Dir - Education,Sen/Inclusion,Other Local Authorities,Third Pp - Other Local Auth,PC101,15/06/2020,625392,3442.5,REVENUE,REDACTED PERSONAL INFORMATION,REDACTED PERSONAL INFORMATION
North East Lincolnshire Council,http://statistics.data.gov.uk/id/local-authority/00FC),Children & Family Services,Ass Dir - Education,Sen/Inclusion,Other Local Authorities,Third Pp - Other Local Auth,PC101,16/06/2020,625298,15477.99,REVENUE,REDACTED PERSONAL INFORMATION,REDACTED PERSONAL INFORMATION
North East Lincolnshire Council,http://statistics.data.gov.uk/id/local-authority/00FC),Children & Family Services,Ass Dir - Education,Sen/Inclusion,Other Local Authorities,Third Pp - Other Local Auth,PC101,16/06/2020,625385,17957.25,REVENUE,REDACTED PERSONAL INFORMATION,REDACTED PERSONAL INFORMATION
North East Lincolnshire Council,http://statistics.data.gov.uk/id/local-authority/00FC),Children & Family Services,Ass Dir - Education,Sen/Inclusion,Other Local Authorities,Third Pp - Other Local Auth,PC101,15/06/2020,625296,5216.92,REVENUE,REDACTED PERSONAL INFORMATION,REDACTED PERSONAL INFORMATION
North East Lincolnshire Council,http://statistics.data.gov.uk/id/local-authority/00FC),Children & Family Services,Ass Dir - Education,Sen/Inclusion,Other Local Authorities,Third Pp - Other Local Auth,PC101,15/06/2020,625294,5729,REVENUE,REDACTED PERSONAL INFORMATION,REDACTED PERSONAL INFORMATION
North East Lincolnshire Council,http://statistics.data.gov.uk/id/local-authority/00FC),Children & Family Services,Ass Dir - Education,Sen/Inclusion,Other Local Authorities,Third Pp - Other Local Auth,PC101,15/06/2020,625332,3840,REVENUE,REDACTED PERSONAL INFORMATION,REDACTED PERSONAL INFORMATION
North East Lincolnshire Council,http://statistics.data.gov.uk/id/local-authority/00FC),Children & Family Services,Ass Dir - Education,Sen/Inclusion,Other Local Authorities,Third Pp - Other Local Auth,PC101,01/06/2020,623426,5729,REVENUE,REDACTED PERSONAL INFORMATION,REDACTED PERSONAL INFORMATION
North East Lincolnshire Council,http://statistics.data.gov.uk/id/local-authority/00FC),Children & Family Services,Ass Dir - Education,Sen/Inclusion,Other Local Authorities,Third Pp - Other Local Auth,PC101,01/06/2020,623423,3077.86,REVENUE,REDACTED PERSONAL INFORMATION,REDACTED PERSONAL INFORMATION
North East Lincolnshire Council,http://statistics.data.gov.uk/id/local-authority/00FC),Children & Family Services,Ass Dir - Education,Sen/Inclusion,Other Local Authorities,Third Pp - Other Local Auth,PC101,01/06/2020,623424,17377.98,REVENUE,REDACTED PERSONAL INFORMATION,REDACTED PERSONAL INFORMATION
North East Lincolnshire Council,http://statistics.data.gov.uk/id/local-authority/00FC),Children & Family Services,Ass Dir - Education,Sen/Inclusion,Other Local Authorities,Third Pp - Other Local Auth,PC101,01/06/2020,623425,9396.94,REVENUE,REDACTED PERSONAL INFORMATION,REDACTED PERSONAL INFORMATION
North East Lincolnshire Council,http://statistics.data.gov.uk/id/local-authority/00FC),Children & Family Services,Ass Dir - Education,Sen/Inclusion,Other Local Authorities,Third Pp - Other Local Auth,PC101,10/06/2020,624675,9710.17,REVENUE,REDACTED PERSONAL INFORMATION,REDACTED PERSONAL INFORMATION
North East Lincolnshire Council,http://statistics.data.gov.uk/id/local-authority/00FC),Children & Family Services,Ass Dir - Education,Sen/Inclusion,Other Local Authorities,Third Pp - Other Local Auth,PC101,10/06/2020,624683,282.89,REVENUE,REDACTED PERSONAL INFORMATION,REDACTED PERSONAL INFORMATION
North East Lincolnshire Council,http://statistics.data.gov.uk/id/local-authority/00FC),Children & Family Services,Ass Dir - Education,Sen/Inclusion,Other Local Authorities,Third Pp - Other Local Auth,PC101,10/06/2020,624684,5216.9,REVENUE,REDACTED PERSONAL INFORMATION,REDACTED PERSONAL INFORMATION
North East Lincolnshire Council,http://statistics.data.gov.uk/id/local-authority/00FC),Children & Family Services,Ass Dir - Education,Sen/Inclusion,Other Local Authorities,Third Pp - Other Local Auth,PC101,10/06/2020,624656,1507.8,REVENUE,REDACTED PERSONAL INFORMATION,REDACTED PERSONAL INFORMATION
North East Lincolnshire Council,http://statistics.data.gov.uk/id/local-authority/00FC),Children & Family Services,Ass Dir - Education,Sen/Inclusion,Other Local Authorities,Third Pp - Other Local Auth,PC101,10/06/2020,624674,8333.32,REVENUE,REDACTED PERSONAL INFORMATION,REDACTED PERSONAL INFORMATION
North East Lincolnshire Council,http://statistics.data.gov.uk/id/local-authority/00FC),Children & Family Services,Ass Dir - Education,Sen/Inclusion,Other Local Authorities,Third Pp - Other Local Auth,PC101,10/06/2020,624600,4439.15,REVENUE,REDACTED PERSONAL INFORMATION,REDACTED PERSONAL INFORMATION
North East Lincolnshire Council,http://statistics.data.gov.uk/id/local-authority/00FC),Children & Family Services,Ass Dir - Education,Sen/Inclusion,Other Local Authorities,Third Pp - Other Local Auth,PC101,23/06/2020,624599,55265,REVENUE,REDACTED PERSONAL INFORMATION,REDACTED PERSONAL INFORMATION
North East Lincolnshire Council,http://statistics.data.gov.uk/id/local-authority/00FC),Children & Family Services,Ass Dir - Education,Sen/Inclusion,Other Local Authorities,Third Pp - Other Local Auth,PC101,10/06/2020,624654,4991,REVENUE,REDACTED PERSONAL INFORMATION,REDACTED PERSONAL INFORMATION
North East Lincolnshire Council,http://statistics.data.gov.uk/id/local-authority/00FC),Children & Family Services,Ass Dir - Education,Sen/Inclusion,Other Local Authorities,Third Pp - Other Local Auth,PC101,10/06/2020,624653,3968,REVENUE,REDACTED PERSONAL INFORMATION,REDACTED PERSONAL INFORMATION
North East Lincolnshire Council,http://statistics.data.gov.uk/id/local-authority/00FC),Children & Family Services,Ass Dir - Education,Sen/Inclusion,Other Local Authorities,Third Pp - Other Local Auth,PC101,10/06/2020,624655,27768.6,REVENUE,REDACTED PERSONAL INFORMATION,REDACTED PERSONAL INFORMATION
North East Lincolnshire Council,http://statistics.data.gov.uk/id/local-authority/00FC),Children & Family Services,Ass Dir - Education,Sen/Inclusion,Other Local Authorities,Third Pp - Other Local Auth,PC101,10/06/2020,624662,3984.67,REVENUE,REDACTED PERSONAL INFORMATION,REDACTED PERSONAL INFORMATION
North East Lincolnshire Council,http://statistics.data.gov.uk/id/local-authority/00FC),Children & Family Services,Ass Dir - Education,Sen/Inclusion,Other Local Authorities,Third Pp - Other Local Auth,PC101,10/06/2020,624663,3984.67,REVENUE,REDACTED PERSONAL INFORMATION,REDACTED PERSONAL INFORMATION
North East Lincolnshire Council,http://statistics.data.gov.uk/id/local-authority/00FC),Children & Family Services,Ass Dir - Education,Sen/Inclusion,Other Local Authorities,Third Pp - Other Local Auth,PC101,10/06/2020,624663,3984.67,REVENUE,REDACTED PERSONAL INFORMATION,REDACTED PERSONAL INFORMATION
North East Lincolnshire Council,http://statistics.data.gov.uk/id/local-authority/00FC),Children & Family Services,Ass Dir - Education,Sen/Inclusion,Other Local Authorities,Third Pp - Other Local Auth,PC101,10/06/2020,624660,1755.56,REVENUE,REDACTED PERSONAL INFORMATION,REDACTED PERSONAL INFORMATION
North East Lincolnshire Council,http://statistics.data.gov.uk/id/local-authority/00FC),Children & Family Services,Ass Dir - Education,Sen/Inclusion,Other Local Authorities,Third Pp - Other Local Auth,PC101,10/06/2020,624663,3355.56,REVENUE,REDACTED PERSONAL INFORMATION,REDACTED PERSONAL INFORMATION
North East Lincolnshire Council,http://statistics.data.gov.uk/id/local-authority/00FC),Children & Family Services,Ass Dir - Education,Sen/Inclusion,Other Local Authorities,Third Pp - Other Local Auth,PC101,10/06/2020,624663,3984.67,REVENUE,REDACTED PERSONAL INFORMATION,REDACTED PERSONAL INFORMATION
North East Lincolnshire Council,http://statistics.data.gov.uk/id/local-authority/00FC),Children & Family Services,Ass Dir - Education,Sen/Inclusion,Other Local Authorities,Third Pp - Other Local Auth,PC101,10/06/2020,624661,4611.67,REVENUE,REDACTED PERSONAL INFORMATION,REDACTED PERSONAL INFORMATION
North East Lincolnshire Council,http://statistics.data.gov.uk/id/local-authority/00FC),Children & Family Services,Ass Dir - Education,Sen/Inclusion,Other Local Authorities,Third Pp - Other Local Auth,PC101,10/06/2020,624636,140368.5,REVENUE,REDACTED PERSONAL INFORMATION,REDACTED PERSONAL INFORMATION
North East Lincolnshire Council,http://statistics.data.gov.uk/id/local-authority/00FC),Children & Family Services,Ass Dir - Education,Sen/Inclusion,Private Contractors,Third Party Prov - Private,PH101,12/06/2020,625197,2894.65,REVENUE,REDACTED PERSONAL INFORMATION,REDACTED PERSONAL INFORMATION
North East Lincolnshire Council,http://statistics.data.gov.uk/id/local-authority/00FC),Children & Family Services,Ass Dir - Education,Sen/Inclusion,Private Contractors,Third Party Prov - Private,PH101,12/06/2020,625198,3947.25,REVENUE,REDACTED PERSONAL INFORMATION,REDACTED PERSONAL INFORMATION
North East Lincolnshire Council,http://statistics.data.gov.uk/id/local-authority/00FC),Children & Family Services,Ass Dir - Education,Sen/Inclusion,Private Contractors,Third Party Prov - Private,PH101,16/06/2020,625299,3300,REVENUE,REDACTED PERSONAL INFORMATION,REDACTED PERSONAL INFORMATION
North East Lincolnshire Council,http://statistics.data.gov.uk/id/local-authority/00FC),Children & Family Services,Ass Dir - Education,Sen/Inclusion,Private Contractors,Third Party Prov - Private,PH101,15/06/2020,625313,20000,REVENUE,REDACTED PERSONAL INFORMATION,REDACTED PERSONAL INFORMATION
North East Lincolnshire Council,http://statistics.data.gov.uk/id/local-authority/00FC),Children & Family Services,Ass Dir - Education,Sen/Inclusion,Private Contractors,Third Party Prov - Private,PH101,15/06/2020,625297,15443.75,REVENUE,REDACTED PERSONAL INFORMATION,REDACTED PERSONAL INFORMATION
North East Lincolnshire Council,http://statistics.data.gov.uk/id/local-authority/00FC),Children & Family Services,Ass Dir - Education,Sen/Inclusion,Private Contractors,Third Party Prov - Private,PH101,15/06/2020,625295,16215.92,REVENUE,REDACTED PERSONAL INFORMATION,REDACTED PERSONAL INFORMATION
North East Lincolnshire Council,http://statistics.data.gov.uk/id/local-authority/00FC),Children & Family Services,Ass Dir - Education,Sen/Inclusion,Private Contractors,Third Party Prov - Private,PH101,22/06/2020,626312,11104,REVENUE,REDACTED PERSONAL INFORMATION,REDACTED PERSONAL INFORMATION
North East Lincolnshire Council,http://statistics.data.gov.uk/id/local-authority/00FC),Children & Family Services,Ass Dir - Education,Sen/Inclusion,Private Contractors,Third Party Prov - Private,PH101,22/06/2020,626323,13483.43,REVENUE,REDACTED PERSONAL INFORMATION,REDACTED PERSONAL INFORMATION
North East Lincolnshire Council,http://statistics.data.gov.uk/id/local-authority/00FC),Children & Family Services,Ass Dir - Education,Sen/Inclusion,Private Contractors,Third Party Prov - Private,PH101,22/06/2020,626311,27147.14,REVENUE,REDACTED PERSONAL INFORMATION,REDACTED PERSONAL INFORMATION
North East Lincolnshire Council,http://statistics.data.gov.uk/id/local-authority/00FC),Children & Family Services,Ass Dir - Education,Sen/Inclusion,Private Contractors,Third Party Prov - Private,PH101,01/06/2020,623453,9046.57,REVENUE,REDACTED PERSONAL INFORMATION,REDACTED PERSONAL INFORMATION
North East Lincolnshire Council,http://statistics.data.gov.uk/id/local-authority/00FC),Children & Family Services,Ass Dir - Education,Sen/Inclusion,Private Contractors,Third Party Prov - Private,PH101,15/06/2020,625332,15000,REVENUE,REDACTED PERSONAL INFORMATION,REDACTED PERSONAL INFORMATION
North East Lincolnshire Council,http://statistics.data.gov.uk/id/local-authority/00FC),Children & Family Services,Ass Dir - Education,Sen/Inclusion,Private Contractors,Third Party Prov - Private,PH101,01/06/2020,623454,15069.71,REVENUE,REDACTED PERSONAL INFORMATION,REDACTED PERSONAL INFORMATION
North East Lincolnshire Council,http://statistics.data.gov.uk/id/local-authority/00FC),Children & Family Services,Ass Dir - Education,Sen/Inclusion,Private Contractors,Third Party Prov - Private,PH101,01/06/2020,623427,16215.92,REVENUE,REDACTED PERSONAL INFORMATION,REDACTED PERSONAL INFORMATION
North East Lincolnshire Council,http://statistics.data.gov.uk/id/local-authority/00FC),Children & Family Services,Ass Dir - Education,Sen/Inclusion,Private Contractors,Third Party Prov - Private,PH101,01/06/2020,623428,8321.25,REVENUE,REDACTED PERSONAL INFORMATION,REDACTED PERSONAL INFORMATION
North East Lincolnshire Council,http://statistics.data.gov.uk/id/local-authority/00FC),Children & Family Services,Ass Dir - Education,Sen/Inclusion,Private Contractors,Third Party Prov - Private,PH101,01/06/2020,623422,17515,REVENUE,REDACTED PERSONAL INFORMATION,REDACTED PERSONAL INFORMATION
North East Lincolnshire Council,http://statistics.data.gov.uk/id/local-authority/00FC),Children & Family Services,Ass Dir - Education,Sen/Inclusion,Private Contractors,Third Party Prov - Private,PH101,10/06/2020,624673,8228.28,REVENUE,REDACTED PERSONAL INFORMATION,REDACTED PERSONAL INFORMATION
North East Lincolnshire Council,http://statistics.data.gov.uk/id/local-authority/00FC),Children & Family Services,Ass Dir - Education,Sen/Inclusion,Private Contractors,Third Party Prov - Private,PH101,10/06/2020,624670,5400,REVENUE,REDACTED PERSONAL INFORMATION,REDACTED PERSONAL INFORMATION
North East Lincolnshire Council,http://statistics.data.gov.uk/id/local-authority/00FC),Children & Family Services,Ass Dir - Education,Sen/Inclusion,Private Contractors,Third Party Prov - Private,PH101,10/06/2020,624677,17492.68,REVENUE,REDACTED PERSONAL INFORMATION,REDACTED PERSONAL INFORMATION
North East Lincolnshire Council,http://statistics.data.gov.uk/id/local-authority/00FC),Children & Family Services,Ass Dir - Education,Sen/Inclusion,Private Contractors,Third Party Prov - Private,PH101,10/06/2020,624678,17692.01,REVENUE,REDACTED PERSONAL INFORMATION,REDACTED PERSONAL INFORMATION
North East Lincolnshire Council,http://statistics.data.gov.uk/id/local-authority/00FC),Children & Family Services,Ass Dir - Education,Sen/Inclusion,Private Contractors,Third Party Prov - Private,PH101,10/06/2020,624654,15996,REVENUE,REDACTED PERSONAL INFORMATION,REDACTED PERSONAL INFORMATION
North East Lincolnshire Council,http://statistics.data.gov.uk/id/local-authority/00FC),Children & Family Services,Ass Dir - Education,Sen/Inclusion,Private Contractors,Third Party Prov - Private,PH101,10/06/2020,624653,15500,REVENUE,REDACTED PERSONAL INFORMATION,REDACTED PERSONAL INFORMATION
North East Lincolnshire Council,http://statistics.data.gov.uk/id/local-authority/00FC),Children & Family Services,Ass Dir - Education,Sen/Inclusion,Private Contractors,Third Party Prov - Private,PH101,10/06/2020,624686,10184.19,REVENUE,REDACTED PERSONAL INFORMATION,REDACTED PERSONAL INFORMATION
North East Lincolnshire Council,http://statistics.data.gov.uk/id/local-authority/00FC),Children & Family Services,Ass Dir - Education,Sen/Inclusion,Private Contractors,Third Party Prov - Private,PH101,10/06/2020,624681,14804.71,REVENUE,REDACTED PERSONAL INFORMATION,REDACTED PERSONAL INFORMATION
North East Lincolnshire Council,http://statistics.data.gov.uk/id/local-authority/00FC),Children & Family Services,Ass Dir - Education,Sen/Inclusion,Private Contractors,Third Party Prov - Private,PH101,10/06/2020,624682,14804.71,REVENUE,REDACTED PERSONAL INFORMATION,REDACTED PERSONAL INFORMATION
North East Lincolnshire Council,http://statistics.data.gov.uk/id/local-authority/00FC),Children & Family Services,Ass Dir - Education,Sen/Inclusion,Private Contractors,Third Party Prov - Private,PH101,10/06/2020,624668,12025,REVENUE,REDACTED PERSONAL INFORMATION,REDACTED PERSONAL INFORMATION
North East Lincolnshire Council,http://statistics.data.gov.uk/id/local-authority/00FC),Children & Family Services,Ass Dir - Education,Sen/Inclusion,Private Contractors,Third Party Prov - Private,PH101,10/06/2020,624669,13458.43,REVENUE,REDACTED PERSONAL INFORMATION,REDACTED PERSONAL INFORMATION
North East Lincolnshire Council,http://statistics.data.gov.uk/id/local-authority/00FC),Children & Family Services,Ass Dir - Education,Sen/Inclusion,Private Contractors,Third Party Prov - Private,PH101,10/06/2020,624658,24992.86,REVENUE,REDACTED PERSONAL INFORMATION,REDACTED PERSONAL INFORMATION
North East Lincolnshire Council,http://statistics.data.gov.uk/id/local-authority/00FC),Children & Family Services,Ass Dir - Education,Sen/Inclusion,Private Contractors,Third Party Prov - Private,PH101,10/06/2020,624665,17215.8,REVENUE,REDACTED PERSONAL INFORMATION,REDACTED PERSONAL INFORMATION
North East Lincolnshire Council,http://statistics.data.gov.uk/id/local-authority/00FC),Children & Family Services,Ass Dir - Education,Sen/Inclusion,Private Contractors,Third Party Prov - Private,PH101,10/06/2020,624666,2295.44,REVENUE,REDACTED PERSONAL INFORMATION,REDACTED PERSONAL INFORMATION
North East Lincolnshire Council,http://statistics.data.gov.uk/id/local-authority/00FC),Children & Family Services,Ass Dir - Education,Sen/Inclusion,Private Contractors,Third Party Prov - Private,PH101,10/06/2020,624664,17789.66,REVENUE,REDACTED PERSONAL INFORMATION,REDACTED PERSONAL INFORMATION
North East Lincolnshire Council,http://statistics.data.gov.uk/id/local-authority/00FC),Children & Family Services,Ass Dir - Education,Sen/Inclusion,Private Contractors,Third Party Prov - Private,PH101,10/06/2020,624685,15443.75,REVENUE,REDACTED PERSONAL INFORMATION,REDACTED PERSONAL INFORMATION
North East Lincolnshire Council,http://statistics.data.gov.uk/id/local-authority/00FC),Children & Family Services,Ass Dir - Education,Sen/Inclusion,Private Contractors,Third Party Prov - Private,PH101,10/06/2020,624667,26271.43,REVENUE,REDACTED PERSONAL INFORMATION,REDACTED PERSONAL INFORMATION
North East Lincolnshire Council,http://statistics.data.gov.uk/id/local-authority/00FC),Children & Family Services,Ass Dir - Education,Sen/Inclusion,Private Contractors,Third Party Prov - Private,PH101,10/06/2020,624652,18428.57,REVENUE,REDACTED PERSONAL INFORMATION,REDACTED PERSONAL INFORMATION
North East Lincolnshire Council,http://statistics.data.gov.uk/id/local-authority/00FC),Children & Family Services,Ass Dir - Education,Sen/Inclusion,Private Contractors,Third Party Prov - Private,PH101,10/06/2020,624651,19042.85,REVENUE,REDACTED PERSONAL INFORMATION,REDACTED PERSONAL INFORMATION
North East Lincolnshire Council,http://statistics.data.gov.uk/id/local-authority/00FC),Children & Family Services,Ass Dir - Education,Sen/Inclusion,Private Contractors,Third Party Prov - Private,PH101,10/06/2020,624680,17631.02,REVENUE,REDACTED PERSONAL INFORMATION,REDACTED PERSONAL INFORMATION
North East Lincolnshire Council,http://statistics.data.gov.uk/id/local-authority/00FC),Children & Family Services,Ass Dir - Education,Sen/Inclusion,Private Contractors,Third Party Prov - Private,PH101,10/06/2020,624662,4731.11,REVENUE,REDACTED PERSONAL INFORMATION,REDACTED PERSONAL INFORMATION
North East Lincolnshire Council,http://statistics.data.gov.uk/id/local-authority/00FC),Children & Family Services,Ass Dir - Education,Sen/Inclusion,Private Contractors,Third Party Prov - Private,PH101,10/06/2020,624661,2837.33,REVENUE,REDACTED PERSONAL INFORMATION,REDACTED PERSONAL INFORMATION
North East Lincolnshire Council,http://statistics.data.gov.uk/id/local-authority/00FC),Children & Family Services,Ass Dir - Education,Sen/Inclusion,Private Contractors,Third Party Prov - Private,PH101,10/06/2020,624648,8960,REVENUE,REDACTED PERSONAL INFORMATION,REDACTED PERSONAL INFORMATION
North East Lincolnshire Council,http://statistics.data.gov.uk/id/local-authority/00FC),Children & Family Services,Ass Dir - Education,Sen/Inclusion,Private Contractors,Third Party Prov - Private,PH101,10/06/2020,624650,2800,REVENUE,REDACTED PERSONAL INFORMATION,REDACTED PERSONAL INFORMATION
North East Lincolnshire Council,http://statistics.data.gov.uk/id/local-authority/00FC),Children & Family Services,Ass Dir - Education,Sen/Inclusion,Miscellaneous Expenses,Contingency Reserve,LL123,23/06/2020,626341,8550,REVENUE,THE CAMBRIDGE PARK ACADEMY,107472
North East Lincolnshire Council,http://statistics.data.gov.uk/id/local-authority/00FC),Children & Family Services,Ass Dir - Education,Sen/Inclusion,Miscellaneous Expenses,Contingency Reserve,LL123,19/06/2020,626226,5141.34,REVENUE,TOLL BAR ACADEMY,114560
North East Lincolnshire Council,http://statistics.data.gov.uk/id/local-authority/00FC),Children & Family Services,Ass Dir - Education,Sen/Inclusion,Miscellaneous Expenses,Contingency Reserve,LL123,19/06/2020,626215,1959.75,REVENUE,OLD CLEE PRIMARY ACADEMY,119822
North East Lincolnshire Council,http://statistics.data.gov.uk/id/local-authority/00FC),Children & Family Services,Ass Dir - Education,Sen/Inclusion,Miscellaneous Expenses,Other Expenses General,LL119,23/06/2020,626347,4654,REVENUE,PHOENIX PARK ACADEMY,126685
North East Lincolnshire Council,http://statistics.data.gov.uk/id/local-authority/00FC),Children & Family Services,Ass Dir - Education,Sen/Inclusion,Car Allowances,Travel - Employees,JF101,19/06/2020,626209,700,REVENUE,THE ASSOC OF EDUCATIONAL PSYCHOLOGISTS,145963
North East Lincolnshire Council,http://statistics.data.gov.uk/id/local-authority/00FC),Children & Family Services,Ass Dir - Education,Sen/Inclusion,Contributions To Provisions,Contributions - Other,LK103,15/06/2020,625384,23989.5,REVENUE,BARNARDO SERVICES LTD,101050
North East Lincolnshire Council,http://statistics.data.gov.uk/id/local-authority/00FC),Children & Family Services,Ass Dir - Education,Sen/Inclusion,Contributions To Provisions,Contributions - Other,LK103,22/06/2020,626288,1959.37,REVENUE,PC WORLD BUSINESS,126074
North East Lincolnshire Council,http://statistics.data.gov.uk/id/local-authority/00FC),Children & Family Services,Ass Dir - Education,Sen/Inclusion,Direct Employee Expenses,Agency Staff,EA105,02/06/2020,801423,350,REVENUE,REDACTED PERSONAL INFORMATION,REDACTED PERSONAL INFORMATION
North East Lincolnshire Council,http://statistics.data.gov.uk/id/local-authority/00FC),Children & Family Services,Ass Dir - Education,Sen/Inclusion,Direct Employee Expenses,Agency Staff,EA105,12/06/2020,805116,257.5,REVENUE,REDACTED PERSONAL INFORMATION,REDACTED PERSONAL INFORMATION
North East Lincolnshire Council,http://statistics.data.gov.uk/id/local-authority/00FC),Children & Family Services,Ass Dir - Education,Sen/Inclusion,Indirect Employee Expenses,Staff Training,EB122,30/06/2020,627523,300,REVENUE,CREATIVE EDUCATION LTD,102883
North East Lincolnshire Council,http://statistics.data.gov.uk/id/local-authority/00FC),Children & Family Services,Ass Dir - Education,Sen/Inclusion,Grants And Subscriptions,Subscriptions,LJ101,19/06/2020,626203,257.45,REVENUE,TWINKL LTD,130830
North East Lincolnshire Council,http://statistics.data.gov.uk/id/local-authority/00FC),Children & Family Services,Ass Dir - Education,Sen/Inclusion,Rep Alterations Maint Building,Buildings - Repairs And Maint,GA102,16/06/2020,625174,1090,REVENUE,LINCS ELECTRICAL SERVICES LTD,102044
North East Lincolnshire Council,http://statistics.data.gov.uk/id/local-authority/00FC),Children & Family Services,Ass Dir - Education,Sen/Inclusion,Private Contractors,Third Party Prov - Private,PH101,22/06/2020,807366,620.36,REVENUE,REDACTED PERSONAL INFORMATION,REDACTED PERSONAL INFORMATION
North East Lincolnshire Council,http://statistics.data.gov.uk/id/local-authority/00FC),Children & Family Services,Ass Dir - Education,Sen/Inclusion,Private Contractors,Third Party Prov - Private,PH101,12/06/2020,625199,5595,REVENUE,REDACTED PERSONAL INFORMATION,REDACTED PERSONAL INFORMATION
North East Lincolnshire Council,http://statistics.data.gov.uk/id/local-authority/00FC),Children & Family Services,Ass Dir - Education,Sen/Inclusion,Private Contractors,Third Party Prov - Private,PH101,10/06/2020,624781,13100,REVENUE,REDACTED PERSONAL INFORMATION,REDACTED PERSONAL INFORMATION
North East Lincolnshire Council,http://statistics.data.gov.uk/id/local-authority/00FC),Children & Family Services,Ass Dir - Education,Sen/Inclusion,Private Contractors,Third Party Prov - Private,PH101,16/06/2020,625762,666.72,REVENUE,REDACTED PERSONAL INFORMATION,REDACTED PERSONAL INFORMATION
North East Lincolnshire Council,http://statistics.data.gov.uk/id/local-authority/00FC),Children & Family Services,Ass Dir - Education,Sen/Inclusion,Private Contractors,Third Party Prov - Private,PH101,10/06/2020,624671,333.36,REVENUE,REDACTED PERSONAL INFORMATION,REDACTED PERSONAL INFORMATION
North East Lincolnshire Council,http://statistics.data.gov.uk/id/local-authority/00FC),Children & Family Services,Ass Dir - Education,Sen/Inclusion,Private Contractors,Third Party Prov - Private,PH101,10/06/2020,624679,8055,REVENUE,REDACTED PERSONAL INFORMATION,REDACTED PERSONAL INFORMATION
North East Lincolnshire Council,http://statistics.data.gov.uk/id/local-authority/00FC),Children & Family Services,Ass Dir - Education,Sen/Inclusion,Private Contractors,Third Party Prov - Private,PH101,10/06/2020,624659,1732,REVENUE,REDACTED PERSONAL INFORMATION,REDACTED PERSONAL INFORMATION
North East Lincolnshire Council,http://statistics.data.gov.uk/id/local-authority/00FC),Children & Family Services,Ass Dir - Education,Sen/Inclusion,Private Contractors,Third Party Prov - Private,PH101,10/06/2020,624657,4668.66,REVENUE,REDACTED PERSONAL INFORMATION,REDACTED PERSONAL INFORMATION
North East Lincolnshire Council,http://statistics.data.gov.uk/id/local-authority/00FC),Children & Family Services,Ass Dir - Education,Sen/Inclusion,Private Contractors,Third Party Prov - Private,PH101,10/06/2020,624672,611.16,REVENUE,REDACTED PERSONAL INFORMATION,REDACTED PERSONAL INFORMATION
North East Lincolnshire Council,http://statistics.data.gov.uk/id/local-authority/00FC),Children & Family Services,Ass Dir - Education,Sen/Inclusion,Miscellaneous Expenses,Contingency Reserve,LL123,23/06/2020,626348,1317,REVENUE,PHOENIX PARK ACADEMY,126685
North East Lincolnshire Council,http://statistics.data.gov.uk/id/local-authority/00FC),Children & Family Services,Ass Dir - Education,Sen/Inclusion,Miscellaneous Expenses,Contingency Reserve,LL123,23/06/2020,626350,15800,REVENUE,PHOENIX PARK ACADEMY,126685
North East Lincolnshire Council,http://statistics.data.gov.uk/id/local-authority/00FC),Children & Family Services,Ass Dir - Education,Sen/Inclusion,Miscellaneous Expenses,Contingency Reserve,LL123,23/06/2020,626349,44767,REVENUE,PHOENIX PARK ACADEMY,126685
North East Lincolnshire Council,http://statistics.data.gov.uk/id/local-authority/00FC),Children & Family Services,Ass Dir - Education,Sen/Inclusion,Miscellaneous Expenses,Contingency Reserve,LL123,23/06/2020,626352,26333,REVENUE,SEVENHILLS ACADEMY,128660
North East Lincolnshire Council,http://statistics.data.gov.uk/id/local-authority/00FC),Children & Family Services,Ass Dir - Education,Sen/Inclusion,Miscellaneous Expenses,Contingency Reserve,LL123,23/06/2020,626351,26333,REVENUE,SEVENHILLS ACADEMY,128660
North East Lincolnshire Council,http://statistics.data.gov.uk/id/local-authority/00FC),Children & Family Services,Ass Dir - Education,Sen/Inclusion,Contributions To Provisions,Contributions - Other,LK103,23/06/2020,626468,125979,REVENUE,BEACON ACADEMY,138130
North East Lincolnshire Council,http://statistics.data.gov.uk/id/local-authority/00FC),Children & Family Services,Ass Dir - Education,Sen/Inclusion,Contributions To Provisions,Contributions - Other,LK103,23/06/2020,626445,21106,REVENUE,BURSAR PRIMARY ACADEMY,114977
North East Lincolnshire Council,http://statistics.data.gov.uk/id/local-authority/00FC),Children & Family Services,Ass Dir - Education,Sen/Inclusion,Contributions To Provisions,Contributions - Other,LK103,23/06/2020,626426,22875,REVENUE,CLEETHORPES ACADEMY,102713
North East Lincolnshire Council,http://statistics.data.gov.uk/id/local-authority/00FC),Children & Family Services,Ass Dir - Education,Sen/Inclusion,Contributions To Provisions,Contributions - Other,LK103,23/06/2020,626456,13334,REVENUE,CANON PETER HALL CE PRIMARY ACADEMY,126646
North East Lincolnshire Council,http://statistics.data.gov.uk/id/local-authority/00FC),Children & Family Services,Ass Dir - Education,Sen/Inclusion,Contributions To Provisions,Contributions - Other,LK103,23/06/2020,626451,17215,REVENUE,EASTFIELD PRIMARY ACADEMY,121907
North East Lincolnshire Council,http://statistics.data.gov.uk/id/local-authority/00FC),Children & Family Services,Ass Dir - Education,Sen/Inclusion,Contributions To Provisions,Contributions - Other,LK103,23/06/2020,626438,45340,REVENUE,EDWARD HENEAGE PRIMARY (ACADEMY),111742
North East Lincolnshire Council,http://statistics.data.gov.uk/id/local-authority/00FC),Children & Family Services,Ass Dir - Education,Sen/Inclusion,Contributions To Provisions,Contributions - Other,LK103,23/06/2020,626460,30815,REVENUE,ELLISTON PRIMARY ACADEMY,129629
North East Lincolnshire Council,http://statistics.data.gov.uk/id/local-authority/00FC),Children & Family Services,Ass Dir - Education,Sen/Inclusion,Contributions To Provisions,Contributions - Other,LK103,23/06/2020,626462,17880,REVENUE,ENFIELD ACADEMY OF NEW WALTHAM,131526
North East Lincolnshire Council,http://statistics.data.gov.uk/id/local-authority/00FC),Children & Family Services,Ass Dir - Education,Sen/Inclusion,Contributions To Provisions,Contributions - Other,LK103,23/06/2020,626459,32720,REVENUE,FAIRFIELD PRIMARY ACADEMY,129030
North East Lincolnshire Council,http://statistics.data.gov.uk/id/local-authority/00FC),Children & Family Services,Ass Dir - Education,Sen/Inclusion,Contributions To Provisions,Contributions - Other,LK103,23/06/2020,626465,18966,REVENUE,GREAT COATES PRIMARY ACADEMY,134467
North East Lincolnshire Council,http://statistics.data.gov.uk/id/local-authority/00FC),Children & Family Services,Ass Dir - Education,Sen/Inclusion,Contributions To Provisions,Contributions - Other,LK103,23/06/2020,626424,31263,REVENUE,HAVELOCK ACADEMY,101968
North East Lincolnshire Council,http://statistics.data.gov.uk/id/local-authority/00FC),Children & Family Services,Ass Dir - Education,Sen/Inclusion,Contributions To Provisions,Contributions - Other,LK103,23/06/2020,626425,54754,REVENUE,HEALING SCIENCE ACADEMY LTD,102702
North East Lincolnshire Council,http://statistics.data.gov.uk/id/local-authority/00FC),Children & Family Services,Ass Dir - Education,Sen/Inclusion,Contributions To Provisions,Contributions - Other,LK103,23/06/2020,626457,39896,REVENUE,HEALING PRIMARY ACADEMY,127192
North East Lincolnshire Council,http://statistics.data.gov.uk/id/local-authority/00FC),Children & Family Services,Ass Dir - Education,Sen/Inclusion,Contributions To Provisions,Contributions - Other,LK103,23/06/2020,626455,37599,REVENUE,HUMBERSTON CLOVERFIELDS ACADEMY SCHOOL,125655
North East Lincolnshire Council,http://statistics.data.gov.uk/id/local-authority/00FC),Children & Family Services,Ass Dir - Education,Sen/Inclusion,Contributions To Provisions,Contributions - Other,LK103,23/06/2020,626429,70346,REVENUE,HUMBERSTON ACADEMY,106067
North East Lincolnshire Council,http://statistics.data.gov.uk/id/local-authority/00FC),Children & Family Services,Ass Dir - Education,Sen/Inclusion,Contributions To Provisions,Contributions - Other,LK103,23/06/2020,626430,51074,REVENUE,JOHN WHITGIFT ACADEMY,106898
North East Lincolnshire Council,http://statistics.data.gov.uk/id/local-authority/00FC),Children & Family Services,Ass Dir - Education,Sen/Inclusion,Contributions To Provisions,Contributions - Other,LK103,23/06/2020,626454,12913,REVENUE,LACEBY ACRES ACADEMY,124644
North East Lincolnshire Council,http://statistics.data.gov.uk/id/local-authority/00FC),Children & Family Services,Ass Dir - Education,Sen/Inclusion,Contributions To Provisions,Contributions - Other,LK103,23/06/2020,626431,80211,REVENUE,LISLE MARSDEN C OF E PRIMARY ACADEMY,107922
North East Lincolnshire Council,http://statistics.data.gov.uk/id/local-authority/00FC),Children & Family Services,Ass Dir - Education,Sen/Inclusion,Contributions To Provisions,Contributions - Other,LK103,23/06/2020,626464,43190,REVENUE,LITTLECOATES PRIMARY ACADEMY,134261
North East Lincolnshire Council,http://statistics.data.gov.uk/id/local-authority/00FC),Children & Family Services,Ass Dir - Education,Sen/Inclusion,Contributions To Provisions,Contributions - Other,LK103,23/06/2020,626441,53131,REVENUE,MACAULAY PRIMARY ACADEMY,112680
North East Lincolnshire Council,http://statistics.data.gov.uk/id/local-authority/00FC),Children & Family Services,Ass Dir - Education,Sen/Inclusion,Contributions To Provisions,Contributions - Other,LK103,23/06/2020,626444,16424,REVENUE,MIDDLETHORPE PRIMARY ACADEMY,114833
North East Lincolnshire Council,http://statistics.data.gov.uk/id/local-authority/00FC),Children & Family Services,Ass Dir - Education,Sen/Inclusion,Contributions To Provisions,Contributions - Other,LK103,23/06/2020,626432,26350,REVENUE,NEW WALTHAM ACADEMY,108556
North East Lincolnshire Council,http://statistics.data.gov.uk/id/local-authority/00FC),Children & Family Services,Ass Dir - Education,Sen/Inclusion,Contributions To Provisions,Contributions - Other,LK103,23/06/2020,626423,69474,REVENUE,OASIS ACADEMY IMMINGHAM,101947
North East Lincolnshire Council,http://statistics.data.gov.uk/id/local-authority/00FC),Children & Family Services,Ass Dir - Education,Sen/Inclusion,Contributions To Provisions,Contributions - Other,LK103,23/06/2020,626453,28501,REVENUE,OASIS ACADEMY SCHOOL (NUNSTHORPE SCHOOL),122861
North East Lincolnshire Council,http://statistics.data.gov.uk/id/local-authority/00FC),Children & Family Services,Ass Dir - Education,Sen/Inclusion,Contributions To Provisions,Contributions - Other,LK103,23/06/2020,626422,99162,REVENUE,OASIS ACADEMY WINTRINGHAM,101939
North East Lincolnshire Council,http://statistics.data.gov.uk/id/local-authority/00FC),Children & Family Services,Ass Dir - Education,Sen/Inclusion,Contributions To Provisions,Contributions - Other,LK103,23/06/2020,626449,7597,REVENUE,OLD CLEE PRIMARY ACADEMY,119822
North East Lincolnshire Council,http://statistics.data.gov.uk/id/local-authority/00FC),Children & Family Services,Ass Dir - Education,Sen/Inclusion,Contributions To Provisions,Contributions - Other,LK103,23/06/2020,626428,72835,REVENUE,ORMISTON MARITIME ACADEMY,106066
North East Lincolnshire Council,http://statistics.data.gov.uk/id/local-authority/00FC),Children & Family Services,Ass Dir - Education,Sen/Inclusion,Contributions To Provisions,Contributions - Other,LK103,23/06/2020,626452,7597,REVENUE,REYNOLDS PRIMARY ACADEMY,122175
North East Lincolnshire Council,http://statistics.data.gov.uk/id/local-authority/00FC),Children & Family Services,Ass Dir - Education,Sen/Inclusion,Contributions To Provisions,Contributions - Other,LK103,23/06/2020,626433,8464,REVENUE,SCARTHO JUNIOR ACADEMY,108738
North East Lincolnshire Council,http://statistics.data.gov.uk/id/local-authority/00FC),Children & Family Services,Ass Dir - Education,Sen/Inclusion,Contributions To Provisions,Contributions - Other,LK103,23/06/2020,626436,16405,REVENUE,SIGNHILLS INFANTS ACADEMY,110645
North East Lincolnshire Council,http://statistics.data.gov.uk/id/local-authority/00FC),Children & Family Services,Ass Dir - Education,Sen/Inclusion,Contributions To Provisions,Contributions - Other,LK103,23/06/2020,626427,16978,REVENUE,SIGNHILLS ACADEMY LTD,106065
North East Lincolnshire Council,http://statistics.data.gov.uk/id/local-authority/00FC),Children & Family Services,Ass Dir - Education,Sen/Inclusion,Contributions To Provisions,Contributions - Other,LK103,23/06/2020,626439,77582,REVENUE,ORMISTON SOUTH PARADE ACADEMY,111750
North East Lincolnshire Council,http://statistics.data.gov.uk/id/local-authority/00FC),Children & Family Services,Ass Dir - Education,Sen/Inclusion,Contributions To Provisions,Contributions - Other,LK103,23/06/2020,626461,24423,REVENUE,SPRINGFIELD PRIMARY ACADEMY,131306
North East Lincolnshire Council,http://statistics.data.gov.uk/id/local-authority/00FC),Children & Family Services,Ass Dir - Education,Sen/Inclusion,Contributions To Provisions,Contributions - Other,LK103,23/06/2020,626435,28141,REVENUE,ST JOSEPH'S RC PRIMARY ACADEMY,110066
North East Lincolnshire Council,http://statistics.data.gov.uk/id/local-authority/00FC),Children & Family Services,Ass Dir - Education,Sen/Inclusion,Contributions To Provisions,Contributions - Other,LK103,23/06/2020,626447,6045,REVENUE,ST MARYS CATHOLIC PRIMARY VOLUNTARY ACADEMY,115108
North East Lincolnshire Council,http://statistics.data.gov.uk/id/local-authority/00FC),Children & Family Services,Ass Dir - Education,Sen/Inclusion,Contributions To Provisions,Contributions - Other,LK103,23/06/2020,626466,22083,REVENUE,ST PETERS COFE PRIMARY ACADEMY,134905
North East Lincolnshire Council,http://statistics.data.gov.uk/id/local-authority/00FC),Children & Family Services,Ass Dir - Education,Sen/Inclusion,Contributions To Provisions,Contributions - Other,LK103,23/06/2020,626440,21088,REVENUE,STRAND PRIMARY ACADEMY,111862
North East Lincolnshire Council,http://statistics.data.gov.uk/id/local-authority/00FC),Children & Family Services,Ass Dir - Education,Sen/Inclusion,Contributions To Provisions,Contributions - Other,LK103,23/06/2020,626448,21809,REVENUE,THRUNSCOE PRIMARY AND NURSERY ACADEMY,118749
North East Lincolnshire Council,http://statistics.data.gov.uk/id/local-authority/00FC),Children & Family Services,Ass Dir - Education,Sen/Inclusion,Contributions To Provisions,Contributions - Other,LK103,23/06/2020,626443,41436,REVENUE,TOLL BAR ACADEMY,114560
North East Lincolnshire Council,http://statistics.data.gov.uk/id/local-authority/00FC),Children & Family Services,Ass Dir - Education,Sen/Inclusion,Contributions To Provisions,Contributions - Other,LK103,23/06/2020,626434,27304,REVENUE,WALTHAM LEAS PRIMARY ACADEMY,109335
North East Lincolnshire Council,http://statistics.data.gov.uk/id/local-authority/00FC),Children & Family Services,Ass Dir - Education,Sen/Inclusion,Contributions To Provisions,Contributions - Other,LK103,23/06/2020,626437,20794,REVENUE,WEELSBY ACADEMY,111161
North East Lincolnshire Council,http://statistics.data.gov.uk/id/local-authority/00FC),Children & Family Services,Ass Dir - Education,Sen/Inclusion,Contributions To Provisions,Contributions - Other,LK103,23/06/2020,626458,60834,REVENUE,WELHOLME ACADEMY,127227
North East Lincolnshire Council,http://statistics.data.gov.uk/id/local-authority/00FC),Children & Family Services,Ass Dir - Education,Sen/Inclusion,Contributions To Provisions,Contributions - Other,LK103,23/06/2020,626467,13256,REVENUE,WILLIAM BARCROFT JUNIOR ACADEMY,136302
North East Lincolnshire Council,http://statistics.data.gov.uk/id/local-authority/00FC),Children & Family Services,Ass Dir - Education,Sen/Inclusion,Contributions To Provisions,Contributions - Other,LK103,23/06/2020,626450,9432,REVENUE,WILLOWS PRIMARY ACADEMY,120478
North East Lincolnshire Council,http://statistics.data.gov.uk/id/local-authority/00FC),Children & Family Services,Ass Dir - Education,Sen/Inclusion,Contributions To Provisions,Contributions - Other,LK103,23/06/2020,626463,9984,REVENUE,WOODLANDS ACADEMY,132649
North East Lincolnshire Council,http://statistics.data.gov.uk/id/local-authority/00FC),Children & Family Services,Ass Dir - Education,Sen/Inclusion,Contributions To Provisions,Contributions - Other,LK103,23/06/2020,626446,37182,REVENUE,WYBERS WOOD PRIMARY ACADEMY,115078
North East Lincolnshire Council,http://statistics.data.gov.uk/id/local-authority/00FC),Children & Family Services,Ass Dir - Education,Sen/Inclusion,Contributions To Provisions,Contributions - Other,LK103,23/06/2020,626442,49764,REVENUE,YARBOROUGH ACADEMY,112852
North East Lincolnshire Council,http://statistics.data.gov.uk/id/local-authority/00FC),Children & Family Services,Ass Dir - Education,Sen/Inclusion,Contributions To Provisions,Contributions - Third Sector,LK102,09/06/2020,804169,875,REVENUE,REDACTED PERSONAL INFORMATION,REDACTED PERSONAL INFORMATION
North East Lincolnshire Council,http://statistics.data.gov.uk/id/local-authority/00FC),Children & Family Services,Ass Dir - Education,Sen/Inclusion,Contributions To Provisions,Contributions - Third Sector,LK102,16/06/2020,806208,526.63,REVENUE,REDACTED PERSONAL INFORMATION,REDACTED PERSONAL INFORMATION
North East Lincolnshire Council,http://statistics.data.gov.uk/id/local-authority/00FC),Children & Family Services,Ass Dir - Education,Sen/Inclusion,Contributions To Provisions,Contributions - Third Sector,LK102,16/06/2020,806341,270,REVENUE,REDACTED PERSONAL INFORMATION,REDACTED PERSONAL INFORMATION
North East Lincolnshire Council,http://statistics.data.gov.uk/id/local-authority/00FC),Children & Family Services,Ass Dir - Education,Sen/Inclusion,Contributions To Provisions,Contributions - Third Sector,LK102,16/06/2020,625139,451,REVENUE,TEACHING PERSONNEL LTD,101305
North East Lincolnshire Council,http://statistics.data.gov.uk/id/local-authority/00FC),Children & Family Services,Ass Dir - Education,Sen/Inclusion,Contributions To Provisions,Contributions - Third Sector,LK102,12/06/2020,625136,799.68,REVENUE,TEACHING PERSONNEL LTD,101305
North East Lincolnshire Council,http://statistics.data.gov.uk/id/local-authority/00FC),Children & Family Services,Ass Dir - Education,Sen/Inclusion,Contributions To Provisions,Contributions - Third Sector,LK102,16/06/2020,625137,327.6,REVENUE,TEACHING PERSONNEL LTD,101305
North East Lincolnshire Council,http://statistics.data.gov.uk/id/local-authority/00FC),Children & Family Services,Ass Dir - Education,Sen/Inclusion,Contributions To Provisions,Contributions - Third Sector,LK102,16/06/2020,625138,451,REVENUE,TEACHING PERSONNEL LTD,101305
North East Lincolnshire Council,http://statistics.data.gov.uk/id/local-authority/00FC),Children & Family Services,Ass Dir - Education,Sen/Inclusion,Contributions To Provisions,Contributions - Third Sector,LK102,16/06/2020,625141,334.7,REVENUE,TEACHING PERSONNEL LTD,101305
North East Lincolnshire Council,http://statistics.data.gov.uk/id/local-authority/00FC),Children & Family Services,Ass Dir - Education,Sen/Inclusion,Contributions To Provisions,Contributions - Third Sector,LK102,12/06/2020,625200,350,REVENUE,CRICK SOFTWARE LTD,107260
North East Lincolnshire Council,http://statistics.data.gov.uk/id/local-authority/00FC),Children & Family Services,Ass Dir - Education,Sen/Inclusion,Contributions To Provisions,Contributions - Third Sector,LK102,12/06/2020,625201,1709.62,REVENUE,ERIN CLARKE,145644
North East Lincolnshire Council,http://statistics.data.gov.uk/id/local-authority/00FC),Children & Family Services,Ass Dir - Education,Sen/Inclusion,Contributions To Provisions,Contributions - Third Sector,LK102,10/06/2020,624676,436.8,REVENUE,TEACHING PERSONNEL LTD,101305
North East Lincolnshire Council,http://statistics.data.gov.uk/id/local-authority/00FC),Children & Family Services,Ass Dir - Education,Sen/Inclusion,Contributions To Provisions,Contributions - Third Sector,LK102,09/06/2020,624511,1538.75,REVENUE,ERIN CLARKE,145644
North East Lincolnshire Council,http://statistics.data.gov.uk/id/local-authority/00FC),Children & Family Services,Ass Dir - Education,Sen/Inclusion,Contributions To Provisions,Contributions - Third Sector,LK102,09/06/2020,624512,1603.83,REVENUE,ERIN CLARKE,145644
North East Lincolnshire Council,http://statistics.data.gov.uk/id/local-authority/00FC),Children & Family Services,Ass Dir - Education,Sen/Inclusion,Contributions To Provisions,Contributions - Third Sector,LK102,09/06/2020,624508,1709.62,REVENUE,ERIN CLARKE,145644
North East Lincolnshire Council,http://statistics.data.gov.uk/id/local-authority/00FC),Children & Family Services,Ass Dir - Education,Sen/Inclusion,Miscellaneous Expenses,Contingency Reserve,LL123,23/06/2020,626342,142929,REVENUE,THE CAMBRIDGE PARK ACADEMY,107472
North East Lincolnshire Council,http://statistics.data.gov.uk/id/local-authority/00FC),Children & Family Services,Ass Dir - Education,Sen/Inclusion,Miscellaneous Expenses,Contingency Reserve,LL123,23/06/2020,626343,112773,REVENUE,HUMBERSTON PARK SPECIAL SCHOOL,107911
North East Lincolnshire Council,http://statistics.data.gov.uk/id/local-authority/00FC),Children & Family Services,Ass Dir - Education,Sen/Inclusion,Miscellaneous Expenses,Other Expenses General,LL119,23/06/2020,626346,5833,REVENUE,EASTFIELD PRIMARY ACADEMY,121907
North East Lincolnshire Council,http://statistics.data.gov.uk/id/local-authority/00FC),Children & Family Services,Ass Dir - Education,Sen/Inclusion,Miscellaneous Expenses,Other Expenses General,LL119,23/06/2020,626344,1944.92,REVENUE,EASTFIELD PRIMARY ACADEMY,121907
North East Lincolnshire Council,http://statistics.data.gov.uk/id/local-authority/00FC),Children & Family Services,Ass Dir - Education,Sen/Inclusion,Miscellaneous Expenses,Other Expenses General,LL119,23/06/2020,626345,8750,REVENUE,EASTFIELD PRIMARY ACADEMY,121907
North East Lincolnshire Council,http://statistics.data.gov.uk/id/local-authority/00FC),Children & Family Services,Ass Dir - Education,Sen/Inclusion,Miscellaneous Expenses,Other Expenses General,LL119,16/06/2020,625300,5833,REVENUE,EASTFIELD PRIMARY ACADEMY,121907
North East Lincolnshire Council,http://statistics.data.gov.uk/id/local-authority/00FC),Children & Family Services,Ass Dir - Education,Sen/Inclusion,Miscellaneous Expenses,Other Expenses General,LL119,16/06/2020,625301,5833,REVENUE,EASTFIELD PRIMARY ACADEMY,121907
North East Lincolnshire Council,http://statistics.data.gov.uk/id/local-authority/00FC),Children & Family Services,Ass Dir - Education,School Improvement,Private Contractors,Day Care Placements,PH111,11/06/2020,804904,991.4,REVENUE,REDACTED PERSONAL INFORMATION,REDACTED PERSONAL INFORMATION
North East Lincolnshire Council,http://statistics.data.gov.uk/id/local-authority/00FC),Children & Family Services,Ass Dir - Education,School Improvement,Private Contractors,Day Care Placements,PH111,11/06/2020,624609,979.2,REVENUE,FOR UNDER FIVES LTD,100647
North East Lincolnshire Council,http://statistics.data.gov.uk/id/local-authority/00FC),Children & Family Services,Ass Dir - Education,School Improvement,Private Contractors,Day Care Placements,PH111,11/06/2020,804905,1224,REVENUE,REDACTED PERSONAL INFORMATION,REDACTED PERSONAL INFORMATION
North East Lincolnshire Council,http://statistics.data.gov.uk/id/local-authority/00FC),Children & Family Services,Ass Dir - Education,School Improvement,Private Contractors,Day Care Placements,PH111,11/06/2020,624605,1101.6,REVENUE,WALTHAM LEAS PRE-SCHOOL,108236
North East Lincolnshire Council,http://statistics.data.gov.uk/id/local-authority/00FC),Children & Family Services,Ass Dir - Education,School Improvement,Private Contractors,Day Care Placements,PH111,11/06/2020,624606,555.6,REVENUE,ST PETERS CHILDREN CENTRE,101322
North East Lincolnshire Council,http://statistics.data.gov.uk/id/local-authority/00FC),Children & Family Services,Ass Dir - Education,School Improvement,Private Contractors,Day Care Placements,PH111,11/06/2020,624607,1379.4,REVENUE,CLEETHORPES CHILDCARE,101591
North East Lincolnshire Council,http://statistics.data.gov.uk/id/local-authority/00FC),Children & Family Services,Ass Dir - Education,School Improvement,Private Contractors,Third Party Prov - Private,PH101,02/06/2020,623189,839.52,REVENUE,FOR UNDER FIVES LTD,100647
North East Lincolnshire Council,http://statistics.data.gov.uk/id/local-authority/00FC),Children & Family Services,Ass Dir - Education,School Improvement,Private Contractors,Third Party Prov - Private,PH101,02/06/2020,623263,763.2,REVENUE,BURSAR PRIMARY ACADEMY,111550
North East Lincolnshire Council,http://statistics.data.gov.uk/id/local-authority/00FC),Children & Family Services,Ass Dir - Education,School Improvement,Private Contractors,Third Party Prov - Private,PH101,02/06/2020,623230,4044.96,REVENUE,BUTTERFLIES DAY NURSERY,101694
North East Lincolnshire Council,http://statistics.data.gov.uk/id/local-authority/00FC),Children & Family Services,Ass Dir - Education,School Improvement,Private Contractors,Third Party Prov - Private,PH101,02/06/2020,623317,1144.8,REVENUE,CANON PETER HALL CE PRIMARY ACADEMY,126646
North East Lincolnshire Council,http://statistics.data.gov.uk/id/local-authority/00FC),Children & Family Services,Ass Dir - Education,School Improvement,Private Contractors,Third Party Prov - Private,PH101,02/06/2020,623187,1717.2,REVENUE,FOR UNDER FIVES LTD,100647
North East Lincolnshire Council,http://statistics.data.gov.uk/id/local-authority/00FC),Children & Family Services,Ass Dir - Education,School Improvement,Private Contractors,Third Party Prov - Private,PH101,02/06/2020,623205,381.6,REVENUE,THE CHILDRENS HOUSE,101141
North East Lincolnshire Council,http://statistics.data.gov.uk/id/local-authority/00FC),Children & Family Services,Ass Dir - Education,School Improvement,Private Contractors,Third Party Prov - Private,PH101,02/06/2020,623302,286.2,REVENUE,EASTFIELD PRIMARY ACADEMY,121907
North East Lincolnshire Council,http://statistics.data.gov.uk/id/local-authority/00FC),Children & Family Services,Ass Dir - Education,School Improvement,Private Contractors,Third Party Prov - Private,PH101,02/06/2020,623265,1240.2,REVENUE,EDWARD HENEAGE PRIMARY (ACADEMY),111742
North East Lincolnshire Council,http://statistics.data.gov.uk/id/local-authority/00FC),Children & Family Services,Ass Dir - Education,School Improvement,Private Contractors,Third Party Prov - Private,PH101,02/06/2020,623348,2194.2,REVENUE,ELLISTON PRIMARY ACADEMY,129629
North East Lincolnshire Council,http://statistics.data.gov.uk/id/local-authority/00FC),Children & Family Services,Ass Dir - Education,School Improvement,Private Contractors,Third Party Prov - Private,PH101,02/06/2020,623345,381.6,REVENUE,FREESTON TOTS PRESCHOOL,128592
North East Lincolnshire Council,http://statistics.data.gov.uk/id/local-authority/00FC),Children & Family Services,Ass Dir - Education,School Improvement,Private Contractors,Third Party Prov - Private,PH101,02/06/2020,623214,1621.8,REVENUE,FIRST STEPS GRIMSBY LIMITED,101411
North East Lincolnshire Council,http://statistics.data.gov.uk/id/local-authority/00FC),Children & Family Services,Ass Dir - Education,School Improvement,Private Contractors,Third Party Prov - Private,PH101,02/06/2020,623281,470.64,REVENUE,HUMBERSTON PRE SCHOOL,114491
North East Lincolnshire Council,http://statistics.data.gov.uk/id/local-authority/00FC),Children & Family Services,Ass Dir - Education,School Improvement,Private Contractors,Third Party Prov - Private,PH101,02/06/2020,623368,1621.8,REVENUE,GREAT COATES PRIMARY ACADEMY,134467
North East Lincolnshire Council,http://statistics.data.gov.uk/id/local-authority/00FC),Children & Family Services,Ass Dir - Education,School Improvement,Private Contractors,Third Party Prov - Private,PH101,02/06/2020,623226,381.6,REVENUE,CLEETHORPES CHILDCARE,101591
North East Lincolnshire Council,http://statistics.data.gov.uk/id/local-authority/00FC),Children & Family Services,Ass Dir - Education,School Improvement,Private Contractors,Third Party Prov - Private,PH101,02/06/2020,623351,667.8,REVENUE,HUMBERSTON CLOVERFIELDS ACADEMY NURSERY,132178
North East Lincolnshire Council,http://statistics.data.gov.uk/id/local-authority/00FC),Children & Family Services,Ass Dir - Education,School Improvement,Private Contractors,Third Party Prov - Private,PH101,02/06/2020,623310,667.8,REVENUE,IMMINGHAM DAY CARE,122312
North East Lincolnshire Council,http://statistics.data.gov.uk/id/local-authority/00FC),Children & Family Services,Ass Dir - Education,School Improvement,Private Contractors,Third Party Prov - Private,PH101,02/06/2020,623200,286.2,REVENUE,IMMINGHAM DAY NURSERY,100998
North East Lincolnshire Council,http://statistics.data.gov.uk/id/local-authority/00FC),Children & Family Services,Ass Dir - Education,School Improvement,Private Contractors,Third Party Prov - Private,PH101,02/06/2020,623194,763.2,REVENUE,JUDY CLARK CHILD CARE,100939
North East Lincolnshire Council,http://statistics.data.gov.uk/id/local-authority/00FC),Children & Family Services,Ass Dir - Education,School Improvement,Private Contractors,Third Party Prov - Private,PH101,02/06/2020,623333,667.8,REVENUE,LEAP AHEAD NURSERY,128017
North East Lincolnshire Council,http://statistics.data.gov.uk/id/local-authority/00FC),Children & Family Services,Ass Dir - Education,School Improvement,Private Contractors,Third Party Prov - Private,PH101,02/06/2020,623330,572.4,REVENUE,LEAP AHEAD NURSERY,128017
North East Lincolnshire Council,http://statistics.data.gov.uk/id/local-authority/00FC),Children & Family Services,Ass Dir - Education,School Improvement,Private Contractors,Third Party Prov - Private,PH101,02/06/2020,623327,305.28,REVENUE,LEAP AHEAD NURSERY,128017
North East Lincolnshire Council,http://statistics.data.gov.uk/id/local-authority/00FC),Children & Family Services,Ass Dir - Education,School Improvement,Private Contractors,Third Party Prov - Private,PH101,02/06/2020,623259,381.6,REVENUE,LITTLE BLOSSOMS DAY NURSERY,111058
North East Lincolnshire Council,http://statistics.data.gov.uk/id/local-authority/00FC),Children & Family Services,Ass Dir - Education,School Improvement,Private Contractors,Third Party Prov - Private,PH101,02/06/2020,623276,763.2,REVENUE,GRIMSBY INSTITUTE - LITTLE STARS DAY NURSERY,114230
North East Lincolnshire Council,http://statistics.data.gov.uk/id/local-authority/00FC),Children & Family Services,Ass Dir - Education,School Improvement,Private Contractors,Third Party Prov - Private,PH101,02/06/2020,623252,725.04,REVENUE,LISLE MARSDEN CHILDCARE LIMITED,110493
North East Lincolnshire Council,http://statistics.data.gov.uk/id/local-authority/00FC),Children & Family Services,Ass Dir - Education,School Improvement,Private Contractors,Third Party Prov - Private,PH101,02/06/2020,623365,1049.4,REVENUE,LITTLECOATES PRIMARY ACADEMY,134261
North East Lincolnshire Council,http://statistics.data.gov.uk/id/local-authority/00FC),Children & Family Services,Ass Dir - Education,School Improvement,Private Contractors,Third Party Prov - Private,PH101,02/06/2020,623273,1812.6,REVENUE,MACAULAY PRIMARY ACADEMY,112680
North East Lincolnshire Council,http://statistics.data.gov.uk/id/local-authority/00FC),Children & Family Services,Ass Dir - Education,School Improvement,Private Contractors,Third Party Prov - Private,PH101,02/06/2020,623389,381.6,REVENUE,MIDDLETHORPE NURSERY,143658
North East Lincolnshire Council,http://statistics.data.gov.uk/id/local-authority/00FC),Children & Family Services,Ass Dir - Education,School Improvement,Private Contractors,Third Party Prov - Private,PH101,02/06/2020,623247,381.6,REVENUE,NEW WALTHAM ACADEMY,108556
North East Lincolnshire Council,http://statistics.data.gov.uk/id/local-authority/00FC),Children & Family Services,Ass Dir - Education,School Improvement,Private Contractors,Third Party Prov - Private,PH101,02/06/2020,623338,381.6,REVENUE,ONLY ABOUT KIDS,128121
North East Lincolnshire Council,http://statistics.data.gov.uk/id/local-authority/00FC),Children & Family Services,Ass Dir - Education,School Improvement,Private Contractors,Third Party Prov - Private,PH101,02/06/2020,623311,1526.4,REVENUE,OASIS ACADEMY SCHOOL (NUNSTHORPE SCHOOL),122861
North East Lincolnshire Council,http://statistics.data.gov.uk/id/local-authority/00FC),Children & Family Services,Ass Dir - Education,School Improvement,Private Contractors,Third Party Prov - Private,PH101,02/06/2020,623291,954,REVENUE,OLD CLEE PRIMARY ACADEMY,119822
North East Lincolnshire Council,http://statistics.data.gov.uk/id/local-authority/00FC),Children & Family Services,Ass Dir - Education,School Improvement,Private Contractors,Third Party Prov - Private,PH101,02/06/2020,623268,3148.2,REVENUE,ORMISTON SOUTH PARADE ACADEMY,111750
North East Lincolnshire Council,http://statistics.data.gov.uk/id/local-authority/00FC),Children & Family Services,Ass Dir - Education,School Improvement,Private Contractors,Third Party Prov - Private,PH101,02/06/2020,623372,1431,REVENUE,PILGRIM ACADEMY,136366
North East Lincolnshire Council,http://statistics.data.gov.uk/id/local-authority/00FC),Children & Family Services,Ass Dir - Education,School Improvement,Private Contractors,Third Party Prov - Private,PH101,02/06/2020,623215,477,REVENUE,PRECIOUS TIMES CHILDCARE SERVICES,101420
North East Lincolnshire Council,http://statistics.data.gov.uk/id/local-authority/00FC),Children & Family Services,Ass Dir - Education,School Improvement,Private Contractors,Third Party Prov - Private,PH101,02/06/2020,623216,1240.2,REVENUE,PRECIOUS TIMES CHILDCARE SERVICES,101420
North East Lincolnshire Council,http://statistics.data.gov.uk/id/local-authority/00FC),Children & Family Services,Ass Dir - Education,School Improvement,Private Contractors,Third Party Prov - Private,PH101,02/06/2020,623182,667.8,REVENUE,FOR UNDER FIVES LTD,100647
North East Lincolnshire Council,http://statistics.data.gov.uk/id/local-authority/00FC),Children & Family Services,Ass Dir - Education,School Improvement,Private Contractors,Third Party Prov - Private,PH101,02/06/2020,623304,2480.4,REVENUE,REYNOLDS PRIMARY ACADEMY,122175
North East Lincolnshire Council,http://statistics.data.gov.uk/id/local-authority/00FC),Children & Family Services,Ass Dir - Education,School Improvement,Private Contractors,Third Party Prov - Private,PH101,02/06/2020,623222,464.28,REVENUE,CLEETHORPES CHILDCARE,101591
North East Lincolnshire Council,http://statistics.data.gov.uk/id/local-authority/00FC),Children & Family Services,Ass Dir - Education,School Improvement,Private Contractors,Third Party Prov - Private,PH101,02/06/2020,623179,648.72,REVENUE,FOR UNDER FIVES LTD,100647
North East Lincolnshire Council,http://statistics.data.gov.uk/id/local-authority/00FC),Children & Family Services,Ass Dir - Education,School Improvement,Private Contractors,Third Party Prov - Private,PH101,02/06/2020,623300,763.2,REVENUE,ST CHRISTOPHERS PRE SCHOOL,121589
North East Lincolnshire Council,http://statistics.data.gov.uk/id/local-authority/00FC),Children & Family Services,Ass Dir - Education,School Improvement,Private Contractors,Third Party Prov - Private,PH101,02/06/2020,623250,763.2,REVENUE,ST JOSEPH'S RC PRIMARY ACADEMY,110066
North East Lincolnshire Council,http://statistics.data.gov.uk/id/local-authority/00FC),Children & Family Services,Ass Dir - Education,School Improvement,Private Contractors,Third Party Prov - Private,PH101,02/06/2020,623285,1144.8,REVENUE,ST MARYS CATHOLIC PRIMARY VOLUNTARY ACADEMY,115108
North East Lincolnshire Council,http://statistics.data.gov.uk/id/local-authority/00FC),Children & Family Services,Ass Dir - Education,School Improvement,Private Contractors,Third Party Prov - Private,PH101,02/06/2020,623206,1049.4,REVENUE,ST PETERS CHILDREN CENTRE,101322
North East Lincolnshire Council,http://statistics.data.gov.uk/id/local-authority/00FC),Children & Family Services,Ass Dir - Education,School Improvement,Private Contractors,Third Party Prov - Private,PH101,02/06/2020,623242,572.4,REVENUE,THE AVENUE PLAYGROUP,103168
North East Lincolnshire Council,http://statistics.data.gov.uk/id/local-authority/00FC),Children & Family Services,Ass Dir - Education,School Improvement,Private Contractors,Third Party Prov - Private,PH101,02/06/2020,623286,1106.64,REVENUE,THRUNSCOE PRIMARY AND NURSERY ACADEMY,118749
North East Lincolnshire Council,http://statistics.data.gov.uk/id/local-authority/00FC),Children & Family Services,Ass Dir - Education,School Improvement,Private Contractors,Third Party Prov - Private,PH101,02/06/2020,623246,1297.44,REVENUE,WALTHAM LEAS PRE-SCHOOL,108236
North East Lincolnshire Council,http://statistics.data.gov.uk/id/local-authority/00FC),Children & Family Services,Ass Dir - Education,School Improvement,Private Contractors,Third Party Prov - Private,PH101,02/06/2020,623261,1621.8,REVENUE,WEELSBY ACADEMY,111161
North East Lincolnshire Council,http://statistics.data.gov.uk/id/local-authority/00FC),Children & Family Services,Ass Dir - Education,School Improvement,Private Contractors,Third Party Prov - Private,PH101,02/06/2020,623321,2098.8,REVENUE,WELHOLME ACADEMY,127227
North East Lincolnshire Council,http://statistics.data.gov.uk/id/local-authority/00FC),Children & Family Services,Ass Dir - Education,School Improvement,Private Contractors,Third Party Prov - Private,PH101,02/06/2020,623209,286.2,REVENUE,WENDOVER PRE-SCHOOL,101350
North East Lincolnshire Council,http://statistics.data.gov.uk/id/local-authority/00FC),Children & Family Services,Ass Dir - Education,School Improvement,Private Contractors,Third Party Prov - Private,PH101,02/06/2020,623295,477,REVENUE,WILLOWS PRIMARY ACADEMY,120478
North East Lincolnshire Council,http://statistics.data.gov.uk/id/local-authority/00FC),Children & Family Services,Ass Dir - Education,School Improvement,Private Contractors,Third Party Prov - Private,PH101,02/06/2020,623237,1822.14,REVENUE,WIZ KIDZ,102424
North East Lincolnshire Council,http://statistics.data.gov.uk/id/local-authority/00FC),Children & Family Services,Ass Dir - Education,School Improvement,Private Contractors,Third Party Prov - Private,PH101,02/06/2020,623356,286.2,REVENUE,WOODLANDS ACADEMY,132649
North East Lincolnshire Council,http://statistics.data.gov.uk/id/local-authority/00FC),Children & Family Services,Ass Dir - Education,School Improvement,Private Contractors,Third Party Prov - Private,PH101,02/06/2020,623275,477,REVENUE,YARBOROUGH ACADEMY,112852
North East Lincolnshire Council,http://statistics.data.gov.uk/id/local-authority/00FC),Children & Family Services,Ass Dir - Education,School Improvement,Private Contractors,Third Party Prov - Private,PH101,30/06/2020,627447,286.2,REVENUE,SCARTHO INFANTS SCHOOL,120365
North East Lincolnshire Council,http://statistics.data.gov.uk/id/local-authority/00FC),Children & Family Services,Ass Dir - Education,School Improvement,Private Contractors,Third Party Prov - Private,PH101,23/06/2020,626479,1431,REVENUE,GREAT COATES PRIMARY ACADEMY,134467
North East Lincolnshire Council,http://statistics.data.gov.uk/id/local-authority/00FC),Children & Family Services,Ass Dir - Education,School Improvement,Other Agencies,Nursery Educ Fund - Standard,PJ139,02/06/2020,623289,330.48,REVENUE,ALISON'S CHILDMINDING SERVICES,119740
North East Lincolnshire Council,http://statistics.data.gov.uk/id/local-authority/00FC),Children & Family Services,Ass Dir - Education,School Improvement,Other Agencies,Nursery Educ Fund - Standard,PJ139,02/06/2020,623380,550.8,REVENUE,MS AMY VERNON,141558
North East Lincolnshire Council,http://statistics.data.gov.uk/id/local-authority/00FC),Children & Family Services,Ass Dir - Education,School Improvement,Other Agencies,Nursery Educ Fund - Standard,PJ139,02/06/2020,623375,367.2,REVENUE,ALEXANDER BEECH,139871
North East Lincolnshire Council,http://statistics.data.gov.uk/id/local-authority/00FC),Children & Family Services,Ass Dir - Education,School Improvement,Other Agencies,Nursery Educ Fund - Standard,PJ139,02/06/2020,623178,12674.97,REVENUE,FOR UNDER FIVES LTD,100647
North East Lincolnshire Council,http://statistics.data.gov.uk/id/local-authority/00FC),Children & Family Services,Ass Dir - Education,School Improvement,Other Agencies,Nursery Educ Fund - Standard,PJ139,02/06/2020,623262,9781.2,REVENUE,BURSAR PRIMARY ACADEMY,111550
North East Lincolnshire Council,http://statistics.data.gov.uk/id/local-authority/00FC),Children & Family Services,Ass Dir - Education,School Improvement,Other Agencies,Nursery Educ Fund - Standard,PJ139,02/06/2020,623229,14032.26,REVENUE,BUTTERFLIES DAY NURSERY,101694
North East Lincolnshire Council,http://statistics.data.gov.uk/id/local-authority/00FC),Children & Family Services,Ass Dir - Education,School Improvement,Other Agencies,Nursery Educ Fund - Standard,PJ139,02/06/2020,623359,5329.5,REVENUE,CAMPDEN KIDS LTD,132975
North East Lincolnshire Council,http://statistics.data.gov.uk/id/local-authority/00FC),Children & Family Services,Ass Dir - Education,School Improvement,Other Agencies,Nursery Educ Fund - Standard,PJ139,02/06/2020,623316,6959.7,REVENUE,CANON PETER HALL CE PRIMARY ACADEMY,126646
North East Lincolnshire Council,http://statistics.data.gov.uk/id/local-authority/00FC),Children & Family Services,Ass Dir - Education,School Improvement,Other Agencies,Nursery Educ Fund - Standard,PJ139,02/06/2020,623188,7712.1,REVENUE,FOR UNDER FIVES LTD,100647
North East Lincolnshire Council,http://statistics.data.gov.uk/id/local-authority/00FC),Children & Family Services,Ass Dir - Education,School Improvement,Other Agencies,Nursery Educ Fund - Standard,PJ139,02/06/2020,623204,11660.64,REVENUE,THE CHILDRENS HOUSE,101141
North East Lincolnshire Council,http://statistics.data.gov.uk/id/local-authority/00FC),Children & Family Services,Ass Dir - Education,School Improvement,Other Agencies,Nursery Educ Fund - Standard,PJ139,02/06/2020,623388,550.8,REVENUE,CHRISTIANNA HOCKNEY,143657
North East Lincolnshire Council,http://statistics.data.gov.uk/id/local-authority/00FC),Children & Family Services,Ass Dir - Education,School Improvement,Other Agencies,Nursery Educ Fund - Standard,PJ139,02/06/2020,623377,1285.2,REVENUE,CLARE HOLNESS,140793
North East Lincolnshire Council,http://statistics.data.gov.uk/id/local-authority/00FC),Children & Family Services,Ass Dir - Education,School Improvement,Other Agencies,Nursery Educ Fund - Standard,PJ139,02/06/2020,623243,820.08,REVENUE,CATHERINE WALLACE,103189
North East Lincolnshire Council,http://statistics.data.gov.uk/id/local-authority/00FC),Children & Family Services,Ass Dir - Education,School Improvement,Other Agencies,Nursery Educ Fund - Standard,PJ139,02/06/2020,623362,293.76,REVENUE,DEBBIE SPACEY,133789
North East Lincolnshire Council,http://statistics.data.gov.uk/id/local-authority/00FC),Children & Family Services,Ass Dir - Education,School Improvement,Other Agencies,Nursery Educ Fund - Standard,PJ139,02/06/2020,623301,38188.8,REVENUE,EASTFIELD PRIMARY ACADEMY,121907
North East Lincolnshire Council,http://statistics.data.gov.uk/id/local-authority/00FC),Children & Family Services,Ass Dir - Education,School Improvement,Other Agencies,Nursery Educ Fund - Standard,PJ139,02/06/2020,623249,1395.36,REVENUE,EAST RAVENDALE C OF E PRIMARY SCHOOL ACADEMY,109167
North East Lincolnshire Council,http://statistics.data.gov.uk/id/local-authority/00FC),Children & Family Services,Ass Dir - Education,School Improvement,Other Agencies,Nursery Educ Fund - Standard,PJ139,02/06/2020,623264,4890.6,REVENUE,EDWARD HENEAGE PRIMARY (ACADEMY),111742
North East Lincolnshire Council,http://statistics.data.gov.uk/id/local-authority/00FC),Children & Family Services,Ass Dir - Education,School Improvement,Other Agencies,Nursery Educ Fund - Standard,PJ139,02/06/2020,623349,12414.6,REVENUE,ELLISTON PRIMARY ACADEMY,129629
North East Lincolnshire Council,http://statistics.data.gov.uk/id/local-authority/00FC),Children & Family Services,Ass Dir - Education,School Improvement,Other Agencies,Nursery Educ Fund - Standard,PJ139,02/06/2020,623400,2639.08,REVENUE,EXPLOROSITY EDUCATION LTD,145026
North East Lincolnshire Council,http://statistics.data.gov.uk/id/local-authority/00FC),Children & Family Services,Ass Dir - Education,School Improvement,Other Agencies,Nursery Educ Fund - Standard,PJ139,02/06/2020,623346,9069.84,REVENUE,FAIRFIELD PRIMARY ACADEMY,129030
North East Lincolnshire Council,http://statistics.data.gov.uk/id/local-authority/00FC),Children & Family Services,Ass Dir - Education,School Improvement,Other Agencies,Nursery Educ Fund - Standard,PJ139,02/06/2020,623382,342.72,REVENUE,MRS FAY L RENSHAW,141559
North East Lincolnshire Council,http://statistics.data.gov.uk/id/local-authority/00FC),Children & Family Services,Ass Dir - Education,School Improvement,Other Agencies,Nursery Educ Fund - Standard,PJ139,02/06/2020,623344,1316.7,REVENUE,FREESTON TOTS PRESCHOOL,128592
North East Lincolnshire Council,http://statistics.data.gov.uk/id/local-authority/00FC),Children & Family Services,Ass Dir - Education,School Improvement,Other Agencies,Nursery Educ Fund - Standard,PJ139,02/06/2020,623212,14446.08,REVENUE,FIRST STEPS GRIMSBY LIMITED,101411
North East Lincolnshire Council,http://statistics.data.gov.uk/id/local-authority/00FC),Children & Family Services,Ass Dir - Education,School Improvement,Other Agencies,Nursery Educ Fund - Standard,PJ139,02/06/2020,623319,940.5,REVENUE,FIRST STEPS WITH SURE START,126658
North East Lincolnshire Council,http://statistics.data.gov.uk/id/local-authority/00FC),Children & Family Services,Ass Dir - Education,School Improvement,Other Agencies,Nursery Educ Fund - Standard,PJ139,02/06/2020,623282,3937.56,REVENUE,HUMBERSTON PRE SCHOOL,114491
North East Lincolnshire Council,http://statistics.data.gov.uk/id/local-authority/00FC),Children & Family Services,Ass Dir - Education,School Improvement,Other Agencies,Nursery Educ Fund - Standard,PJ139,02/06/2020,623369,14161.77,REVENUE,GREAT COATES PRIMARY ACADEMY,134467
North East Lincolnshire Council,http://statistics.data.gov.uk/id/local-authority/00FC),Children & Family Services,Ass Dir - Education,School Improvement,Other Agencies,Nursery Educ Fund - Standard,PJ139,02/06/2020,623186,9180,REVENUE,FOR UNDER FIVES LTD,100647
North East Lincolnshire Council,http://statistics.data.gov.uk/id/local-authority/00FC),Children & Family Services,Ass Dir - Education,School Improvement,Other Agencies,Nursery Educ Fund - Standard,PJ139,02/06/2020,623203,10061.28,REVENUE,HEALING VILLAGE NURSERY,101096
North East Lincolnshire Council,http://statistics.data.gov.uk/id/local-authority/00FC),Children & Family Services,Ass Dir - Education,School Improvement,Other Agencies,Nursery Educ Fund - Standard,PJ139,02/06/2020,623339,1836,REVENUE,ELLIE TOTS CHILDMINDING SERVICES,128251
North East Lincolnshire Council,http://statistics.data.gov.uk/id/local-authority/00FC),Children & Family Services,Ass Dir - Education,School Improvement,Other Agencies,Nursery Educ Fund - Standard,PJ139,02/06/2020,623227,5047.35,REVENUE,CLEETHORPES CHILDCARE,101591
North East Lincolnshire Council,http://statistics.data.gov.uk/id/local-authority/00FC),Children & Family Services,Ass Dir - Education,School Improvement,Other Agencies,Nursery Educ Fund - Standard,PJ139,02/06/2020,623398,612,REVENUE,HANNAH SMITH,144932
North East Lincolnshire Council,http://statistics.data.gov.uk/id/local-authority/00FC),Children & Family Services,Ass Dir - Education,School Improvement,Other Agencies,Nursery Educ Fund - Standard,PJ139,02/06/2020,623352,13892.4,REVENUE,HUMBERSTON CLOVERFIELDS ACADEMY NURSERY,132178
North East Lincolnshire Council,http://statistics.data.gov.uk/id/local-authority/00FC),Children & Family Services,Ass Dir - Education,School Improvement,Other Agencies,Nursery Educ Fund - Standard,PJ139,02/06/2020,623279,10171.44,REVENUE,HUMBERSTON PRE SCHOOL,114491
North East Lincolnshire Council,http://statistics.data.gov.uk/id/local-authority/00FC),Children & Family Services,Ass Dir - Education,School Improvement,Other Agencies,Nursery Educ Fund - Standard,PJ139,02/06/2020,623308,2019.6,REVENUE,IMMINGHAM DAY CARE,122312
North East Lincolnshire Council,http://statistics.data.gov.uk/id/local-authority/00FC),Children & Family Services,Ass Dir - Education,School Improvement,Other Agencies,Nursery Educ Fund - Standard,PJ139,02/06/2020,623201,4406.4,REVENUE,IMMINGHAM DAY NURSERY,100998
North East Lincolnshire Council,http://statistics.data.gov.uk/id/local-authority/00FC),Children & Family Services,Ass Dir - Education,School Improvement,Other Agencies,Nursery Educ Fund - Standard,PJ139,02/06/2020,623367,376.2,REVENUE,JULIE MOORE CHILDMINDING,134452
North East Lincolnshire Council,http://statistics.data.gov.uk/id/local-authority/00FC),Children & Family Services,Ass Dir - Education,School Improvement,Other Agencies,Nursery Educ Fund - Standard,PJ139,02/06/2020,623193,14671.8,REVENUE,JUDY CLARK CHILD CARE,100939
North East Lincolnshire Council,http://statistics.data.gov.uk/id/local-authority/00FC),Children & Family Services,Ass Dir - Education,School Improvement,Other Agencies,Nursery Educ Fund - Standard,PJ139,02/06/2020,623236,2729.52,REVENUE,MS KAREN HUDSON,102103
North East Lincolnshire Council,http://statistics.data.gov.uk/id/local-authority/00FC),Children & Family Services,Ass Dir - Education,School Improvement,Other Agencies,Nursery Educ Fund - Standard,PJ139,02/06/2020,623392,1217.88,REVENUE,KATIE ROBBINS,143660
North East Lincolnshire Council,http://statistics.data.gov.uk/id/local-authority/00FC),Children & Family Services,Ass Dir - Education,School Improvement,Other Agencies,Nursery Educ Fund - Standard,PJ139,02/06/2020,623334,6106.98,REVENUE,LEAP AHEAD NURSERY,128017
North East Lincolnshire Council,http://statistics.data.gov.uk/id/local-authority/00FC),Children & Family Services,Ass Dir - Education,School Improvement,Other Agencies,Nursery Educ Fund - Standard,PJ139,02/06/2020,623331,2445.3,REVENUE,LEAP AHEAD NURSERY,128017
North East Lincolnshire Council,http://statistics.data.gov.uk/id/local-authority/00FC),Children & Family Services,Ass Dir - Education,School Improvement,Other Agencies,Nursery Educ Fund - Standard,PJ139,02/06/2020,623328,3617.88,REVENUE,LEAP AHEAD NURSERY,128017
North East Lincolnshire Council,http://statistics.data.gov.uk/id/local-authority/00FC),Children & Family Services,Ass Dir - Education,School Improvement,Other Agencies,Nursery Educ Fund - Standard,PJ139,02/06/2020,623258,14461.56,REVENUE,LITTLE BLOSSOMS DAY NURSERY,111058
North East Lincolnshire Council,http://statistics.data.gov.uk/id/local-authority/00FC),Children & Family Services,Ass Dir - Education,School Improvement,Other Agencies,Nursery Educ Fund - Standard,PJ139,02/06/2020,623396,669.06,REVENUE,LITTLE OAKS DAY NURSERY,144718
North East Lincolnshire Council,http://statistics.data.gov.uk/id/local-authority/00FC),Children & Family Services,Ass Dir - Education,School Improvement,Other Agencies,Nursery Educ Fund - Standard,PJ139,02/06/2020,623278,9816.48,REVENUE,GRIMSBY INSTITUTE - LITTLE STARS DAY NURSERY,114230
North East Lincolnshire Council,http://statistics.data.gov.uk/id/local-authority/00FC),Children & Family Services,Ass Dir - Education,School Improvement,Other Agencies,Nursery Educ Fund - Standard,PJ139,02/06/2020,623306,2851.92,REVENUE,LITTLE TWINKLES CHILDCARE LTD,122217
North East Lincolnshire Council,http://statistics.data.gov.uk/id/local-authority/00FC),Children & Family Services,Ass Dir - Education,School Improvement,Other Agencies,Nursery Educ Fund - Standard,PJ139,02/06/2020,623254,27406.68,REVENUE,LISLE MARSDEN CHILDCARE LIMITED,110493
North East Lincolnshire Council,http://statistics.data.gov.uk/id/local-authority/00FC),Children & Family Services,Ass Dir - Education,School Improvement,Other Agencies,Nursery Educ Fund - Standard,PJ139,02/06/2020,623366,3009.6,REVENUE,LITTLECOATES PRIMARY ACADEMY,134261
North East Lincolnshire Council,http://statistics.data.gov.uk/id/local-authority/00FC),Children & Family Services,Ass Dir - Education,School Improvement,Other Agencies,Nursery Educ Fund - Standard,PJ139,02/06/2020,623364,376.2,REVENUE,LINDA PENDRED,133792
North East Lincolnshire Council,http://statistics.data.gov.uk/id/local-authority/00FC),Children & Family Services,Ass Dir - Education,School Improvement,Other Agencies,Nursery Educ Fund - Standard,PJ139,02/06/2020,623390,9775.71,REVENUE,MIDDLETHORPE NURSERY,143658
North East Lincolnshire Council,http://statistics.data.gov.uk/id/local-authority/00FC),Children & Family Services,Ass Dir - Education,School Improvement,Other Agencies,Nursery Educ Fund - Standard,PJ139,02/06/2020,623395,734.4,REVENUE,MARINA WELLBURN,144696
North East Lincolnshire Council,http://statistics.data.gov.uk/id/local-authority/00FC),Children & Family Services,Ass Dir - Education,School Improvement,Other Agencies,Nursery Educ Fund - Standard,PJ139,02/06/2020,623383,1734.6,REVENUE,MS NATASHA DYKE,141560
North East Lincolnshire Council,http://statistics.data.gov.uk/id/local-authority/00FC),Children & Family Services,Ass Dir - Education,School Improvement,Other Agencies,Nursery Educ Fund - Standard,PJ139,02/06/2020,623248,20661.12,REVENUE,NEW WALTHAM ACADEMY,108556
North East Lincolnshire Council,http://statistics.data.gov.uk/id/local-authority/00FC),Children & Family Services,Ass Dir - Education,School Improvement,Other Agencies,Nursery Educ Fund - Standard,PJ139,02/06/2020,623293,550.8,REVENUE,NICKY'S CHILDMINDING,119901
North East Lincolnshire Council,http://statistics.data.gov.uk/id/local-authority/00FC),Children & Family Services,Ass Dir - Education,School Improvement,Other Agencies,Nursery Educ Fund - Standard,PJ139,02/06/2020,623357,550.8,REVENUE,NATALIE MUNDAY,132728
North East Lincolnshire Council,http://statistics.data.gov.uk/id/local-authority/00FC),Children & Family Services,Ass Dir - Education,School Improvement,Other Agencies,Nursery Educ Fund - Standard,PJ139,02/06/2020,623336,5263.2,REVENUE,ONLY ABOUT KIDS,128121
North East Lincolnshire Council,http://statistics.data.gov.uk/id/local-authority/00FC),Children & Family Services,Ass Dir - Education,School Improvement,Other Agencies,Nursery Educ Fund - Standard,PJ139,02/06/2020,623312,5078.7,REVENUE,OASIS ACADEMY SCHOOL (NUNSTHORPE SCHOOL),122861
North East Lincolnshire Council,http://statistics.data.gov.uk/id/local-authority/00FC),Children & Family Services,Ass Dir - Education,School Improvement,Other Agencies,Nursery Educ Fund - Standard,PJ139,02/06/2020,623290,14107.5,REVENUE,OLD CLEE PRIMARY ACADEMY,119822
North East Lincolnshire Council,http://statistics.data.gov.uk/id/local-authority/00FC),Children & Family Services,Ass Dir - Education,School Improvement,Other Agencies,Nursery Educ Fund - Standard,PJ139,02/06/2020,623266,17117.1,REVENUE,ORMISTON SOUTH PARADE ACADEMY,111750
North East Lincolnshire Council,http://statistics.data.gov.uk/id/local-authority/00FC),Children & Family Services,Ass Dir - Education,School Improvement,Other Agencies,Nursery Educ Fund - Standard,PJ139,02/06/2020,623371,8996.4,REVENUE,PILGRIM ACADEMY,136366
North East Lincolnshire Council,http://statistics.data.gov.uk/id/local-authority/00FC),Children & Family Services,Ass Dir - Education,School Improvement,Other Agencies,Nursery Educ Fund - Standard,PJ139,02/06/2020,623219,8310.96,REVENUE,PRECIOUS TIMES CHILDCARE SERVICES,101420
North East Lincolnshire Council,http://statistics.data.gov.uk/id/local-authority/00FC),Children & Family Services,Ass Dir - Education,School Improvement,Other Agencies,Nursery Educ Fund - Standard,PJ139,02/06/2020,623217,14749.2,REVENUE,PRECIOUS TIMES CHILDCARE SERVICES,101420
North East Lincolnshire Council,http://statistics.data.gov.uk/id/local-authority/00FC),Children & Family Services,Ass Dir - Education,School Improvement,Other Agencies,Nursery Educ Fund - Standard,PJ139,02/06/2020,623183,14195.28,REVENUE,FOR UNDER FIVES LTD,100647
North East Lincolnshire Council,http://statistics.data.gov.uk/id/local-authority/00FC),Children & Family Services,Ass Dir - Education,School Improvement,Other Agencies,Nursery Educ Fund - Standard,PJ139,02/06/2020,623303,13167,REVENUE,REYNOLDS PRIMARY ACADEMY,122175
North East Lincolnshire Council,http://statistics.data.gov.uk/id/local-authority/00FC),Children & Family Services,Ass Dir - Education,School Improvement,Other Agencies,Nursery Educ Fund - Standard,PJ139,02/06/2020,623199,9755.28,REVENUE,READY TEDDY GO,100973
North East Lincolnshire Council,http://statistics.data.gov.uk/id/local-authority/00FC),Children & Family Services,Ass Dir - Education,School Improvement,Other Agencies,Nursery Educ Fund - Standard,PJ139,02/06/2020,623386,807.84,REVENUE,SARA BUNCE,142138
North East Lincolnshire Council,http://statistics.data.gov.uk/id/local-authority/00FC),Children & Family Services,Ass Dir - Education,School Improvement,Other Agencies,Nursery Educ Fund - Standard,PJ139,02/06/2020,623325,1468.8,REVENUE,SARAH FARROW-BROWNE,127842
North East Lincolnshire Council,http://statistics.data.gov.uk/id/local-authority/00FC),Children & Family Services,Ass Dir - Education,School Improvement,Other Agencies,Nursery Educ Fund - Standard,PJ139,02/06/2020,623271,477.36,REVENUE,SARA HARRISON,112491
North East Lincolnshire Council,http://statistics.data.gov.uk/id/local-authority/00FC),Children & Family Services,Ass Dir - Education,School Improvement,Other Agencies,Nursery Educ Fund - Standard,PJ139,02/06/2020,623341,1115.1,REVENUE,SARAH'S CHILDMINDING,128578
North East Lincolnshire Council,http://statistics.data.gov.uk/id/local-authority/00FC),Children & Family Services,Ass Dir - Education,School Improvement,Other Agencies,Nursery Educ Fund - Standard,PJ139,02/06/2020,623256,940.5,REVENUE,SHARON SPRINGALL,111029
North East Lincolnshire Council,http://statistics.data.gov.uk/id/local-authority/00FC),Children & Family Services,Ass Dir - Education,School Improvement,Other Agencies,Nursery Educ Fund - Standard,PJ139,02/06/2020,623223,15544.8,REVENUE,CLEETHORPES CHILDCARE,101591
North East Lincolnshire Council,http://statistics.data.gov.uk/id/local-authority/00FC),Children & Family Services,Ass Dir - Education,School Improvement,Other Agencies,Nursery Educ Fund - Standard,PJ139,02/06/2020,623180,13672.08,REVENUE,FOR UNDER FIVES LTD,100647
North East Lincolnshire Council,http://statistics.data.gov.uk/id/local-authority/00FC),Children & Family Services,Ass Dir - Education,School Improvement,Other Agencies,Nursery Educ Fund - Standard,PJ139,02/06/2020,623350,7233.84,REVENUE,SPRINGFIELD PRIMARY ACADEMY,131306
North East Lincolnshire Council,http://statistics.data.gov.uk/id/local-authority/00FC),Children & Family Services,Ass Dir - Education,School Improvement,Other Agencies,Nursery Educ Fund - Standard,PJ139,02/06/2020,623233,1285.2,REVENUE,SARAH SHOTBOLT,101742
North East Lincolnshire Council,http://statistics.data.gov.uk/id/local-authority/00FC),Children & Family Services,Ass Dir - Education,School Improvement,Other Agencies,Nursery Educ Fund - Standard,PJ139,02/06/2020,623298,1868.46,REVENUE,ST CHRISTOPHERS PRE SCHOOL,121589
North East Lincolnshire Council,http://statistics.data.gov.uk/id/local-authority/00FC),Children & Family Services,Ass Dir - Education,School Improvement,Other Agencies,Nursery Educ Fund - Standard,PJ139,02/06/2020,623296,330.48,REVENUE,STEPHANIE DURRANT,120541
North East Lincolnshire Council,http://statistics.data.gov.uk/id/local-authority/00FC),Children & Family Services,Ass Dir - Education,School Improvement,Other Agencies,Nursery Educ Fund - Standard,PJ139,02/06/2020,623195,8310.96,REVENUE,ST JAMES SCHOOL,100940
North East Lincolnshire Council,http://statistics.data.gov.uk/id/local-authority/00FC),Children & Family Services,Ass Dir - Education,School Improvement,Other Agencies,Nursery Educ Fund - Standard,PJ139,02/06/2020,623251,3573.9,REVENUE,ST JOSEPH'S RC PRIMARY ACADEMY,110066
North East Lincolnshire Council,http://statistics.data.gov.uk/id/local-authority/00FC),Children & Family Services,Ass Dir - Education,School Improvement,Other Agencies,Nursery Educ Fund - Standard,PJ139,02/06/2020,623232,7397.04,REVENUE,ST MARGARETS PRE-SCHOOL,101724
North East Lincolnshire Council,http://statistics.data.gov.uk/id/local-authority/00FC),Children & Family Services,Ass Dir - Education,School Improvement,Other Agencies,Nursery Educ Fund - Standard,PJ139,02/06/2020,623191,23500.8,REVENUE,ST MARTINS PREPARATORY SCHOOL,100889
North East Lincolnshire Council,http://statistics.data.gov.uk/id/local-authority/00FC),Children & Family Services,Ass Dir - Education,School Improvement,Other Agencies,Nursery Educ Fund - Standard,PJ139,02/06/2020,623284,8464.5,REVENUE,ST MARYS CATHOLIC PRIMARY VOLUNTARY ACADEMY,115108
North East Lincolnshire Council,http://statistics.data.gov.uk/id/local-authority/00FC),Children & Family Services,Ass Dir - Education,School Improvement,Other Agencies,Nursery Educ Fund - Standard,PJ139,02/06/2020,623207,14107.5,REVENUE,ST PETERS CHILDREN CENTRE,101322
North East Lincolnshire Council,http://statistics.data.gov.uk/id/local-authority/00FC),Children & Family Services,Ass Dir - Education,School Improvement,Other Agencies,Nursery Educ Fund - Standard,PJ139,02/06/2020,623269,3573.9,REVENUE,STRAND PRIMARY ACADEMY,111862
North East Lincolnshire Council,http://statistics.data.gov.uk/id/local-authority/00FC),Children & Family Services,Ass Dir - Education,School Improvement,Other Agencies,Nursery Educ Fund - Standard,PJ139,02/06/2020,623241,4476.78,REVENUE,THE AVENUE PLAYGROUP,103168
North East Lincolnshire Council,http://statistics.data.gov.uk/id/local-authority/00FC),Children & Family Services,Ass Dir - Education,School Improvement,Other Agencies,Nursery Educ Fund - Standard,PJ139,02/06/2020,623287,6771.6,REVENUE,THRUNSCOE PRIMARY AND NURSERY ACADEMY,118749
North East Lincolnshire Council,http://statistics.data.gov.uk/id/local-authority/00FC),Children & Family Services,Ass Dir - Education,School Improvement,Other Agencies,Nursery Educ Fund - Standard,PJ139,02/06/2020,623245,29890.08,REVENUE,WALTHAM LEAS PRE-SCHOOL,108236
North East Lincolnshire Council,http://statistics.data.gov.uk/id/local-authority/00FC),Children & Family Services,Ass Dir - Education,School Improvement,Other Agencies,Nursery Educ Fund - Standard,PJ139,02/06/2020,623260,6207.3,REVENUE,WEELSBY ACADEMY,111161
North East Lincolnshire Council,http://statistics.data.gov.uk/id/local-authority/00FC),Children & Family Services,Ass Dir - Education,School Improvement,Other Agencies,Nursery Educ Fund - Standard,PJ139,02/06/2020,623323,9028.8,REVENUE,WELHOLME ACADEMY,127227
North East Lincolnshire Council,http://statistics.data.gov.uk/id/local-authority/00FC),Children & Family Services,Ass Dir - Education,School Improvement,Other Agencies,Nursery Educ Fund - Standard,PJ139,02/06/2020,623211,4745.37,REVENUE,WENDOVER PRE-SCHOOL,101350
North East Lincolnshire Council,http://statistics.data.gov.uk/id/local-authority/00FC),Children & Family Services,Ass Dir - Education,School Improvement,Other Agencies,Nursery Educ Fund - Standard,PJ139,02/06/2020,623294,1692.9,REVENUE,WILLOWS PRIMARY ACADEMY,120478
North East Lincolnshire Council,http://statistics.data.gov.uk/id/local-authority/00FC),Children & Family Services,Ass Dir - Education,School Improvement,Other Agencies,Nursery Educ Fund - Standard,PJ139,02/06/2020,623239,4664.88,REVENUE,WIZ KIDZ,102424
North East Lincolnshire Council,http://statistics.data.gov.uk/id/local-authority/00FC),Children & Family Services,Ass Dir - Education,School Improvement,Other Agencies,Nursery Educ Fund - Standard,PJ139,02/06/2020,623355,5643,REVENUE,WOODLANDS ACADEMY,132649
North East Lincolnshire Council,http://statistics.data.gov.uk/id/local-authority/00FC),Children & Family Services,Ass Dir - Education,School Improvement,Other Agencies,Nursery Educ Fund - Standard,PJ139,02/06/2020,623274,5177.52,REVENUE,YARBOROUGH ACADEMY,112852
North East Lincolnshire Council,http://statistics.data.gov.uk/id/local-authority/00FC),Children & Family Services,Ass Dir - Education,School Improvement,Other Agencies,Nursery Educ Fund - Standard,PJ139,23/06/2020,626479,14507.1,REVENUE,GREAT COATES PRIMARY ACADEMY,134467
North East Lincolnshire Council,http://statistics.data.gov.uk/id/local-authority/00FC),Children & Family Services,Ass Dir - Education,School Improvement,Other Agencies,Other,PJ121,02/06/2020,623177,2057.4,REVENUE,FOR UNDER FIVES LTD,100647
North East Lincolnshire Council,http://statistics.data.gov.uk/id/local-authority/00FC),Children & Family Services,Ass Dir - Education,School Improvement,Other Agencies,Other,PJ121,02/06/2020,623228,7086.6,REVENUE,BUTTERFLIES DAY NURSERY,101694
North East Lincolnshire Council,http://statistics.data.gov.uk/id/local-authority/00FC),Children & Family Services,Ass Dir - Education,School Improvement,Other Agencies,Other,PJ121,02/06/2020,623190,9875.52,REVENUE,FOR UNDER FIVES LTD,100647
North East Lincolnshire Council,http://statistics.data.gov.uk/id/local-authority/00FC),Children & Family Services,Ass Dir - Education,School Improvement,Other Agencies,Other,PJ121,02/06/2020,623378,457.2,REVENUE,CLARE HOLNESS,140793
North East Lincolnshire Council,http://statistics.data.gov.uk/id/local-authority/00FC),Children & Family Services,Ass Dir - Education,School Improvement,Other Agencies,Other,PJ121,02/06/2020,623399,1409.7,REVENUE,EXPLOROSITY EDUCATION LTD,145026
North East Lincolnshire Council,http://statistics.data.gov.uk/id/local-authority/00FC),Children & Family Services,Ass Dir - Education,School Improvement,Other Agencies,Other,PJ121,02/06/2020,623343,4800.6,REVENUE,FREESTON TOTS PRESCHOOL,128592
North East Lincolnshire Council,http://statistics.data.gov.uk/id/local-authority/00FC),Children & Family Services,Ass Dir - Education,School Improvement,Other Agencies,Other,PJ121,02/06/2020,623213,9144,REVENUE,FIRST STEPS GRIMSBY LIMITED,101411
North East Lincolnshire Council,http://statistics.data.gov.uk/id/local-authority/00FC),Children & Family Services,Ass Dir - Education,School Improvement,Other Agencies,Other,PJ121,02/06/2020,623318,1828.8,REVENUE,FIRST STEPS WITH SURE START,126658
North East Lincolnshire Council,http://statistics.data.gov.uk/id/local-authority/00FC),Children & Family Services,Ass Dir - Education,School Improvement,Other Agencies,Other,PJ121,02/06/2020,623283,4983.48,REVENUE,HUMBERSTON PRE SCHOOL,114491
North East Lincolnshire Council,http://statistics.data.gov.uk/id/local-authority/00FC),Children & Family Services,Ass Dir - Education,School Improvement,Other Agencies,Other,PJ121,02/06/2020,623202,685.8,REVENUE,HEALING VILLAGE NURSERY,101096
North East Lincolnshire Council,http://statistics.data.gov.uk/id/local-authority/00FC),Children & Family Services,Ass Dir - Education,School Improvement,Other Agencies,Other,PJ121,02/06/2020,623340,457.2,REVENUE,ELLIE TOTS CHILDMINDING SERVICES,128251
North East Lincolnshire Council,http://statistics.data.gov.uk/id/local-authority/00FC),Children & Family Services,Ass Dir - Education,School Improvement,Other Agencies,Other,PJ121,02/06/2020,623224,5135.88,REVENUE,CLEETHORPES CHILDCARE,101591
North East Lincolnshire Council,http://statistics.data.gov.uk/id/local-authority/00FC),Children & Family Services,Ass Dir - Education,School Improvement,Other Agencies,Other,PJ121,02/06/2020,623309,914.4,REVENUE,IMMINGHAM DAY CARE,122312
North East Lincolnshire Council,http://statistics.data.gov.uk/id/local-authority/00FC),Children & Family Services,Ass Dir - Education,School Improvement,Other Agencies,Other,PJ121,02/06/2020,623335,3429,REVENUE,LEAP AHEAD NURSERY,128017
North East Lincolnshire Council,http://statistics.data.gov.uk/id/local-authority/00FC),Children & Family Services,Ass Dir - Education,School Improvement,Other Agencies,Other,PJ121,02/06/2020,623332,3200.4,REVENUE,LEAP AHEAD NURSERY,128017
North East Lincolnshire Council,http://statistics.data.gov.uk/id/local-authority/00FC),Children & Family Services,Ass Dir - Education,School Improvement,Other Agencies,Other,PJ121,02/06/2020,623329,457.2,REVENUE,LEAP AHEAD NURSERY,128017
North East Lincolnshire Council,http://statistics.data.gov.uk/id/local-authority/00FC),Children & Family Services,Ass Dir - Education,School Improvement,Other Agencies,Other,PJ121,02/06/2020,623376,457.2,REVENUE,MRS LYNSEY CONNOLLY,140212
North East Lincolnshire Council,http://statistics.data.gov.uk/id/local-authority/00FC),Children & Family Services,Ass Dir - Education,School Improvement,Other Agencies,Other,PJ121,02/06/2020,623257,1371.6,REVENUE,LITTLE BLOSSOMS DAY NURSERY,111058
North East Lincolnshire Council,http://statistics.data.gov.uk/id/local-authority/00FC),Children & Family Services,Ass Dir - Education,School Improvement,Other Agencies,Other,PJ121,02/06/2020,623277,5425.44,REVENUE,GRIMSBY INSTITUTE - LITTLE STARS DAY NURSERY,114230
North East Lincolnshire Council,http://statistics.data.gov.uk/id/local-authority/00FC),Children & Family Services,Ass Dir - Education,School Improvement,Other Agencies,Other,PJ121,02/06/2020,623307,914.4,REVENUE,LITTLE TWINKLES CHILDCARE LTD,122217
North East Lincolnshire Council,http://statistics.data.gov.uk/id/local-authority/00FC),Children & Family Services,Ass Dir - Education,School Improvement,Other Agencies,Other,PJ121,02/06/2020,623253,1188.72,REVENUE,LISLE MARSDEN CHILDCARE LIMITED,110493
North East Lincolnshire Council,http://statistics.data.gov.uk/id/local-authority/00FC),Children & Family Services,Ass Dir - Education,School Improvement,Other Agencies,Other,PJ121,02/06/2020,623391,1828.8,REVENUE,MIDDLETHORPE NURSERY,143658
North East Lincolnshire Council,http://statistics.data.gov.uk/id/local-authority/00FC),Children & Family Services,Ass Dir - Education,School Improvement,Other Agencies,Other,PJ121,02/06/2020,623385,457.2,REVENUE,MS NATASHA DYKE,141560
North East Lincolnshire Council,http://statistics.data.gov.uk/id/local-authority/00FC),Children & Family Services,Ass Dir - Education,School Improvement,Other Agencies,Other,PJ121,02/06/2020,623358,457.2,REVENUE,NATALIE MUNDAY,132728
North East Lincolnshire Council,http://statistics.data.gov.uk/id/local-authority/00FC),Children & Family Services,Ass Dir - Education,School Improvement,Other Agencies,Other,PJ121,02/06/2020,623337,289.56,REVENUE,ONLY ABOUT KIDS,128121
North East Lincolnshire Council,http://statistics.data.gov.uk/id/local-authority/00FC),Children & Family Services,Ass Dir - Education,School Improvement,Other Agencies,Other,PJ121,02/06/2020,623220,457.2,REVENUE,PRECIOUS TIMES CHILDCARE SERVICES,101420
North East Lincolnshire Council,http://statistics.data.gov.uk/id/local-authority/00FC),Children & Family Services,Ass Dir - Education,School Improvement,Other Agencies,Other,PJ121,02/06/2020,623218,4206.24,REVENUE,PRECIOUS TIMES CHILDCARE SERVICES,101420
North East Lincolnshire Council,http://statistics.data.gov.uk/id/local-authority/00FC),Children & Family Services,Ass Dir - Education,School Improvement,Other Agencies,Other,PJ121,02/06/2020,623184,10287,REVENUE,FOR UNDER FIVES LTD,100647
North East Lincolnshire Council,http://statistics.data.gov.uk/id/local-authority/00FC),Children & Family Services,Ass Dir - Education,School Improvement,Other Agencies,Other,PJ121,02/06/2020,623197,411.48,REVENUE,READY TEDDY GO,100973
North East Lincolnshire Council,http://statistics.data.gov.uk/id/local-authority/00FC),Children & Family Services,Ass Dir - Education,School Improvement,Other Agencies,Other,PJ121,02/06/2020,623326,457.2,REVENUE,SARAH FARROW-BROWNE,127842
North East Lincolnshire Council,http://statistics.data.gov.uk/id/local-authority/00FC),Children & Family Services,Ass Dir - Education,School Improvement,Other Agencies,Other,PJ121,02/06/2020,623272,457.2,REVENUE,SARA HARRISON,112491
North East Lincolnshire Council,http://statistics.data.gov.uk/id/local-authority/00FC),Children & Family Services,Ass Dir - Education,School Improvement,Other Agencies,Other,PJ121,02/06/2020,623342,457.2,REVENUE,SARAH'S CHILDMINDING,128578
North East Lincolnshire Council,http://statistics.data.gov.uk/id/local-authority/00FC),Children & Family Services,Ass Dir - Education,School Improvement,Other Agencies,Other,PJ121,02/06/2020,623225,1219.2,REVENUE,CLEETHORPES CHILDCARE,101591
North East Lincolnshire Council,http://statistics.data.gov.uk/id/local-authority/00FC),Children & Family Services,Ass Dir - Education,School Improvement,Other Agencies,Other,PJ121,02/06/2020,623181,1371.6,REVENUE,FOR UNDER FIVES LTD,100647
North East Lincolnshire Council,http://statistics.data.gov.uk/id/local-authority/00FC),Children & Family Services,Ass Dir - Education,School Improvement,Other Agencies,Other,PJ121,02/06/2020,623234,685.8,REVENUE,SARAH SHOTBOLT,101742
North East Lincolnshire Council,http://statistics.data.gov.uk/id/local-authority/00FC),Children & Family Services,Ass Dir - Education,School Improvement,Other Agencies,Other,PJ121,02/06/2020,623299,2194.56,REVENUE,ST CHRISTOPHERS PRE SCHOOL,121589
North East Lincolnshire Council,http://statistics.data.gov.uk/id/local-authority/00FC),Children & Family Services,Ass Dir - Education,School Improvement,Other Agencies,Other,PJ121,02/06/2020,623297,457.2,REVENUE,STEPHANIE DURRANT,120541
North East Lincolnshire Council,http://statistics.data.gov.uk/id/local-authority/00FC),Children & Family Services,Ass Dir - Education,School Improvement,Other Agencies,Other,PJ121,02/06/2020,623208,4114.8,REVENUE,ST PETERS CHILDREN CENTRE,101322
North East Lincolnshire Council,http://statistics.data.gov.uk/id/local-authority/00FC),Children & Family Services,Ass Dir - Education,School Improvement,Other Agencies,Other,PJ121,02/06/2020,623270,381.6,REVENUE,STRAND PRIMARY ACADEMY,111862
North East Lincolnshire Council,http://statistics.data.gov.uk/id/local-authority/00FC),Children & Family Services,Ass Dir - Education,School Improvement,Other Agencies,Other,PJ121,02/06/2020,623240,914.4,REVENUE,THE AVENUE PLAYGROUP,103168
North East Lincolnshire Council,http://statistics.data.gov.uk/id/local-authority/00FC),Children & Family Services,Ass Dir - Education,School Improvement,Other Agencies,Other,PJ121,02/06/2020,623374,914.4,REVENUE,MRS VERITY TAYLOR-GREEN,138243
North East Lincolnshire Council,http://statistics.data.gov.uk/id/local-authority/00FC),Children & Family Services,Ass Dir - Education,School Improvement,Other Agencies,Other,PJ121,02/06/2020,623244,1371.6,REVENUE,WALTHAM LEAS PRE-SCHOOL,108236
North East Lincolnshire Council,http://statistics.data.gov.uk/id/local-authority/00FC),Children & Family Services,Ass Dir - Education,School Improvement,Other Agencies,Other,PJ121,02/06/2020,623322,1828.8,REVENUE,WELHOLME ACADEMY,127227
North East Lincolnshire Council,http://statistics.data.gov.uk/id/local-authority/00FC),Children & Family Services,Ass Dir - Education,School Improvement,Other Agencies,Other,PJ121,02/06/2020,623373,914.4,REVENUE,MRS JO-ANNE WHITE,137431
North East Lincolnshire Council,http://statistics.data.gov.uk/id/local-authority/00FC),Children & Family Services,Ass Dir - Education,School Improvement,Other Agencies,Other,PJ121,02/06/2020,623238,259.08,REVENUE,WIZ KIDZ,102424
North East Lincolnshire Council,http://statistics.data.gov.uk/id/local-authority/00FC),Children & Family Services,Ass Dir - Education,School Improvement,Rents,Room Hire,GC103,09/06/2020,624239,309,REVENUE,LINCS INSPIRE LTD,120610
North East Lincolnshire Council,http://statistics.data.gov.uk/id/local-authority/00FC),Children & Family Services,Ass Dir - Education,School Improvement,Contributions To Provisions,Contributions - Other,LK103,23/06/2020,625905,523.2,REVENUE,EASTFIELD PRIMARY ACADEMY,121907
North East Lincolnshire Council,http://statistics.data.gov.uk/id/local-authority/00FC),Children & Family Services,Ass Dir - Education,School Improvement,Contributions To Provisions,Contributions - Other,LK103,11/06/2020,624311,915.6,REVENUE,PRECIOUS TIMES CHILDCARE SERVICES,101420
North East Lincolnshire Council,http://statistics.data.gov.uk/id/local-authority/00FC),Children & Family Services,Ass Dir - Education,School Improvement,Contributions To Provisions,Contributions - Other,LK103,11/06/2020,624310,915.6,REVENUE,ORMISTON SOUTH PARADE ACADEMY,111750
North East Lincolnshire Council,http://statistics.data.gov.uk/id/local-authority/00FC),Children & Family Services,Ass Dir - Education,School Improvement,Contributions To Provisions,Contributions - Other,LK103,11/06/2020,624310,915.6,REVENUE,ORMISTON SOUTH PARADE ACADEMY,111750
North East Lincolnshire Council,http://statistics.data.gov.uk/id/local-authority/00FC),Children & Family Services,Ass Dir - Education,School Improvement,Contributions To Provisions,Contributions - Other,LK103,11/06/2020,624310,915.6,REVENUE,ORMISTON SOUTH PARADE ACADEMY,111750
North East Lincolnshire Council,http://statistics.data.gov.uk/id/local-authority/00FC),Children & Family Services,Ass Dir - Education,School Improvement,Contributions To Provisions,Contributions - Other,LK103,11/06/2020,624309,915.6,REVENUE,ELLISTON PRIMARY ACADEMY,129629
North East Lincolnshire Council,http://statistics.data.gov.uk/id/local-authority/00FC),Children & Family Services,Ass Dir - Education,School Improvement,Contributions To Provisions,Contributions - Other,LK103,11/06/2020,624311,915.6,REVENUE,PRECIOUS TIMES CHILDCARE SERVICES,101420
North East Lincolnshire Council,http://statistics.data.gov.uk/id/local-authority/00FC),Children & Family Services,Ass Dir - Education,School Improvement,Contributions To Provisions,Contributions - Other,LK103,11/06/2020,624309,915.6,REVENUE,ELLISTON PRIMARY ACADEMY,129629
North East Lincolnshire Council,http://statistics.data.gov.uk/id/local-authority/00FC),Children & Family Services,Ass Dir - Education,School Improvement,Contributions To Provisions,Contributions - Other,LK103,30/06/2020,627284,348.8,REVENUE,PRECIOUS TIMES CHILDCARE SERVICES,101420
North East Lincolnshire Council,http://statistics.data.gov.uk/id/local-authority/00FC),Children & Family Services,Ass Dir - Education,School Improvement,Contributions To Provisions,Contributions - Other,LK103,11/06/2020,624312,610.4,REVENUE,WIZ KIDZ,102424
North East Lincolnshire Council,http://statistics.data.gov.uk/id/local-authority/00FC),Children & Family Services,Ass Dir - Education,School Improvement,Contributions To Provisions,Contributions - Other,LK103,11/06/2020,624312,610.4,REVENUE,WIZ KIDZ,102424
North East Lincolnshire Council,http://statistics.data.gov.uk/id/local-authority/00FC),Children & Family Services,Ass Dir - Education,Reynolds Day Care,Energy Costs,Electricity,GB102,23/06/2020,626415,261.46,REVENUE,REYNOLDS PRIMARY ACADEMY,122175
North East Lincolnshire Council,http://statistics.data.gov.uk/id/local-authority/00FC),Children & Family Services,Ass Dir - Education,Reynolds Day Care,Energy Costs,Electricity,GB102,23/06/2020,626412,511.41,REVENUE,REYNOLDS PRIMARY ACADEMY,122175
North East Lincolnshire Council,http://statistics.data.gov.uk/id/local-authority/00FC),Children & Family Services,Ass Dir - Children & Families,Head Of Child Resource & Reg,Private Contractors,Third Party Prov - Private,PH101,17/06/2020,625858,4080,REVENUE,SSCL,134915
North East Lincolnshire Council,http://statistics.data.gov.uk/id/local-authority/00FC),Children & Family Services,Ass Dir - Children & Families,Head Of Child Resource & Reg,Private Contractors,Third Party Prov - Private,PH101,17/06/2020,625831,3840,REVENUE,SSCL,134915
North East Lincolnshire Council,http://statistics.data.gov.uk/id/local-authority/00FC),Children & Family Services,Ass Dir - Children & Families,Head Of Child Resource & Reg,Private Contractors,Third Party Prov - Private,PH101,17/06/2020,625859,3360,REVENUE,SSCL,134915
North East Lincolnshire Council,http://statistics.data.gov.uk/id/local-authority/00FC),Children & Family Services,Ass Dir - Children & Families,Head Of Child Resource & Reg,Private Contractors,Third Party Prov - Private,PH101,17/06/2020,625860,2880,REVENUE,SSCL,134915
North East Lincolnshire Council,http://statistics.data.gov.uk/id/local-authority/00FC),Children & Family Services,Ass Dir - Children & Families,Head Of Child Resource & Reg,Private Contractors,Third Party Prov - Private,PH101,17/06/2020,625861,9630,REVENUE,SSCL,134915
North East Lincolnshire Council,http://statistics.data.gov.uk/id/local-authority/00FC),Children & Family Services,Ass Dir - Children & Families,Head Of Child Resource & Reg,Private Contractors,Third Party Prov - Private,PH101,17/06/2020,625862,9630,REVENUE,SSCL,134915
North East Lincolnshire Council,http://statistics.data.gov.uk/id/local-authority/00FC),Children & Family Services,Ass Dir - Children & Families,Head Of Child Resource & Reg,Private Contractors,Third Party Prov - Private,PH101,17/06/2020,625863,4815,REVENUE,SSCL,134915
North East Lincolnshire Council,http://statistics.data.gov.uk/id/local-authority/00FC),Children & Family Services,Ass Dir - Children & Families,Head Of Child Resource & Reg,Private Contractors,Third Party Prov - Private,PH101,24/06/2020,626714,712.5,REVENUE,QUAYSIDE CHILDCARE LTD.,127974
North East Lincolnshire Council,http://statistics.data.gov.uk/id/local-authority/00FC),Children & Family Services,Ass Dir - Children & Families,Head Of Child Resource & Reg,Private Contractors,Third Party Prov - Private,PH101,04/06/2020,624104,27311,REVENUE,REDACTED PERSONAL INFORMATION,REDACTED PERSONAL INFORMATION
North East Lincolnshire Council,http://statistics.data.gov.uk/id/local-authority/00FC),Children & Family Services,Ass Dir - Children & Families,Head Of Child Resource & Reg,Catering,Provisions,LB101,18/06/2020,625898,511.81,REVENUE,VULNERABLE YOUNG PEOPLE PROJECT HENEAGE,110637
North East Lincolnshire Council,http://statistics.data.gov.uk/id/local-authority/00FC),Children & Family Services,Ass Dir - Children & Families,Head Of Child Resource & Reg,Catering,Provisions,LB101,01/06/2020,623462,965.03,REVENUE,VULNERABLE YOUNG PEOPLE PROJECT HENEAGE,110637
North East Lincolnshire Council,http://statistics.data.gov.uk/id/local-authority/00FC),Children & Family Services,Ass Dir - Children & Families,Head Of Child Resource & Reg,Miscellaneous Expenses,Activities - Service Users,LL114,18/06/2020,625898,274.88,REVENUE,VULNERABLE YOUNG PEOPLE PROJECT HENEAGE,110637
North East Lincolnshire Council,http://statistics.data.gov.uk/id/local-authority/00FC),Children & Family Services,Ass Dir - Children & Families,Head Of Child Resource & Reg,Other Agencies,Additional Cost,PJ114,26/06/2020,809318,719.44,REVENUE,REDACTED PERSONAL INFORMATION,REDACTED PERSONAL INFORMATION
North East Lincolnshire Council,http://statistics.data.gov.uk/id/local-authority/00FC),Children & Family Services,Ass Dir - Children & Families,Head Of Child Resource & Reg,Other Agencies,Child Care Payments,PJ104,09/06/2020,803715,319,REVENUE,REDACTED PERSONAL INFORMATION,REDACTED PERSONAL INFORMATION
North East Lincolnshire Council,http://statistics.data.gov.uk/id/local-authority/00FC),Children & Family Services,Ass Dir - Children & Families,Head Of Child Resource & Reg,Other Agencies,Child Care Payments,PJ104,02/06/2020,802038,270,REVENUE,REDACTED PERSONAL INFORMATION,REDACTED PERSONAL INFORMATION
North East Lincolnshire Council,http://statistics.data.gov.uk/id/local-authority/00FC),Children & Family Services,Ass Dir - Children & Families,Head Of Child Resource & Reg,Other Agencies,Child Care Payments,PJ104,02/06/2020,801542,364,REVENUE,REDACTED PERSONAL INFORMATION,REDACTED PERSONAL INFORMATION
North East Lincolnshire Council,http://statistics.data.gov.uk/id/local-authority/00FC),Children & Family Services,Ass Dir - Children & Families,Head Of Child Resource & Reg,Other Agencies,Child Care Payments,PJ104,02/06/2020,801665,364,REVENUE,REDACTED PERSONAL INFORMATION,REDACTED PERSONAL INFORMATION
North East Lincolnshire Council,http://statistics.data.gov.uk/id/local-authority/00FC),Children & Family Services,Ass Dir - Children & Families,Head Of Child Resource & Reg,Other Agencies,Child Care Payments,PJ104,02/06/2020,801726,364,REVENUE,REDACTED PERSONAL INFORMATION,REDACTED PERSONAL INFORMATION
North East Lincolnshire Council,http://statistics.data.gov.uk/id/local-authority/00FC),Children & Family Services,Ass Dir - Children & Families,Head Of Child Resource & Reg,Other Agencies,Child Care Payments,PJ104,02/06/2020,801741,728,REVENUE,REDACTED PERSONAL INFORMATION,REDACTED PERSONAL INFORMATION
North East Lincolnshire Council,http://statistics.data.gov.uk/id/local-authority/00FC),Children & Family Services,Ass Dir - Children & Families,Head Of Child Resource & Reg,Other Agencies,Child Care Payments,PJ104,02/06/2020,801513,364,REVENUE,REDACTED PERSONAL INFORMATION,REDACTED PERSONAL INFORMATION
North East Lincolnshire Council,http://statistics.data.gov.uk/id/local-authority/00FC),Children & Family Services,Ass Dir - Children & Families,Head Of Child Resource & Reg,Other Agencies,Child Care Payments,PJ104,09/06/2020,803656,364,REVENUE,REDACTED PERSONAL INFORMATION,REDACTED PERSONAL INFORMATION
North East Lincolnshire Council,http://statistics.data.gov.uk/id/local-authority/00FC),Children & Family Services,Ass Dir - Children & Families,Head Of Child Resource & Reg,Other Agencies,Child Care Payments,PJ104,09/06/2020,803685,364,REVENUE,REDACTED PERSONAL INFORMATION,REDACTED PERSONAL INFORMATION
North East Lincolnshire Council,http://statistics.data.gov.uk/id/local-authority/00FC),Children & Family Services,Ass Dir - Children & Families,Head Of Child Resource & Reg,Other Agencies,Child Care Payments,PJ104,09/06/2020,803809,364,REVENUE,REDACTED PERSONAL INFORMATION,REDACTED PERSONAL INFORMATION
North East Lincolnshire Council,http://statistics.data.gov.uk/id/local-authority/00FC),Children & Family Services,Ass Dir - Children & Families,Head Of Child Resource & Reg,Other Agencies,Child Care Payments,PJ104,09/06/2020,803870,364,REVENUE,REDACTED PERSONAL INFORMATION,REDACTED PERSONAL INFORMATION
North East Lincolnshire Council,http://statistics.data.gov.uk/id/local-authority/00FC),Children & Family Services,Ass Dir - Children & Families,Head Of Child Resource & Reg,Other Agencies,Child Care Payments,PJ104,09/06/2020,803885,364,REVENUE,REDACTED PERSONAL INFORMATION,REDACTED PERSONAL INFORMATION
North East Lincolnshire Council,http://statistics.data.gov.uk/id/local-authority/00FC),Children & Family Services,Ass Dir - Children & Families,Head Of Child Resource & Reg,Other Agencies,Child Care Payments,PJ104,16/06/2020,806044,364,REVENUE,REDACTED PERSONAL INFORMATION,REDACTED PERSONAL INFORMATION
North East Lincolnshire Council,http://statistics.data.gov.uk/id/local-authority/00FC),Children & Family Services,Ass Dir - Children & Families,Head Of Child Resource & Reg,Other Agencies,Child Care Payments,PJ104,16/06/2020,806059,364,REVENUE,REDACTED PERSONAL INFORMATION,REDACTED PERSONAL INFORMATION
North East Lincolnshire Council,http://statistics.data.gov.uk/id/local-authority/00FC),Children & Family Services,Ass Dir - Children & Families,Head Of Child Resource & Reg,Other Agencies,Child Care Payments,PJ104,16/06/2020,805830,364,REVENUE,REDACTED PERSONAL INFORMATION,REDACTED PERSONAL INFORMATION
North East Lincolnshire Council,http://statistics.data.gov.uk/id/local-authority/00FC),Children & Family Services,Ass Dir - Children & Families,Head Of Child Resource & Reg,Other Agencies,Child Care Payments,PJ104,16/06/2020,805860,364,REVENUE,REDACTED PERSONAL INFORMATION,REDACTED PERSONAL INFORMATION
North East Lincolnshire Council,http://statistics.data.gov.uk/id/local-authority/00FC),Children & Family Services,Ass Dir - Children & Families,Head Of Child Resource & Reg,Other Agencies,Child Care Payments,PJ104,16/06/2020,805983,364,REVENUE,REDACTED PERSONAL INFORMATION,REDACTED PERSONAL INFORMATION
North East Lincolnshire Council,http://statistics.data.gov.uk/id/local-authority/00FC),Children & Family Services,Ass Dir - Children & Families,Head Of Child Resource & Reg,Other Agencies,Child Care Payments,PJ104,23/06/2020,807677,364,REVENUE,REDACTED PERSONAL INFORMATION,REDACTED PERSONAL INFORMATION
North East Lincolnshire Council,http://statistics.data.gov.uk/id/local-authority/00FC),Children & Family Services,Ass Dir - Children & Families,Head Of Child Resource & Reg,Other Agencies,Child Care Payments,PJ104,23/06/2020,807448,364,REVENUE,REDACTED PERSONAL INFORMATION,REDACTED PERSONAL INFORMATION
North East Lincolnshire Council,http://statistics.data.gov.uk/id/local-authority/00FC),Children & Family Services,Ass Dir - Children & Families,Head Of Child Resource & Reg,Other Agencies,Child Care Payments,PJ104,23/06/2020,807601,364,REVENUE,REDACTED PERSONAL INFORMATION,REDACTED PERSONAL INFORMATION
North East Lincolnshire Council,http://statistics.data.gov.uk/id/local-authority/00FC),Children & Family Services,Ass Dir - Children & Families,Head Of Child Resource & Reg,Other Agencies,Child Care Payments,PJ104,23/06/2020,807478,364,REVENUE,REDACTED PERSONAL INFORMATION,REDACTED PERSONAL INFORMATION
North East Lincolnshire Council,http://statistics.data.gov.uk/id/local-authority/00FC),Children & Family Services,Ass Dir - Children & Families,Head Of Child Resource & Reg,Other Agencies,Child Care Payments,PJ104,23/06/2020,807662,364,REVENUE,REDACTED PERSONAL INFORMATION,REDACTED PERSONAL INFORMATION
